Workbook

Sheet Data
E1: Last row | F1: First year | G1: No. Gifts | H1: Total Amt | P1: P | Q1: Q
E2: 59480 | F2: 2018 | G2: =E2-1 -> 59479 | H2: =SUM(C1:C440520) -> 0 | P2: 18 | Q2: 12
G3: =FEPdata!X6 -> 59479 | H3: =FEPdata!W6 -> 7676343.18 | P3: 18 | Q3: 12
G4: ------- need to be equal --------- | P4: 18 | Q4: 12
G5: If not, contact FEP@afpnet.org | P5: 18 | Q5: 11
P6: 22 | Q6: 12
P7: 22 | Q7: 12
P8: 42 | Q8: 1
P9: 42 | Q9: 2
P10: 42 | Q10: 3
P11: 42 | Q11: 4
P12: 42 | Q12: 5
P13: 42 | Q13: 6
P14: 42 | Q14: 7
P15: 42 | Q15: 8
P16: 42 | Q16: 9
P17: 42 | Q17: 10
P18: 42 | Q18: 11
P19: 42 | Q19: 12
P20: 42 | Q20: 1
P21: 42 | Q21: 2
P22: 42 | Q22: 3
P23: 42 | Q23: 4
P24: 42 | Q24: 4
P25: 42 | Q25: 5
P26: 42 | Q26: 6
P27: 42 | Q27: 7
P28: 42 | Q28: 8
P29: 42 | Q29: 9
P30: 42 | Q30: 10
P31: 42 | Q31: 11
P32: 42 | Q32: 12
P33: 42 | Q33: 1
P34: 42 | Q34: 2
P35: 42 | Q35: 3
P36: 42 | Q36: 4
P37: 42 | Q37: 5
P38: 42 | Q38: 6
P39: 42 | Q39: 7
P40: 42 | Q40: 8
P41: 42 | Q41: 8
P42: 42 | Q42: 9
P43: 42 | Q43: 10
P44: 42 | Q44: 11
P45: 42 | Q45: 12
P46: 42 | Q46: 1
P47: 42 | Q47: 2
P48: 42 | Q48: 3
P49: 42 | Q49: 4
P50: 42 | Q50: 5
P51: 42 | Q51: 6
P52: 42 | Q52: 7
P53: 42 | Q53: 8
P54: 42 | Q54: 9
P55: 42 | Q55: 10
P56: 42 | Q56: 11
P57: 42 | Q57: 12
P58: 49 | Q58: 1
P59: 49 | Q59: 2
P60: 49 | Q60: 3
P61: 49 | Q61: 4
P62: 49 | Q62: 5
P63: 49 | Q63: 6
P64: 49 | Q64: 7
P65: 49 | Q65: 8
P66: 49 | Q66: 9
P67: 49 | Q67: 10
P68: 49 | Q68: 11
P69: 49 | Q69: 12
P70: 49 | Q70: 1
P71: 49 | Q71: 2
P72: 49 | Q72: 3
P73: 49 | Q73: 4
P74: 49 | Q74: 5
P75: 49 | Q75: 6
P76: 49 | Q76: 7
P77: 49 | Q77: 8
P78: 49 | Q78: 9
P79: 49 | Q79: 10
P80: 49 | Q80: 11
P81: 49 | Q81: 12
P82: 49 | Q82: 1
P83: 49 | Q83: 2
P84: 49 | Q84: 3
P85: 49 | Q85: 4
P86: 49 | Q86: 5
P87: 49 | Q87: 6
P88: 49 | Q88: 7
P89: 49 | Q89: 8
P90: 49 | Q90: 9
P91: 49 | Q91: 10
P92: 49 | Q92: 11
P93: 49 | Q93: 12
P94: 49 | Q94: 1
P95: 49 | Q95: 2
P96: 49 | Q96: 3
P97: 49 | Q97: 4
P98: 49 | Q98: 5
P99: 49 | Q99: 6
P100: 49 | Q100: 7
P101: 49 | Q101: 8
P102: 49 | Q102: 9
P103: 49 | Q103: 10
P104: 49 | Q104: 11
P105: 49 | Q105: 12
P106: 51 | Q106: 1
P107: 51 | Q107: 2
P108: 51 | Q108: 3
P109: 51 | Q109: 4
P110: 51 | Q110: 5
P111: 51 | Q111: 6
P112: 51 | Q112: 7
P113: 51 | Q113: 8
P114: 51 | Q114: 9
P115: 51 | Q115: 10
P116: 51 | Q116: 11
P117: 51 | Q117: 12
P118: 51 | Q118: 1
P119: 51 | Q119: 2
P120: 51 | Q120: 3
P121: 51 | Q121: 4
P122: 51 | Q122: 5
P123: 51 | Q123: 6
P124: 51 | Q124: 7
P125: 51 | Q125: 8
P126: 51 | Q126: 9
P127: 51 | Q127: 10
P128: 51 | Q128: 11
P129: 51 | Q129: 12
P130: 51 | Q130: 1
P131: 51 | Q131: 2
P132: 51 | Q132: 3
P133: 51 | Q133: 4
P134: 51 | Q134: 5
P135: 51 | Q135: 6
P136: 51 | Q136: 7
P137: 51 | Q137: 8
P138: 51 | Q138: 9
P139: 51 | Q139: 10
P140: 51 | Q140: 11
P141: 51 | Q141: 12
P142: 51 | Q142: 1
P143: 51 | Q143: 3
P144: 51 | Q144: 4
P145: 51 | Q145: 5
P146: 51 | Q146: 6
P147: 51 | Q147: 7
P148: 51 | Q148: 8
P149: 51 | Q149: 9
P150: 51 | Q150: 9
P151: 51 | Q151: 10
P152: 51 | Q152: 11
P153: 51 | Q153: 12
P154: 51 | Q154: 12
P155: 52 | Q155: 9
P156: 59 | Q156: 9
P157: 70 | Q157: 9
P158: 110 | Q158: 8
P159: 110 | Q159: 12
P160: 110 | Q160: 9
P161: 131 | Q161: 8
P162: 131 | Q162: 9
P163: 131 | Q163: 12
P164: 131 | Q164: 8
P165: 131 | Q165: 12
P166: 131 | Q166: 9
P167: 140 | Q167: 1
P168: 140 | Q168: 1
P169: 140 | Q169: 6
P170: 140 | Q170: 6
P171: 140 | Q171: 2
P172: 140 | Q172: 6
P173: 140 | Q173: 2
P174: 140 | Q174: 2
P175: 140 | Q175: 6
P176: 140 | Q176: 7
P177: 140 | Q177: 2
P178: 140 | Q178: 6
P179: 159 | Q179: 2
P180: 165 | Q180: 9
P181: 165 | Q181: 12
P182: 170 | Q182: 6
P183: 170 | Q183: 12
P184: 170 | Q184: 6
P185: 170 | Q185: 9
P186: 170 | Q186: 11
P187: 170 | Q187: 4
P188: 170 | Q188: 12
P189: 175 | Q189: 2
P190: 175 | Q190: 9
P191: 175 | Q191: 1
P192: 175 | Q192: 2
P193: 178 | Q193: 12
P194: 178 | Q194: 9
P195: 178 | Q195: 2
P196: 178 | Q196: 12
P197: 178 | Q197: 9
P198: 184 | Q198: 6
P199: 184 | Q199: 8
P200: 184 | Q200: 10
... 4300 more rows

Sheet StepByStep
C1: FEP Analytics | G1: =TODAY() -> 2023-09-14 | H1: 10:31:25 | I1: 19:35:37 | J1: 16:08:39
C2: By Fundraising Effectiveness Project | H2: 10:57:03 | I2: 10:57:03 | J2: 16:35:34 | K2: Include gift-trans by month range
H3: =H2-H1 -> 00:25:38 | I3: =I2-I1 -> -0.3601157407 | J3: =J2-J1 -> 00:26:55 | K3: 0 | L3: <-- 1st month
B4: Growth-in-Giving (GiG) Reports | H4: FEP Fitness | I4: Indicators | J4: Indicators | K4: 0 | L4: <-- Last month
H5: Test | I5: By Year2 | J5: Trends | K5: E.G., where '1' = Jan & '12' = Dec
A6: MUST Enable Content (above) before macros can be run. | B6: FEP Fundraising Performance Indicators | K6: 0' in either field & option ignored
B7: Using Gift Transaction Data* By Giving Level/Range | G7: 12 | H7: <-- 12 = Jan-Dec. Change Year for Fiscal Calculations.
B8: * Can be all gifts or by fundraising program
G9: Initial Year2
B10: Growth-in-Giving is measured for Year2 --------> | F10: Year2: | G10: 2021 | H10: <-- Always the most current year
F11: Year1: | G11: =G10-1 -> 2020 | H11: <-- Always the prior year
A13: Step 1 | B13: Enter gift transaction data in columns A, B and C of "Data" Worksheet - start in row 2. [See "Data" worksheet instructions]
B14: First, delete prior data from row 2 down to end of data.
A15: Step 2 | B15: Enter Year2 above for the initial year to be analyzed
A16: Step 3 | B16: Click on the "FEP Fitness Test" button ----------------------> | G16: FEP Fitness Test
B17: Can take up to 30 minutes -- or more
A18: Step 4 | B18: Print and/or save(*) FEP Analytics Tables 1 & 4 and other FEP report worksheets for analysis
A20: Steps 5-7 replace results in Tables 1 & 4 for each additional Year2
A21: Step 5 | B21: Enter another Year2 for each additional year as needed using same gift data.
A22: Step 6 | B22: Click on the "FEP Indicators by Year2" button -------------> | I22: <---Macro calculates in worksheet "FEPdata"
B23: Can take up to 10 minutes -- or more | G23: FEP Indicators by Year2
A24: Step 7 | B24: Repeat print-or-save Step 4 for each Year2. | J24: <-- MultiGift yearly analysis:
J25: Enter 'Only' to include MultiGift donors
A26: Additional "FEP Growth-in-Giving (GiG) Reports" are availble at www.afpnet.org/FEP | J26: or 'Not' to exclude MultiGift donors.
A27: 1. Goto www.afpnet.org/FEP, scroll down to and click on "FEP Growth-in-Giving (GiG) Reports" | J27: Leave blank to skip MultiGift analysis.
A28: and download the Excel-based "GiG Reports Template" that has 8 more very useful GiG reports.
A29: 2. For instruction #2 in the "GiG Reports Template," you can copy gain(loss) data sets from the FEP Fitness Test | J29: Where "X" =
A30: to the "DataInput" worksheet. Copy cells B12 to E18 in Fitness Test worksheets "FEPdata," "FEP100dn," | K30: From: | L30: 1 | M30: times yearly
A31: "FEP100to249." "FEP250to999," "FEP1000to4999," or "FEP5000up"to cells B22 to E28 in the "DataInput" worksheet | K31: To: | L31: 100 | M31: times yearly
A32: of the "GiG Reports Template" and print and/or save the 8 GiG reports.
A33: 3. Other useful FEP data and guidance can be found at www.afpnet.org/FEP.
A35: Questions or comments
A36: Email FEP@afpnet.org
A38: (*) Save FEP report worksheets by copying them (Alt-E;M;Alt-C) to new worksheets in a separate or new workbook.
A39: Then selecting and copying all cells (A1 to Xn) in each new workbook and pasting in cell A1 as values (Alt-E;S;V).

Sheet GiG Overview
A1: GiG Overview | C1: Growth-in-Giving (GiG) Reports
C2: By Fundraising Effectiveness Project
A3: =StepByStep!$A$3 -> 0
A5: First, become familiar with the FEP and the basic GiG concepts
A6: Be sure to visit http//www.afpnet.org/fep for a better understanding of the gain(loss) concepts
A7: and to learn how to use the GiG Reports to help you develop growth-oriented fundraising
A8: strategies and justify your growth-oriented budgets to your CEO and board. You will find
A9: "A Better Measure of Success - how to use GiG reports to improve fundrising performance,"
A10: Fundraising Effectiveness Survey Reports from 2004-05 forward and other useful resources.
A12: Caution
A13: ONLY enter data in the "Data" worksheet and ONLY enter data in columns A, B and C (*).
A14: This is necessary in order to preserve the formulas in all the worksheets in this Excel file.
A15: Of course, if you should overwrite a formula, you can always down load the FEP
A16: Fundraising Fitness Test Level I, v1.2.xlsm Excel file again.
A17: (*) Exceptions: comparative data fields in worksheets "Comparison" and "Comparison - FEP Ratios."
A19: There are eight GiG Reports. The eight worksheets containing seven “Growth-in-Giving
A20: (GiG) Reports” and the “What If….” report are automatically populated with the gain(loss)
A21: data you have provided. You can employ just the "Core GiG Report" or any combination of
A22: the eight reports in this template that you find useful in support of your fundraisign programs.
A24: You can prepare GiG reports for more than one fundraising activity. The queries for extracting the
A25: relevant gift transactions data from your donor database can be set up for the fundraising program
A26: overall, as well as for each fundraising activity, such as direct mail, annual gving and major gifts.
A28: You can prepare GiG reports for more than one year. You can repeat this procedure for
A29: more than one year. This will enable you to measure and compare growth in giving over time
A30: by gain/loss category (see "Comparison" worksheet).
A32: Exclude one-time major gifts. Large one-time major gifts can distort year-to-year GiG
A33: reports and should be excluded from the analysis for both year 1 and year 2.
A35: Definitions for Gain/Loss categories in GiG Reports:
A36: New – donors who never gave prior to year 2 (current year)
A37: Recaptured – previously lapsed donors who gave again in year 2.
A38: Upgraded – donors who gave more in year 2 than in year 1 (previous year).
A39: Same – donors who gave the same amount in both years.
A40: Downgraded – donors who gave less in year 2 than in year 1.
A41: Lapsed new – new, first-time donors in year 1 who did not give in year 2
A42: Lapsed repeat – other lapsed donors who gave in year 1 and prior years but not in year 2
C44: ------------- Donations made --------------
C45: Before | D45: During | E45: During
C46: Year 1 | D46: Year 1 | E46: Year 1
B47: New | C47: no | D47: no | E47: yes
B48: Recaptured | C48: yes | D48: no | E48: yes
B49: Upgraded | C49: n/a | D49: yes | E49: yes
B50: Same | C50: n/a | D50: yes | E50: yes
B51: Downgraded | C51: n/a | D51: yes | E51: yes
B52: Lapsed new | C52: no | D52: yes | E52: no
B53: Lapsed repeat | C53: yes | D53: yes | E53: no
A55: =A1 -> GiG Overview | D55: =FEPdata!$C$1 -> 0 | H55: Page 2
A57: Descriptions of Growth-in-Giving (GiG) Reports
A59: There are 7 useful growth-oriented fundraising reports. Important: all required data
A60: is entered only into the “Data” worksheet – all the other worksheets are populated
A61: automatically by macro and formula from the “Data” worksheet (*).
A62: (*) Exception: comparative data fields in worksheet "Comparison - FEP Ratios."
A64: NOTE: Crossreferences to tables and figures in the "A Better measure of Success" article (*) are in [..]
B65: (*) A copy of the article in PDF is available at
B66: http://www.afpnet.org//Audiences/ReportsResearchDetail.cfm?ItemNumber=5181.
B67: Or, you can goto http://www.afpnet.org/FEP and find “AFP's Growth-in-Giving (GiG) Reports”
B68: on the Fundraising Effectiveness Project home page.
A70: Core GiG Report | D70: [Tables 2 & 3 and Figure 3]
A71: The centerpiece of the GiG Reports: gains and losses in amount of gifts by gain(loss) category
A73: The core AFP Growth-in-Giving (GiG) Report provides a concise, yet informative picture
A74: of fundraising gains and losses - growth in giving and attrition - together in a simple,
A75: reader-friendly format that the executive staff and board members can understand.
A77: Fundraising managers can use GiG Reports with CEOs and boards to help justify
A78: growth-oriented fundraising budgets
A80: Number of Donors
A81: GiG Report for growth in number of donors.—by gain(loss) category
A83: GIG Report - Totals | D83: [Figure 1]
A84: GiG Report showing total gains in gifts, total losses in gifts and net gain(loss) in gifts.
A86: What if | D86: [Table 1 and Figure 2]
A87: The "What If" Gains Increased and/or Losses Decreased? report shows the enormous
A88: potential for increasing the organization’s “Net” with various levels of improved gain(lloss) performance.
A90: GiG Report Worksheets With Gain (Loss) Ratios
A91: All gain(loss) statistics published in the annual Fundraising Effectiveness Survey reports for use
A92: in comparative analysis are in the form of ratios(**).
A94: GiG Report - Ratios | D94: [Table 4]
A95: The “Core GiG Report” with columns added for “Gain(Loss) ratios” and “Percentage Distribution”
A97: Number of Donors - Ratios | D97: [Table 5]
A98: The “Number of Donors” GiG report with columns added for “Gain(Loss) ratios,” “Percentage
A99: Distribution,” and “Average Gift Size.”
A101: Comparison – FEP Ratios
A102: The “GiG Report - Ratios” GiG report with columns added for comparing “FEP Survey
A103: Ratios(*)” to the Year 2 “Gain(Loss) ratios” column plus a column for “Differences” between the
A104: organization’s Year 2.gain(loss) ratios and FEP survey ratios(**).
A106: (**) Comparative FEP survey ratios by size, subsector, region and age for several years can be
A107: found in the appendices of the annual Fundraising Effectiveness Survey reports at
A108: http://www.afpnet.org/FEP.

Sheet Core GiG Report
A1: Core GiG Report | C1: Growth-in-Giving (GiG) Report
C2: By Fundraising Effectiveness Project
A4: [Table 3 & Figure 3 *] | D4: Gains & Losses for | E4: =StepByStep!$G$10 -> 2021
B6: Gain(Loss) Category | C6: Year 1 | D6: Year 2 | E6: Gains | G6: Caution: if you
B7: For Year 2 Donors | C7: =D7-1 -> 2020 | D7: =StepByStep!$G$10 -> 2021 | E7: (Losses) | G7: enter data in this
C8: (A$) | D8: (B$) | E8: (C$=B-A) | G8: worksheet, you
G9: will destroy the
A10: Gains | D10: Amount of Gifts | G10: formula cells.
B11: New | C11: n/a | D11: =FEPdata!E12 -> 236159.21 | E11: =D11 -> 236159.21
B12: Recaptured | C12: n/a | D12: =FEPdata!E13 -> 165875.69 | E12: =D12 -> 165875.69
B13: Upgraded | C13: =FEPdata!C14 -> 639185 | D13: =FEPdata!E14 -> 2205738.75 | E13: =D13-C13 -> 1566553.75
B14: Subtotal gains | C14: =SUM(C11:C13) -> 639185 | D14: =SUM(D11:D13) -> 2607773.65 | E14: =D14-C14 -> 1968588.65
A15: Same | C15: =FEPdata!C15 -> 200771 | D15: =FEPdata!E15 -> 200771 | E15: =D15-C15 -> 0
A16: Losses
B17: Downgraded | C17: =FEPdata!C16 -> 426229 | D17: =FEPdata!E16 -> 271544.53 | E17: =D17-C17 -> -154684.47
B18: Lapsed new | C18: =FEPdata!C17 -> 182435 | D18: n/a | E18: =-C18 -> -182435
B19: Lapsed repeat | C19: =FEPdata!C18 -> 251698 | D19: n/a | E19: =-C19 -> -251698
B20: Subtotal losses | C20: =SUM(C16:C19) -> 860362 | D20: =SUM(D16:D19) -> 271544.53 | E20: =D20-C20 -> -588817.47
A22: Total - gifts | C22: =C14+C15+C20 -> 1700318 | D22: =D14+D15+D20 -> 3080089.18 | E22: =D22-C22 -> 1379771.18
E23: Overall net growth in giving
G26: For chart:
H27: Gifts
G28: New | H28: =E11 -> 236159.21
G29: Recaptured | H29: =E12 -> 165875.69
G30: Upgraded | H30: =E13 -> 1566553.75
G31: Total gains | H31: =E14 -> 1968588.65
G32: Downgraded | H32: =E17 -> -154684.47
G33: Laps new | H33: =E18 -> -182435
G34: Laps repeat | H34: =E19 -> -251698
G35: Total losses | H35: =E20 -> -588817.47
G36: Net | H36: =E22 -> 1379771.18
A41: Definitions for Gain/Loss categories in GiG Reports:
A42: New – donors who never gave prior to year 2 (current year)
A43: Recaptured – previously lapsed donors who gave again in year 2.
A44: Upgraded – donors who gave more in year 2 than in year 1 (previous year).
A45: Same – donors who gave the same amount in both years.
A46: Downgraded – donors who gave less in year 2 than in year 1.
A47: Lapsed new – new, first-time donors in year 1 who did not give in year 2
A48: Lapsed repeat – other lapsed donors who gave in yr 1 & prior yrs but not in yr 2
A50: * Tables and figures in A Better Measure of Success article

Sheet Number of Donors
A1: Number of Donors | C1: Growth-in-Giving (GiG) Report
C2: By Fundraising Effectiveness Project
E4: Gains & Losses in Number of Donors for | F4: =StepByStep!$G$10 -> 2021
B6: Gain(Loss) Category | C6: Year 1 | D6: Year 2 | E6: Gains | H6: Caution: if you
B7: For Year 2 Donors | C7: =D7-1 -> 2020 | D7: =StepByStep!$G$10 -> 2021 | E7: (Losses) | H7: enter data in this
C8: (A) | D8: (B) | E8: (C=B-A) | H8: worksheet, you
H9: will destroy the
A10: Gains | D10: Number of Donors | H10: formula cells.
B11: New | C11: n/a | D11: =FEPdata!D12 -> 1440 | E11: =D11 -> 1440
B12: Recaptured | C12: n/a | D12: =FEPdata!D13 -> 466 | E12: =D12 -> 466
B13: Upgraded | C13: =FEPdata!B14 -> 984 | D13: =FEPdata!D14 -> 984 | E13: =D13-C13 -> 0
B14: Subtotal gains | C14: =SUM(C11:C13) -> 984 | D14: =SUM(D11:D13) -> 2890 | E14: =D14-C14 -> 1906
A15: Same | C15: =FEPdata!B15 -> 735 | D15: =FEPdata!D15 -> 735 | E15: =D15-C15 -> 0
A16: Losses
B17: Downgraded | C17: =FEPdata!B16 -> 772 | D17: =FEPdata!D16 -> 772 | E17: =D17-C17 -> 0
B18: Lapsed new | C18: =FEPdata!B17 -> 1121 | D18: n/a | E18: =-C18 -> -1121
B19: Lapsed repeat | C19: =FEPdata!B18 -> 539 | D19: n/a | E19: =-C19 -> -539
B20: Subtotal losses | C20: =SUM(C16:C19) -> 2432 | D20: =SUM(D16:D19) -> 772 | E20: =D20-C20 -> -1660
A22: Total - gifts | C22: =C14+C15+C20 -> 4151 | D22: =D14+D15+D20 -> 4397 | E22: =D22-C22 -> 246
I26: Gifts
H27: New | I27: =E11 -> 1440
H28: Recaptured | I28: =E12 -> 466
H29: Upgraded | I29: =E13 -> 0
H30: Total gains | I30: =E14 -> 1906
H31: Downgraded | I31: =E17 -> 0
H32: Laps new | I32: =E18 -> -1121
H33: Laps repeat | I33: =E19 -> -539
H34: Total losses | I34: =E20 -> -1660
A40: Definitions for Gain/Loss categories in GiG Reports:
A41: New – donors who never gave prior to year 2 (current year)
A42: Recaptured – previously lapsed donors who gave again in year 2.
A43: Upgraded – donors who gave more in year 2 than in year 1 (previous year).
A44: Same – donors who gave the same amount in both years.
A45: Downgraded – donors who gave less in year 2 than in year 1.
A46: Lapsed new – new, first-time donors in year 1 who did not give in year 2
A47: Lapsed repeat – other lapsed donors who gave in year 1 and prior years but not in year 2

Sheet GiG Report - Totals
A1: GiG Report - Totals | C1: Growth-in-Giving (GiG) Report
C2: By Fundraising Effectiveness Project
A4: [Figure 1*] | D4: Gains & Losses for | E4: =StepByStep!$G$10 -> 2021
B6: Gain(Loss) Category | C6: Year 1 | D6: Year 2 | E6: Gains | G6: Caution: if you
B7: For Year 2 Donors | C7: =D7-1 -> 2020 | D7: =StepByStep!$G$10 -> 2021 | E7: (Losses) | G7: enter data in this
C8: (A) | D8: (B) | E8: (C=B-A) | G8: worksheet, you
G9: will destroy the
B10: Total gains | C10: ='Core GiG Report'!C14 -> 639185 | D10: ='Core GiG Report'!D14 -> 2607773.65 | E10: =D10-C10 -> 1968588.65 | G10: formula cells.
B12: Same | C12: =D12 -> 200771 | D12: ='Core GiG Report'!D15 -> 200771 | E12: =D12-C12 -> 0
B14: Total losses | C14: ='Core GiG Report'!C20 -> 860362 | D14: ='Core GiG Report'!D20 -> 271544.53 | E14: =D14-C14 -> -588817.47
B16: Total and net gain[loss] | C16: =C10+C12+C14 -> 1700318 | D16: =D10+D12+D14 -> 3080089.18 | E16: =D16-C16 -> 1379771.18
E17: Overall growth in giving
A38: * Tables and figures in A Better Measure of Success article

Sheet What if
A1: What If | C1: Growth-in-Giving (GiG) Report
C2: By Fundraising Effectiveness Project
A4: "What If" Gains Increased and/or Losses Decreased? | G4: =StepByStep!$G$10 -> 2021
A5: [Table 1 and Figure 2 *]
C6: Total | D6: Total | F6: What if net | H6: Caution: if you
C7: Gains | D7: Losses | E7: Net | F7: Increase | H7: enter data in this
C8: (A) | D8: (B) | E8: (A-B) | F8: (%) | H8: worksheet, you
A9: Current Year-2 results | C9: ='Core GiG Report'!E14 -> 1968588.65 | D9: ='Core GiG Report'!E20 -> -588817.47 | E9: =C9+D9 -> 1379771.18 | H9: will destroy the
A10: What if gains increased by | C10: =C9*$A11 -> 393717.73 | H10: formula cells.
A11: 0.2 | C11: =C$9+C10 -> 2362306.38 | D11: =D$9+D10 -> -588817.47 | E11: =C11+D11 -> 1773488.91 | F11: =(E11-E$9)/E$9 -> 0.2853500172
A12: What if losses decreased by | D12: =-D11*$A13 -> 117763.494
A13: 0.2 | C13: =C$9+C12 -> 1968588.65 | D13: =D$9+D12 -> -471053.976 | E13: =C13+D13 -> 1497534.674 | F13: =(E13-E$9)/E$9 -> 0.08535001724
A14: What if losses decreased by | D14: =-D11*$A15 -> 235526.988
A15: 0.4 | C15: =C$9+C14 -> 1968588.65 | D15: =D$9+D14 -> -353290.482 | E15: =C15+D15 -> 1615298.168 | F15: =(E15-E$9)/E$9 -> 0.1707000345
A16: What if gains increased | C16: =C10 -> 393717.73 | D16: =D14 -> 235526.988
A17: and losses decreased | C17: =C$9+C16 -> 2362306.38 | D17: =D$9+D16 -> -353290.482 | E17: =C17+D17 -> 2009015.898 | F17: =(E17-E$9)/E$9 -> 0.4560500517
I20: Current Year 2 | J20: Gains +20% | K20: Losses +20% | L20: Losses +40% | M20: Gains +20%, Losses +40%
H22: Gains | I22: =$C9 -> 1968588.65 | J22: =$C11 -> 2362306.38 | K22: =$C13 -> 1968588.65 | L22: =$C15 -> 1968588.65 | M22: =$C17 -> 2362306.38
H23: Losses | I23: =$D9 -> -588817.47 | J23: =$D11 -> -588817.47 | K23: =$D13 -> -471053.976 | L23: =$D15 -> -353290.482 | M23: =$D17 -> -353290.482
H24: Net | I24: =$E9 -> 1379771.18 | J24: =$E11 -> 1773488.91 | K24: =$E13 -> 1497534.674 | L24: =$E15 -> 1615298.168 | M24: =$E17 -> 2009015.898
A33: * Tables and figures in A Better Measure of Success article

Sheet GiG Report - Ratios
A1: GiG Report - Ratios | C1: Growth-in-Giving (GiG) Report
C2: By Fundraising Effectiveness Project
A4: [Table 4 *] | E4: Gains & Losses for | F4: =StepByStep!$G$10 -> 2021
B6: Gain(Loss) Category | C6: Year 1 | D6: Year 2 | E6: Gains | F6: Gain(Loss) | G6: Percentage | I6: Caution: if you
B7: For Year 2 Donors | C7: =D7-1 -> 2020 | D7: =StepByStep!$G$10 -> 2021 | E7: (Losses) | F7: Ratio | G7: Distribution | I7: enter data in this
C8: (A) | D8: (B) | E8: (C=B-A) | F8: (D%= | G8: (E%= | I8: worksheet, you
F9: C/totA) | G9: C/tots in C) | I9: will destroy the
A10: Gains | D10: Amount of Gifts | I10: formula cells.
B11: New | C11: n/a | D11: =FEPdata!E12 -> 236159.21 | E11: =D11 -> 236159.21 | F11: =E11/(C$22+0.00001) -> 0.1388912015 | G11: =E11/(E$14+0.00001) -> 0.1199637161
B12: Recaptured | C12: n/a | D12: =FEPdata!E13 -> 165875.69 | E12: =D12 -> 165875.69 | F12: =E12/(C$22+0.00001) -> 0.09755568664 | G12: =E12/(E$14+0.00001) -> 0.08426122441
B13: Upgraded | C13: =FEPdata!C14 -> 639185 | D13: =FEPdata!E14 -> 2205738.75 | E13: =D13-C13 -> 1566553.75 | F13: =E13/(C$22+0.00001) -> 0.921329863 | G13: =E13/(E$14+0.00001) -> 0.7957750595
B14: Subtotal gains | C14: =SUM(C11:C13) -> 639185 | D14: =SUM(D11:D13) -> 2607773.65 | E14: =D14-C14 -> 1968588.65 | F14: =E14/(C$22+0.00001) -> 1.157776751 | G14: =E14/(E$14+0.00001) -> 1
A15: Same | C15: =FEPdata!C15 -> 200771 | D15: =FEPdata!E15 -> 200771 | E15: =D15-C15 -> 0 | F15: =E15/(C$22+0.00001) -> 0
A16: Losses
B17: Downgraded | C17: =FEPdata!C16 -> 426229 | D17: =FEPdata!E16 -> 271544.53 | E17: =D17-C17 -> -154684.47 | F17: =E17/(C$22+0.00001) -> -0.09097384724 | G17: =E17/(E$20+0.00001) -> 0.2627036015
B18: Lapsed new | C18: =FEPdata!C17 -> 182435 | D18: n/a | E18: =-C18 -> -182435 | F18: =E18/(C$22+0.00001) -> -0.1072946355 | G18: =E18/(E$20+0.00001) -> 0.3098328587
B19: Lapsed repeat | C19: =FEPdata!C18 -> 251698 | D19: n/a | E19: =-C19 -> -251698 | F19: =E19/(C$22+0.00001) -> -0.1480299567 | G19: =E19/(E$20+0.00001) -> 0.4274635398
B20: Subtotal losses | C20: =SUM(C16:C19) -> 860362 | D20: =SUM(D16:D19) -> 271544.53 | E20: =D20-C20 -> -588817.47 | F20: =E20/(C$22+0.00001) -> -0.3462984395 | G20: =E20/(E$20+0.00001) -> 1
A22: Total - gifts | C22: =C14+C15+C20 -> 1700318 | D22: =D14+D15+D20 -> 3080089.18 | E22: =D22-C22 -> 1379771.18 | F22: =E22/(C$22+0.00001) -> 0.8114783117
F23: Overall rate of growth
K26: Gifts
J27: New | K27: =G11 -> 0.1199637161
J28: Recaptured | K28: =G12 -> 0.08426122441
J29: Upgraded | K29: =G13 -> 0.7957750595
J30: Total gains | K30: =G14 -> 1
J31: Downgraded | K31: =G17 -> 0.2627036015
J32: Laps new | K32: =G18 -> 0.3098328587
J33: Laps repeat | K33: =G19 -> 0.4274635398
J34: Total losses | K34: =G20 -> 1
A40: Definitions for Gain/Loss categories in GiG Reports:
A41: New – donors who never gave prior to year 2 (current year)
A42: Recaptured – previously lapsed donors who gave again in year 2.
A43: Upgraded – donors who gave more in year 2 than in year 1 (previous year).
A44: Same – donors who gave the same amount in both years.
A45: Downgraded – donors who gave less in year 2 than in year 1.
A46: Lapsed new – new, first-time donors in year 1 who did not give in year 2
A47: Lapsed repeat – other lapsed donors who gave in year 1 and prior years but not in year 2
A49: * Tables and figures in A Better Measure of Success article

Sheet Number of Donors - Ratios
A1: Number of Donors - Ratios | D1: Growth-in-Giving (GiG) Report
D2: By Fundraising Effectiveness Project
A3: [Table 5 *]
F4: Gains & Losses in Number of Donors for | G4: =StepByStep!$G$10 -> 2021
H5: Year 2
B6: Gain(Loss) Category | C6: Year 1 | D6: Year 2 | E6: Gains | F6: Gain/Loss | G6: Percentage | H6: Average | J6: Caution: if you
B7: For Year 2 Donors | C7: =D7-1 -> 2020 | D7: =StepByStep!$G$10 -> 2021 | E7: (Losses) | F7: Ratio | G7: Distribution | H7: Giftsize | J7: enter data in this
C8: (A) | D8: (B) | E8: (C=B-A) | F8: (D%= | G8: (E%= | H8: (F$= | J8: worksheet, you
F9: C/totA) | G9: C/tots in C) | H9: Gift$/B) | J9: will destroy the
A10: Gains | D10: Number of Donors | J10: formula cells.
B11: New | C11: n/a | D11: =FEPdata!D12 -> 1440 | E11: =D11 -> 1440 | F11: =E11/(C$22+0.00001) -> 0.3469043596 | G11: =E11/(E$14+0.00001) -> 0.7555089152 | H11: ='Core GiG Report'!D11/D11 -> 163.9994514
B12: Recaptured | C12: n/a | D12: =FEPdata!D13 -> 466 | E12: =D12 -> 466 | F12: =E12/(C$22+0.00001) -> 0.1122621052 | G12: =E12/(E$14+0.00001) -> 0.2444910795 | H12: ='Core GiG Report'!D12/D12 -> 355.9564163
B13: Upgraded | C13: =FEPdata!B14 -> 984 | D13: =FEPdata!D14 -> 984 | E13: =D13-C13 -> 0 | F13: =E13/(C$22+0.00001) -> 0 | G13: =E13/(E$14+0.00001) -> 0 | H13: ='Core GiG Report'!D13/D13 -> 2241.604421
B14: Subtotal gains | C14: =SUM(C11:C13) -> 984 | D14: =SUM(D11:D13) -> 2890 | E14: =D14-C14 -> 1906 | F14: =E14/(C$22+0.00001) -> 0.4591664648 | G14: =E14/(E$14+0.00001) -> 0.9999999948 | H14: ='Core GiG Report'!D14/D14 -> 902.3438235
A15: Same | C15: =FEPdata!B15 -> 735 | D15: =FEPdata!D15 -> 735 | E15: =D15-C15 -> 0 | F15: =E15/(C$22+0.00001) -> 0 | H15: ='Core GiG Report'!D15/D15 -> 273.1578231
A16: Losses
B17: Downgraded | C17: =FEPdata!B16 -> 772 | D17: =FEPdata!D16 -> 772 | E17: =D17-C17 -> 0 | F17: =E17/(C$22+0.00001) -> 0 | G17: =E17/(E$20+0.00001) -> 0 | H17: ='Core GiG Report'!D17/D17 -> 351.7416192
B18: Lapsed new | C18: =FEPdata!B17 -> 1121 | D18: n/a | E18: =-C18 -> -1121 | F18: =E18/(C$22+0.00001) -> -0.2700554077 | G18: =E18/(E$20+0.00001) -> 0.6753012089 | H18: n/a
B19: Lapsed repeat | C19: =FEPdata!B18 -> 539 | D19: n/a | E19: =-C19 -> -539 | F19: =E19/(C$22+0.00001) -> -0.129848229 | G19: =E19/(E$20+0.00001) -> 0.3246987971 | H19: n/a
B20: Subtotal losses | C20: =SUM(C16:C19) -> 2432 | D20: =SUM(D16:D19) -> 772 | E20: =D20-C20 -> -1660 | F20: =E20/(C$22+0.00001) -> -0.3999036367 | G20: =E20/(E$20+0.00001) -> 1.000000006 | H20: n/a
A22: Total - gifts | C22: =C14+C15+C20 -> 4151 | D22: =D14+D15+D20 -> 4397 | E22: =D22-C22 -> 246 | F22: =E22/(C$22+0.00001) -> 0.05926282809 | H22: ='Core GiG Report'!D22/D22 -> 700.4978804
F23: Overall rate of growth
K26: Gifts
J27: New | K27: =G11 -> 0.7555089152
J28: Recaptured | K28: =G12 -> 0.2444910795
J29: Upgraded | K29: =G13 -> 0
J30: Total gains | K30: =G14 -> 0.9999999948
J31: Downgraded | K31: =G17 -> 0
J32: Laps new | K32: =G18 -> 0.6753012089
J33: Laps repeat | K33: =G19 -> 0.3246987971
J34: Total losses | K34: =G20 -> 1.000000006
A40: Definitions for Gain/Loss categories in GiG Reports:
A41: New – donors who never gave prior to year 2 (current year)
A42: Recaptured – previously lapsed donors who gave again in year 2.
A43: Upgraded – donors who gave more in year 2 than in year 1 (previous year).
A44: Same – donors who gave the same amount in both years.
A45: Downgraded – donors who gave less in year 2 than in year 1.
A46: Lapsed new – new, first-time donors in year 1 who did not give in year 2
A47: Lapsed repeat – other lapsed donors who gave in year 1 and prior years but not in year 2
A49: * Tables and figures in A Better Measure of Success article

Sheet FEPdata
A1: FEPdata | F1: =TODAY() -> 2023-09-14 | H1: Sort Largest Year (col. G) - DESC | I1: 10:52:05 | M1: Last row | N1: =TODAY() -> 2023-09-14 | O1: 10:52:05 | Q1: Step | R1: Sub | S1: Start Sub | T1: End Sub | U1: Sub time | V1: Last cell
A2: =StepByStep!$A$3 -> 0 | E2: Current Year 2 | H2: 10:09:11 | M2: 16650 | O2: 10:54:33
A3: Growth-in-Giving is measured for Year 2: | H3: From --> | I3: =K8 -> 31 | J3: <---- ="K" & row | M3: 16650 | O3: =O2-O1 -> 00:02:28 | Q3: All | R3: FitnessAll | S3: 05:41:28 | T3: 07:37:36 | U3: =T3-S3 -> 01:56:08 | W3: Step 3 - Data2
D4: Year 2 | E4: =StepByStep!G10 -> 2021 | H4: To --> | I4: =L19 -> 16650 | J4: <---- ="L" & row | O4: FEPdata | Q4: 1 | R4: SortData | S4: 10:31:25 | T4: 10:31:25 | U4: 00:00:00 | W4: Amt | X4: Gifts
A5: All donors | B5: All | E5: =StepByStep!$G$7 -> 12 | F5: <-- Year-end month | Q5: 2 | R5: DateYr | S5: 10:34:52 | T5: 10:38:30 | U5: 00:03:38 | W5: Control | X5: Control
A6: Gain(Loss) Data - Software Extract for Year 2 and Year 1 data | K6: Col K | L6: Col L | Q6: 3 | R6: Data2 | S6: 10:38:30 | T6: 10:50:29 | U6: 00:11:59 | W6: =SUM(C30:C200001) -> 7676343.18 | X6: =SUM(D30:D200001) -> 59479 | Y6: <--- FEPdata worksheet
J7: Row | K7: From | L7: To | M7: Count | Q7: 4 | R7: FirstYr | S7: 10:50:29 | T7: 10:51:03 | U7: 00:00:34 | W7: =SUM(Data!#REF!:'Data'!C440520) ->  | X7: =Data!E2-1 -> 59479 | Y7: <--- "Data" worksheet
B8: Number of | C8: Amount of | D8: Number of | E8: Amount of | H8: 5,000 up | I8: 25,000 & up | J8: 8 | K8: 31 | L8: 85 | M8: =L8-K8+1 -> 55 | Q8: 5 | R8: LargestYrAmt | S8: 10:51:03 | T8: 10:51:33 | U8: 00:00:30 | W8: =W6-W7 ->  | X8: =X6-X7 -> 0 | Y8: <--- needs to be zero
A9: Gain(Loss) | B9: =D9-1 -> 2020 | C9: =E9-1 -> 2020 | D9: =$E4 -> 2021 | E9: =$E4 -> 2021 | I9: 10,000-24,999 | J9: 9 | K9: =L8+1 -> 86 | L9: 199 | M9: =L9-L8 -> 114 | Q9: 6 | R9: FEPdataToRow | S9: 10:51:33 | T9: 10:52:03 | U9: 00:00:30
A10: Category | B10: Donors | C10: Gifts ($) | D10: Donors | E10: Gifts ($) | I10: 5,000-9,999 | J10: 10 | K10: 200 | L10: 323 | M10: 124 | Q10: 7 | R10: CopyData2 | S10: 10:52:03 | T10: 10:52:05 | U10: 00:00:02
H11: 1,000-4,999 | I11: 2,500-4,999 | J11: 11 | K11: 324 | L11: 540 | M11: 217 | Q11: 8 | R11: FEP5DataSets | S11: 10:52:05 | T11: 10:57:03 | U11: =T11-S11 -> 00:04:58
A12: New | B12: n/a | C12: n/a | D12: 1440 | E12: 236159.21 | I12: 1,000-2,499 | J12: 12 | K12: 541 | L12: 1477 | M12: 937 | R12: Total - 1 to 8 | U12: =SUM(U4:U11) -> 00:22:11
A13: Recaptured | B13: n/a | C13: n/a | D13: 466 | E13: 165875.69 | H13: 250-999 | I13: 500-999 | J13: 13 | K13: 1478 | L13: 2866 | M13: 1389
A14: Upgraded | B14: 984 | C14: 639185 | D14: 984 | E14: 2205738.75 | I14: 250-499 | J14: 14 | K14: 2867 | L14: 5008 | M14: 2142
A15: Same | B15: 735 | C15: 200771 | D15: 735 | E15: 200771 | H15: 100-249 | I15: 100-249 | J15: 15 | K15: 5009 | L15: 9493 | M15: 4485 | R15: FEPdataToRpt | S15: 09:30:02 | T15: 09:56:00 | U15: =T15-S15 -> 00:25:58 | V15: <--old
A16: Downgraded | B16: 772 | C16: 426229 | D16: 772 | E16: 271544.53 | H16: Under 100 | I16: 50-99 | J16: 16 | K16: 9494 | L16: 12540 | M16: 3047 | R16: Ignore | T16: Delete from PSI, etc.
A17: Lapsed new | B17: 1121 | C17: 182435 | D17: n/a | E17: n/a | I17: 25-49 | J17: 17 | K17: 12541 | L17: 15012 | M17: 2472
A18: Lapsed repeat | B18: 539 | C18: 251698 | D18: n/a | E18: n/a | F18: GiG# | G18: GiG$ | I18: 10-24 | J18: 18 | K18: 15013 | L18: 16452 | M18: 1440 | T18: Ignore
A19: Total | B19: =SUM(B12:B18) -> 4151 | C19: =SUM(C12:C18) -> 1700318 | D19: =SUM(D12:D18) -> 4397 | E19: =SUM(E12:E18) -> 3080089.18 | F19: =(D19-B19)/B19 -> 0.05926282823 | G19: =(E19-C19)/C19 -> 0.8114783117 | I19: Under 10 | J19: 19 | K19: 16453 | L19: 16650 | M19: 198 | P19: Must run all steps in order!! | T19: Leaves 1st year data in FEP100dn, etc!!
A20: 36 hilighted data fields are retrieved from gift transaction data below | M20: =SUM(M8:M19) -> 16620 | T20: Generates "FEPrptData" worksheet - Trend analysis
B21: Number | C21: Gift$
A22: New in year 1 | B22: 1543 | C22: 251566 | D22: <-- i.e., last year's new donors and gift$
A23: Database EOY1 | B23: 7433 | D23: <-- i.e., Total number of donors on file at end of Year1 | K23: 8873 | L23: <-- i.e., TOTAL number of donors on file
A24: One time donors | B24: 3654 | C24: 599815 | D24: <-- i.e., Number of one-time donors and gifts | K24: 15958 | L24: <-- Total # of gifts in Year2 (vs #donors)
A25: Recaptured lapsed 1 year | D25: 352 | E25: 147958.12 | F25: <-- Portion of Recaptured | K25: 1072 | L25: 3844015.06 | M25: <-- Total # & $ for monthly donors in database
A26: Monthly donors in Year2 | D26: 825 | E26: 1896030.06 | F26: <-- i.e., Year2 donors making 6 to 24 gifts. | K26: 43 | L26: 12221 | M26: <-- Portion NEW monthly donors in Year2 | S26: <-- deletes A31:P200000
B28: [Asc] | D28: Gifts | F28: First | G28: Largest | H28: Monthly | I28: Gain/Loss | L28: Years of | M28: One time | N28: Recap 1
A29: Acct | B29: Year | C29: AmtYr | D29: Per year | E29: Seq# | F29: Year | G29: Year | H29: Giving | I29: Category | L29: Giving | M29: Donor | N29: Donor
A30: A | B30: B | C30: C | D30: D | E30: E | F30: F | G30: G | H30: H | I30: I | L30: L | M30: M | N30: N
A31: 105908 | B31: 2019 | C31: 75609 | D31: 5 | E31: 13099 | F31: 2019 | G31: 1130936.65 | L31: 1
A32: 105908 | B32: 2020 | C32: 177497 | D32: 8 | E32: 13100 | F32: 2019 | G32: 1130936.65 | H32: 8 | I32: Upgraded | L32: 2
A33: 105908 | B33: 2021 | C33: 1130936.65 | D33: 10 | E33: 13101 | F33: 2019 | G33: 1130936.65 | H33: 10 | L33: 3
A34: 101943 | B34: 2018 | C34: 350 | D34: 2 | E34: 5302 | F34: 2018 | G34: 160882 | L34: 1
A35: 101943 | B35: 2019 | C35: 200 | D35: 2 | E35: 5303 | F35: 2018 | G35: 160882 | L35: 2
A36: 101943 | B36: 2020 | C36: 160882 | D36: 5 | E36: 5304 | F36: 2018 | G36: 160882 | I36: Lapsed-repeat | L36: 3
A37: 100658 | B37: 2018 | C37: 8049 | D37: 3 | E37: 1862 | F37: 2018 | G37: 124011.4 | L37: 1
A38: 100658 | B38: 2019 | C38: 11382 | D38: 2 | E38: 1863 | F38: 2018 | G38: 124011.4 | L38: 2
A39: 100658 | B39: 2020 | C39: 20166 | D39: 2 | E39: 1864 | F39: 2018 | G39: 124011.4 | I39: Upgraded | L39: 3
A40: 100658 | B40: 2021 | C40: 124011.4 | D40: 5 | E40: 1865 | F40: 2018 | G40: 124011.4 | L40: 4
A41: 101199 | B41: 2018 | C41: 89648 | D41: 20 | E41: 3317 | F41: 2018 | G41: 91814 | H41: 20 | L41: 1
A42: 101199 | B42: 2019 | C42: 91814 | D42: 1 | E42: 3318 | F42: 2018 | G42: 91814 | L42: 2
A43: 107204 | B43: 2020 | C43: 71700 | D43: 1 | E43: 14807 | F43: 2020 | G43: 71700 | I43: Lapsed-new | L43: 1 | M43: 1
A44: 100021 | B44: 2018 | C44: 26249 | D44: 86 | E44: 58 | F44: 2018 | G44: 50501 | H44: 86 | L44: 1
A45: 100021 | B45: 2019 | C45: 50501 | D45: 116 | E45: 59 | F45: 2018 | G45: 50501 | H45: 116 | L45: 2
A46: 100021 | B46: 2020 | C46: 15689 | D46: 60 | E46: 60 | F46: 2018 | G46: 50501 | H46: 60 | I46: Downgraded | L46: 3
A47: 100021 | B47: 2021 | C47: 14995.05 | D47: 64 | E47: 61 | F47: 2018 | G47: 50501 | H47: 64 | L47: 4
A48: 100997 | B48: 2019 | C48: 50000 | D48: 1 | E48: 2753 | F48: 2019 | G48: 50000 | L48: 1 | M48: 1
A49: 101216 | B49: 2021 | C49: 49682.25 | D49: 1 | E49: 3361 | F49: 2021 | G49: 49682.25 | I49: New | L49: 1 | M49: 1
A50: 104021 | B50: 2018 | C50: 45902 | D50: 1 | E50: 10375 | F50: 2018 | G50: 45902 | L50: 1 | M50: 1
A51: 102324 | B51: 2018 | C51: 500 | D51: 1 | E51: 6244 | F51: 2018 | G51: 40000 | L51: 1
A52: 102324 | B52: 2019 | C52: 40000 | D52: 1 | E52: 6245 | F52: 2018 | G52: 40000 | L52: 2
A53: 104921 | B53: 2018 | C53: 3998 | D53: 6 | E53: 11707 | F53: 2018 | G53: 38992 | H53: 6 | L53: 1
A54: 104921 | B54: 2019 | C54: 14092 | D54: 13 | E54: 11708 | F54: 2018 | G54: 38992 | H54: 13 | L54: 2
A55: 104921 | B55: 2020 | C55: 15092 | D55: 14 | E55: 11709 | F55: 2018 | G55: 38992 | H55: 14 | I55: Upgraded | L55: 3
A56: 104921 | B56: 2021 | C56: 38992 | D56: 13 | E56: 11710 | F56: 2018 | G56: 38992 | H56: 13 | L56: 4
A57: 100608 | B57: 2018 | C57: 35000 | D57: 1 | E57: 1735 | F57: 2018 | G57: 35000 | L57: 1 | M57: 1
A58: 101989 | B58: 2018 | C58: 40 | D58: 2 | E58: 5417 | F58: 2018 | G58: 33621.93 | L58: 1
A59: 101989 | B59: 2019 | C59: 15000 | D59: 1 | E59: 5418 | F59: 2018 | G59: 33621.93 | L59: 2
A60: 101989 | B60: 2021 | C60: 33621.93 | D60: 1 | E60: 5419 | F60: 2018 | G60: 33621.93 | I60: Recap | L60: 3 | N60: Recap1
A61: 101081 | B61: 2018 | C61: 500 | D61: 1 | E61: 2989 | F61: 2018 | G61: 30000 | L61: 1
A62: 101081 | B62: 2019 | C62: 500 | D62: 1 | E62: 2990 | F62: 2018 | G62: 30000 | L62: 2
A63: 101081 | B63: 2020 | C63: 500 | D63: 1 | E63: 2991 | F63: 2018 | G63: 30000 | I63: Upgraded | L63: 3
A64: 101081 | B64: 2021 | C64: 30000 | D64: 1 | E64: 2992 | F64: 2018 | G64: 30000 | L64: 4
A65: 100857 | B65: 2018 | C65: 5600 | D65: 3 | E65: 2391 | F65: 2018 | G65: 29223 | L65: 1
A66: 100857 | B66: 2019 | C66: 3050 | D66: 2 | E66: 2392 | F66: 2018 | G66: 29223 | L66: 2
A67: 100857 | B67: 2020 | C67: 3500 | D67: 1 | E67: 2393 | F67: 2018 | G67: 29223 | I67: Upgraded | L67: 3
A68: 100857 | B68: 2021 | C68: 29223 | D68: 6 | E68: 2394 | F68: 2018 | G68: 29223 | H68: 6 | L68: 4
A69: 103773 | B69: 2018 | C69: 25000 | D69: 3 | E69: 9841 | F69: 2018 | G69: 27500 | L69: 1
A70: 103773 | B70: 2019 | C70: 15000 | D70: 2 | E70: 9842 | F70: 2018 | G70: 27500 | L70: 2
A71: 103773 | B71: 2020 | C71: 22500 | D71: 3 | E71: 9843 | F71: 2018 | G71: 27500 | I71: Upgraded | L71: 3
A72: 103773 | B72: 2021 | C72: 27500 | D72: 3 | E72: 9844 | F72: 2018 | G72: 27500 | L72: 4
A73: 105421 | B73: 2019 | C73: 25300 | D73: 4 | E73: 12440 | F73: 2019 | G73: 25300 | L73: 1
A74: 105421 | B74: 2020 | C74: 900 | D74: 3 | E74: 12441 | F74: 2019 | G74: 25300 | I74: Downgraded | L74: 2
A75: 105421 | B75: 2021 | C75: 700 | D75: 2 | E75: 12442 | F75: 2019 | G75: 25300 | L75: 3
A76: 100183 | B76: 2018 | C76: 5000 | D76: 1 | E76: 545 | F76: 2018 | G76: 25000 | L76: 1
A77: 100183 | B77: 2019 | C77: 25000 | D77: 1 | E77: 546 | F77: 2018 | G77: 25000 | L77: 2
A78: 102202 | B78: 2018 | C78: 2000 | D78: 2 | E78: 5921 | F78: 2018 | G78: 25000 | L78: 1
A79: 102202 | B79: 2019 | C79: 2550 | D79: 2 | E79: 5922 | F79: 2018 | G79: 25000 | L79: 2
A80: 102202 | B80: 2020 | C80: 5100 | D80: 2 | E80: 5923 | F80: 2018 | G80: 25000 | I80: Upgraded | L80: 3
A81: 102202 | B81: 2021 | C81: 25000 | D81: 1 | E81: 5924 | F81: 2018 | G81: 25000 | L81: 4
A82: 102861 | B82: 2018 | C82: 5000 | D82: 2 | E82: 7661 | F82: 2018 | G82: 25000 | L82: 1
A83: 102861 | B83: 2019 | C83: 7000 | D83: 2 | E83: 7662 | F83: 2018 | G83: 25000 | L83: 2
A84: 102861 | B84: 2021 | C84: 25000 | D84: 1 | E84: 7663 | F84: 2018 | G84: 25000 | I84: Recap | L84: 3 | N84: Recap1
A85: 104112 | B85: 2018 | C85: 25000 | D85: 2 | E85: 10509 | F85: 2018 | G85: 25000 | L85: 1 | M85: 1
A86: 102586 | B86: 2018 | C86: 5817 | D86: 35 | E86: 6918 | F86: 2018 | G86: 23468 | H86: 35 | L86: 1
A87: 102586 | B87: 2019 | C87: 3118 | D87: 23 | E87: 6919 | F87: 2018 | G87: 23468 | H87: 23 | L87: 2
A88: 102586 | B88: 2020 | C88: 3668 | D88: 21 | E88: 6920 | F88: 2018 | G88: 23468 | H88: 21 | I88: Upgraded | L88: 3
A89: 102586 | B89: 2021 | C89: 23468 | D89: 21 | E89: 6921 | F89: 2018 | G89: 23468 | H89: 21 | L89: 4
A90: 106061 | B90: 2019 | C90: 20000 | D90: 1 | E90: 13301 | F90: 2019 | G90: 22500 | L90: 1
A91: 106061 | B91: 2020 | C91: 4000 | D91: 1 | E91: 13302 | F91: 2019 | G91: 22500 | I91: Upgraded | L91: 2
A92: 106061 | B92: 2021 | C92: 22500 | D92: 1 | E92: 13303 | F92: 2019 | G92: 22500 | L92: 3
A93: 100530 | B93: 2018 | C93: 18433 | D93: 9 | E93: 1526 | F93: 2018 | G93: 22495 | H93: 9 | L93: 1
A94: 100530 | B94: 2019 | C94: 10140 | D94: 8 | E94: 1527 | F94: 2018 | G94: 22495 | H94: 8 | L94: 2
A95: 100530 | B95: 2020 | C95: 20860 | D95: 8 | E95: 1528 | F95: 2018 | G95: 22495 | H95: 8 | I95: Upgraded | L95: 3
A96: 100530 | B96: 2021 | C96: 22495 | D96: 10 | E96: 1529 | F96: 2018 | G96: 22495 | H96: 10 | L96: 4
A97: 100046 | B97: 2018 | C97: 2300 | D97: 8 | E97: 128 | F97: 2018 | G97: 21300 | H97: 8 | L97: 1
A98: 100046 | B98: 2019 | C98: 2100 | D98: 6 | E98: 129 | F98: 2018 | G98: 21300 | H98: 6 | L98: 2
A99: 100046 | B99: 2020 | C99: 3085 | D99: 9 | E99: 130 | F99: 2018 | G99: 21300 | H99: 9 | I99: Upgraded | L99: 3
A100: 100046 | B100: 2021 | C100: 21300 | D100: 4 | E100: 131 | F100: 2018 | G100: 21300 | L100: 4
A101: 100836 | B101: 2018 | C101: 11153 | D101: 6 | E101: 2332 | F101: 2018 | G101: 21242.5 | H101: 6 | L101: 1
A102: 100836 | B102: 2019 | C102: 18699 | D102: 6 | E102: 2333 | F102: 2018 | G102: 21242.5 | H102: 6 | L102: 2
A103: 100836 | B103: 2020 | C103: 11243 | D103: 14 | E103: 2334 | F103: 2018 | G103: 21242.5 | H103: 14 | I103: Upgraded | L103: 3
A104: 100836 | B104: 2021 | C104: 21242.5 | D104: 18 | E104: 2335 | F104: 2018 | G104: 21242.5 | H104: 18 | L104: 4
A105: 100555 | B105: 2018 | C105: 20000 | D105: 1 | E105: 1600 | F105: 2018 | G105: 20000 | L105: 1
A106: 100555 | B106: 2019 | C106: 20000 | D106: 1 | E106: 1601 | F106: 2018 | G106: 20000 | L106: 2
A107: 100555 | B107: 2020 | C107: 20000 | D107: 1 | E107: 1602 | F107: 2018 | G107: 20000 | I107: Lapsed-repeat | L107: 3
A108: 101257 | B108: 2021 | C108: 20000 | D108: 1 | E108: 3480 | F108: 2021 | G108: 20000 | I108: New | L108: 1 | M108: 1
A109: 101632 | B109: 2018 | C109: 500 | D109: 1 | E109: 4488 | F109: 2018 | G109: 20000 | L109: 1
A110: 101632 | B110: 2020 | C110: 5000 | D110: 1 | E110: 4489 | F110: 2018 | G110: 20000 | I110: Upgraded | L110: 2
A111: 101632 | B111: 2021 | C111: 20000 | D111: 3 | E111: 4490 | F111: 2018 | G111: 20000 | L111: 3
A112: 100180 | B112: 2018 | C112: 9384 | D112: 13 | E112: 534 | F112: 2018 | G112: 19084 | H112: 13 | L112: 1
A113: 100180 | B113: 2019 | C113: 13084 | D113: 13 | E113: 535 | F113: 2018 | G113: 19084 | H113: 13 | L113: 2
A114: 100180 | B114: 2020 | C114: 13084 | D114: 13 | E114: 536 | F114: 2018 | G114: 19084 | H114: 13 | I114: Upgraded | L114: 3
A115: 100180 | B115: 2021 | C115: 19084 | D115: 14 | E115: 537 | F115: 2018 | G115: 19084 | H115: 14 | L115: 4
A116: 102789 | B116: 2018 | C116: 4700 | D116: 21 | E116: 7461 | F116: 2018 | G116: 18300 | H116: 21 | L116: 1
A117: 102789 | B117: 2019 | C117: 8454 | D117: 19 | E117: 7462 | F117: 2018 | G117: 18300 | H117: 19 | L117: 2
A118: 102789 | B118: 2020 | C118: 14020 | D118: 24 | E118: 7463 | F118: 2018 | G118: 18300 | H118: 24 | I118: Upgraded | L118: 3
A119: 102789 | B119: 2021 | C119: 18300 | D119: 24 | E119: 7464 | F119: 2018 | G119: 18300 | H119: 24 | L119: 4
A120: 100558 | B120: 2018 | C120: 9703 | D120: 6 | E120: 1608 | F120: 2018 | G120: 17650 | H120: 6 | L120: 1
A121: 100558 | B121: 2019 | C121: 11398 | D121: 10 | E121: 1609 | F121: 2018 | G121: 17650 | H121: 10 | L121: 2
A122: 100558 | B122: 2020 | C122: 14200 | D122: 6 | E122: 1610 | F122: 2018 | G122: 17650 | H122: 6 | I122: Upgraded | L122: 3
A123: 100558 | B123: 2021 | C123: 17650 | D123: 6 | E123: 1611 | F123: 2018 | G123: 17650 | H123: 6 | L123: 4
A124: 104719 | B124: 2018 | C124: 16000 | D124: 1 | E124: 11419 | F124: 2018 | G124: 16000 | L124: 1 | M124: 1
A125: 101389 | B125: 2018 | C125: 1200 | D125: 12 | E125: 3822 | F125: 2018 | G125: 15900 | H125: 12 | L125: 1
A126: 101389 | B126: 2019 | C126: 1200 | D126: 12 | E126: 3823 | F126: 2018 | G126: 15900 | H126: 12 | L126: 2
A127: 101389 | B127: 2020 | C127: 1100 | D127: 11 | E127: 3824 | F127: 2018 | G127: 15900 | H127: 11 | I127: Upgraded | L127: 3
A128: 101389 | B128: 2021 | C128: 15900 | D128: 11 | E128: 3825 | F128: 2018 | G128: 15900 | H128: 11 | L128: 4
A129: 108570 | B129: 2021 | C129: 15450 | D129: 1 | E129: 16317 | F129: 2021 | G129: 15450 | I129: New | L129: 1 | M129: 1
A130: 100181 | B130: 2018 | C130: 10100 | D130: 3 | E130: 538 | F130: 2018 | G130: 15000 | L130: 1
A131: 100181 | B131: 2019 | C131: 10200 | D131: 2 | E131: 539 | F131: 2018 | G131: 15000 | L131: 2
A132: 100181 | B132: 2020 | C132: 15000 | D132: 2 | E132: 540 | F132: 2018 | G132: 15000 | I132: Downgraded | L132: 3
A133: 100181 | B133: 2021 | C133: 7750 | D133: 2 | E133: 541 | F133: 2018 | G133: 15000 | L133: 4
A134: 104198 | B134: 2018 | C134: 15000 | D134: 1 | E134: 10629 | F134: 2018 | G134: 15000 | L134: 1 | M134: 1
A135: 105010 | B135: 2018 | C135: 15000 | D135: 2 | E135: 11825 | F135: 2018 | G135: 15000 | L135: 1 | M135: 1
A136: 103218 | B136: 2018 | C136: 300 | D136: 12 | E136: 8529 | F136: 2018 | G136: 14209 | H136: 12 | L136: 1
A137: 103218 | B137: 2019 | C137: 14209 | D137: 16 | E137: 8530 | F137: 2018 | G137: 14209 | H137: 16 | L137: 2
A138: 103218 | B138: 2020 | C138: 6902 | D138: 14 | E138: 8531 | F138: 2018 | G138: 14209 | H138: 14 | I138: Upgraded | L138: 3
A139: 103218 | B139: 2021 | C139: 8645 | D139: 14 | E139: 8532 | F139: 2018 | G139: 14209 | H139: 14 | L139: 4
A140: 101527 | B140: 2018 | C140: 1000 | D140: 1 | E140: 4199 | F140: 2018 | G140: 14100 | L140: 1
A141: 101527 | B141: 2019 | C141: 2600 | D141: 4 | E141: 4200 | F141: 2018 | G141: 14100 | L141: 2
A142: 101527 | B142: 2020 | C142: 2500 | D142: 3 | E142: 4201 | F142: 2018 | G142: 14100 | I142: Upgraded | L142: 3
A143: 101527 | B143: 2021 | C143: 14100 | D143: 4 | E143: 4202 | F143: 2018 | G143: 14100 | L143: 4
A144: 102022 | B144: 2018 | C144: 2645 | D144: 15 | E144: 5502 | F144: 2018 | G144: 13350 | H144: 15 | L144: 1
A145: 102022 | B145: 2019 | C145: 2350 | D145: 13 | E145: 5503 | F145: 2018 | G145: 13350 | H145: 13 | L145: 2
A146: 102022 | B146: 2020 | C146: 3600 | D146: 14 | E146: 5504 | F146: 2018 | G146: 13350 | H146: 14 | I146: Upgraded | L146: 3
A147: 102022 | B147: 2021 | C147: 13350 | D147: 15 | E147: 5505 | F147: 2018 | G147: 13350 | H147: 15 | L147: 4
A148: 100108 | B148: 2018 | C148: 11000 | D148: 13 | E148: 311 | F148: 2018 | G148: 13000 | H148: 13 | L148: 1
A149: 100108 | B149: 2019 | C149: 13000 | D149: 15 | E149: 312 | F149: 2018 | G149: 13000 | H149: 15 | L149: 2
A150: 100108 | B150: 2020 | C150: 2500 | D150: 4 | E150: 313 | F150: 2018 | G150: 13000 | I150: Downgraded | L150: 3
A151: 100108 | B151: 2021 | C151: 2000 | D151: 2 | E151: 314 | F151: 2018 | G151: 13000 | L151: 4
A152: 101733 | B152: 2018 | C152: 12598 | D152: 3 | E152: 4745 | F152: 2018 | G152: 12598 | L152: 1
A153: 101733 | B153: 2019 | C153: 500 | D153: 1 | E153: 4746 | F153: 2018 | G153: 12598 | L153: 2
A154: 101733 | B154: 2020 | C154: 4500 | D154: 2 | E154: 4747 | F154: 2018 | G154: 12598 | I154: Upgraded | L154: 3
A155: 101733 | B155: 2021 | C155: 7550 | D155: 5 | E155: 4748 | F155: 2018 | G155: 12598 | L155: 4
A156: 100506 | B156: 2018 | C156: 600 | D156: 2 | E156: 1459 | F156: 2018 | G156: 12500 | L156: 1
A157: 100506 | B157: 2019 | C157: 1000 | D157: 1 | E157: 1460 | F157: 2018 | G157: 12500 | L157: 2
A158: 100506 | B158: 2021 | C158: 12500 | D158: 2 | E158: 1461 | F158: 2018 | G158: 12500 | I158: Recap | L158: 3 | N158: Recap1
A159: 103369 | B159: 2018 | C159: 1068 | D159: 24 | E159: 8893 | F159: 2018 | G159: 12268 | H159: 24 | L159: 1
A160: 103369 | B160: 2019 | C160: 1068 | D160: 24 | E160: 8894 | F160: 2018 | G160: 12268 | H160: 24 | L160: 2
A161: 103369 | B161: 2020 | C161: 5068 | D161: 36 | E161: 8895 | F161: 2018 | G161: 12268 | H161: 36 | I161: Upgraded | L161: 3
A162: 103369 | B162: 2021 | C162: 12268 | D162: 37 | E162: 8896 | F162: 2018 | G162: 12268 | H162: 37 | L162: 4
A163: 107411 | B163: 2020 | C163: 11000 | D163: 1 | E163: 15057 | F163: 2020 | G163: 11000 | I163: Lapsed-new | L163: 1 | M163: 1
A164: 101685 | B164: 2018 | C164: 5834 | D164: 15 | E164: 4625 | F164: 2018 | G164: 10768 | H164: 15 | L164: 1
A165: 101685 | B165: 2019 | C165: 2284 | D165: 16 | E165: 4626 | F165: 2018 | G165: 10768 | H165: 16 | L165: 2
A166: 101685 | B166: 2020 | C166: 5704 | D166: 21 | E166: 4627 | F166: 2018 | G166: 10768 | H166: 21 | I166: Upgraded | L166: 3
A167: 101685 | B167: 2021 | C167: 10768 | D167: 25 | E167: 4628 | F167: 2018 | G167: 10768 | H167: 25 | L167: 4
A168: 100188 | B168: 2018 | C168: 4102 | D168: 1 | E168: 558 | F168: 2018 | G168: 10600 | L168: 1
A169: 100188 | B169: 2019 | C169: 5449 | D169: 2 | E169: 559 | F169: 2018 | G169: 10600 | L169: 2
A170: 100188 | B170: 2020 | C170: 5500 | D170: 2 | E170: 560 | F170: 2018 | G170: 10600 | I170: Upgraded | L170: 3
A171: 100188 | B171: 2021 | C171: 10600 | D171: 2 | E171: 561 | F171: 2018 | G171: 10600 | L171: 4
A172: 107554 | B172: 2021 | C172: 10316.71 | D172: 1 | E172: 15233 | F172: 2021 | G172: 10316.71 | I172: New | L172: 1 | M172: 1
A173: 103163 | B173: 2018 | C173: 10000 | D173: 1 | E173: 8375 | F173: 2018 | G173: 10100 | L173: 1
A174: 103163 | B174: 2019 | C174: 10000 | D174: 1 | E174: 8376 | F174: 2018 | G174: 10100 | L174: 2
A175: 103163 | B175: 2020 | C175: 10100 | D175: 2 | E175: 8377 | F175: 2018 | G175: 10100 | I175: Downgraded | L175: 3
A176: 103163 | B176: 2021 | C176: 10000 | D176: 1 | E176: 8378 | F176: 2018 | G176: 10100 | L176: 4
A177: 106802 | B177: 2020 | C177: 95 | D177: 1 | E177: 14332 | F177: 2020 | G177: 10100 | I177: Upgraded | L177: 1
A178: 106802 | B178: 2021 | C178: 10100 | D178: 2 | E178: 14333 | F178: 2020 | G178: 10100 | L178: 2
A179: 100165 | B179: 2019 | C179: 100 | D179: 1 | E179: 489 | F179: 2019 | G179: 10000 | L179: 1
A180: 100165 | B180: 2020 | C180: 200 | D180: 1 | E180: 490 | F180: 2019 | G180: 10000 | I180: Upgraded | L180: 2
A181: 100165 | B181: 2021 | C181: 10000 | D181: 1 | E181: 491 | F181: 2019 | G181: 10000 | L181: 3
A182: 100586 | B182: 2018 | C182: 3000 | D182: 3 | E182: 1683 | F182: 2018 | G182: 10000 | L182: 1
A183: 100586 | B183: 2019 | C183: 2000 | D183: 2 | E183: 1684 | F183: 2018 | G183: 10000 | L183: 2
A184: 100586 | B184: 2020 | C184: 3000 | D184: 2 | E184: 1685 | F184: 2018 | G184: 10000 | I184: Upgraded | L184: 3
A185: 100586 | B185: 2021 | C185: 10000 | D185: 1 | E185: 1686 | F185: 2018 | G185: 10000 | L185: 4
A186: 102381 | B186: 2018 | C186: 10000 | D186: 1 | E186: 6382 | F186: 2018 | G186: 10000 | L186: 1
A187: 102381 | B187: 2019 | C187: 10000 | D187: 1 | E187: 6383 | F187: 2018 | G187: 10000 | L187: 2
A188: 102385 | B188: 2018 | C188: 5050 | D188: 2 | E188: 6392 | F188: 2018 | G188: 10000 | L188: 1
A189: 102385 | B189: 2019 | C189: 5000 | D189: 1 | E189: 6393 | F189: 2018 | G189: 10000 | L189: 2
A190: 102385 | B190: 2020 | C190: 10000 | D190: 1 | E190: 6394 | F190: 2018 | G190: 10000 | I190: Same | L190: 3
A191: 102385 | B191: 2021 | C191: 10000 | D191: 1 | E191: 6395 | F191: 2018 | G191: 10000 | L191: 4
A192: 102542 | B192: 2018 | C192: 250 | D192: 1 | E192: 6803 | F192: 2018 | G192: 10000 | L192: 1
A193: 102542 | B193: 2019 | C193: 300 | D193: 1 | E193: 6804 | F193: 2018 | G193: 10000 | L193: 2
A194: 102542 | B194: 2020 | C194: 500 | D194: 1 | E194: 6805 | F194: 2018 | G194: 10000 | I194: Upgraded | L194: 3
A195: 102542 | B195: 2021 | C195: 10000 | D195: 1 | E195: 6806 | F195: 2018 | G195: 10000 | L195: 4
A196: 104487 | B196: 2018 | C196: 10000 | D196: 2 | E196: 11053 | F196: 2018 | G196: 10000 | L196: 1 | M196: 1
A197: 106434 | B197: 2019 | C197: 10000 | D197: 1 | E197: 13812 | F197: 2019 | G197: 10000 | L197: 1
A198: 106434 | B198: 2020 | C198: 4000 | D198: 2 | E198: 13813 | F198: 2019 | G198: 10000 | I198: Downgraded | L198: 2
A199: 106434 | B199: 2021 | C199: 2000 | D199: 1 | E199: 13814 | F199: 2019 | G199: 10000 | L199: 3
A200: 100456 | B200: 2018 | C200: 3720 | D200: 25 | E200: 1318 | F200: 2018 | G200: 8220 | H200: 25 | L200: 1
A201: 100456 | B201: 2019 | C201: 4220 | D201: 26 | E201: 1319 | F201: 2018 | G201: 8220 | H201: 26 | L201: 2
... 4299 more rows

Sheet FEP100Dn
A1: FEP100Dn | C1: Fundraising Effectiveness Survey - 2012 | G1: =TODAY() -> 2023-09-14 | I1: Sort Largest Year (col. G) - DESC | J1: 15:41:59 | N1: =TODAY() -> 2023-09-14 | O1: 10:55:50
A2: =StepByStep!$A$3 -> 0 | O2: 10:57:03
A3: Growth-in-Giving is measured for Year 2: | H3: From --> | I3: =K16 -> 9494 | J3: <---- ="K" & row | O3: =O2-O1 -> 00:01:13
D4: Year 2 | E4: =FEPdata!E4 -> 2021 | H4: To --> | I4: =L19 -> 16650 | J4: <---- ="L" & row | O4: FEPdata
A5: Under $100 | B5: A 100 dn | E5: =StepByStep!$G$7 -> 12 | F5: <-- Year-end month
A6: Gain(Loss) Data - Software Extract for Year 2 and Year 1 data | K6: Col K | L6: Col L
J7: Row | K7: From | L7: To | M7: Count
B8: Number of | C8: Amount of | D8: Number of | E8: Amount of | H8: 5,000 up | I8: 25,000 & up | J8: 8 | K8: 31 | L8: 85 | M8: =L8-K8+1 -> 55
A9: Gain(Loss) | B9: =D9-1 -> 2020 | C9: =E9-1 -> 2020 | D9: =$E4 -> 2021 | E9: =$E4 -> 2021 | I9: 10,000-24,999 | J9: 9 | K9: =L8+1 -> 86 | L9: 199 | M9: =L9-L8 -> 114
A10: Category | B10: Donors | C10: Gifts ($) | D10: Donors | E10: Gifts ($) | I10: 5,000-9,999 | J10: 10 | K10: 200 | L10: 323 | M10: 124
H11: 1,000-4,999 | I11: 2,500-4,999 | J11: 11 | K11: 324 | L11: 540 | M11: 217
A12: New | B12: n/a | C12: n/a | D12: 1020 | E12: 35131.59 | I12: 1,000-2,499 | J12: 12 | K12: 541 | L12: 1477 | M12: 937
A13: Recaptured | B13: n/a | C13: n/a | D13: 237 | E13: 8702.7 | H13: 250-999 | I13: 500-999 | J13: 13 | K13: 1478 | L13: 2866 | M13: 1389
A14: Upgraded | B14: 217 | C14: 5922 | D14: 217 | E14: 10468.63 | I14: 250-499 | J14: 14 | K14: 2867 | L14: 5008 | M14: 2142
A15: Same | B15: 252 | C15: 9049 | D15: 252 | E15: 9049 | H15: 100-249 | I15: 100-249 | J15: 15 | K15: 5009 | L15: 9493 | M15: 4485
A16: Downgraded | B16: 173 | C16: 7963 | D16: 173 | E16: 4715.02 | H16: Under 100 | I16: 50-99 | J16: 16 | K16: 9494 | L16: 12540 | M16: 3047
A17: Lapsed new | B17: 833 | C17: 26209 | D17: n/a | E17: n/a | I17: 25-49 | J17: 17 | K17: 12541 | L17: 15012 | M17: 2472
A18: Lapsed repeat | B18: 269 | C18: 9492 | D18: n/a | E18: n/a | F18: GiG# | G18: GiG$ | I18: 10-24 | J18: 18 | K18: 15013 | L18: 16452 | M18: 1440
A19: Total | B19: =SUM(B12:B18) -> 1744 | C19: =SUM(C12:C18) -> 58635 | D19: =SUM(D12:D18) -> 1899 | E19: =SUM(E12:E18) -> 68066.94 | F19: =(D19-B19)/B19 -> 0.08887614679 | G19: =(E19-C19)/C19 -> 0.1608585316 | I19: Under 10 | J19: 19 | K19: 16453 | L19: 16650 | M19: 198
A20: 36 hilighted data fields are retrieved from gift transaction data below | M20: =SUM(M8:M19) -> 16620
B21: Number | C21: Gift$
A22: New in year 1 | B22: 1029 | C22: 32370 | D22: <-- i.e., last year's new donors and gift$
A23: Database EOY1 | B23: 4041 | D23: <-- i.e., Total number of donors on file at end of Year1 | K23: 5061 | L23: <-- i.e., TOTAL number of donors on file
A24: One time donors | B24: 2790 | C24: 84342 | D24: <-- i.e., Number of one-time donors and gifts | K24: 2407 | L24: <-- Total # of gifts in Year2 (vs #donors)
A25: Recaptured lapsed 1 year | D25: 172 | E25: 6272.13 | F25: <-- Portion of Recaptured | K25: 38 | L25: 4044.73 | M25: <-- Total # & $ for monthly donors in database
A26: Monthly donors in Year2 | D26: 27 | E26: 1678.73 | F26: <-- i.e., Year2 donors making 6 to 24 gifts. | K26: 8 | L26: 583 | M26: <-- Portion NEW monthly donors in Year2
B28: [Asc] | D28: Gifts | F28: First | G28: Largest | H28: Monthly | I28: Gain/Loss | L28: Years of | M28: One time | N28: Recap 1
A29: Acct | B29: Year | C29: AmtYr | D29: Per year | E29: Seq# | F29: Year | G29: Year | H29: Giving | I29: Category | L29: Giving | M29: Donor | N29: Donor
A30: A | B30: B | C30: C | D30: D | E30: E | F30: F | G30: G | H30: H | I30: I | L30: L | M30: M | N30: N
A31: 105908 | B31: 2019 | C31: 75609 | D31: 5 | E31: 13099 | F31: 2019 | G31: 1130936.65
A32: 105908 | B32: 2020 | C32: 177497 | D32: 8 | E32: 13100 | F32: 2019 | G32: 1130936.65 | H32: 8
A33: 105908 | B33: 2021 | C33: 1130936.65 | D33: 10 | E33: 13101 | F33: 2019 | G33: 1130936.65 | H33: 10
A34: 101943 | B34: 2018 | C34: 350 | D34: 2 | E34: 5302 | F34: 2018 | G34: 160882
A35: 101943 | B35: 2019 | C35: 200 | D35: 2 | E35: 5303 | F35: 2018 | G35: 160882
A36: 101943 | B36: 2020 | C36: 160882 | D36: 5 | E36: 5304 | F36: 2018 | G36: 160882
A37: 100658 | B37: 2018 | C37: 8049 | D37: 3 | E37: 1862 | F37: 2018 | G37: 124011.4
A38: 100658 | B38: 2019 | C38: 11382 | D38: 2 | E38: 1863 | F38: 2018 | G38: 124011.4
A39: 100658 | B39: 2020 | C39: 20166 | D39: 2 | E39: 1864 | F39: 2018 | G39: 124011.4
A40: 100658 | B40: 2021 | C40: 124011.4 | D40: 5 | E40: 1865 | F40: 2018 | G40: 124011.4
A41: 101199 | B41: 2018 | C41: 89648 | D41: 20 | E41: 3317 | F41: 2018 | G41: 91814 | H41: 20
A42: 101199 | B42: 2019 | C42: 91814 | D42: 1 | E42: 3318 | F42: 2018 | G42: 91814
A43: 107204 | B43: 2020 | C43: 71700 | D43: 1 | E43: 14807 | F43: 2020 | G43: 71700
A44: 100021 | B44: 2018 | C44: 26249 | D44: 86 | E44: 58 | F44: 2018 | G44: 50501 | H44: 86
A45: 100021 | B45: 2019 | C45: 50501 | D45: 116 | E45: 59 | F45: 2018 | G45: 50501 | H45: 116
A46: 100021 | B46: 2020 | C46: 15689 | D46: 60 | E46: 60 | F46: 2018 | G46: 50501 | H46: 60
A47: 100021 | B47: 2021 | C47: 14995.05 | D47: 64 | E47: 61 | F47: 2018 | G47: 50501 | H47: 64
A48: 100997 | B48: 2019 | C48: 50000 | D48: 1 | E48: 2753 | F48: 2019 | G48: 50000
A49: 101216 | B49: 2021 | C49: 49682.25 | D49: 1 | E49: 3361 | F49: 2021 | G49: 49682.25
A50: 104021 | B50: 2018 | C50: 45902 | D50: 1 | E50: 10375 | F50: 2018 | G50: 45902
A51: 102324 | B51: 2018 | C51: 500 | D51: 1 | E51: 6244 | F51: 2018 | G51: 40000
A52: 102324 | B52: 2019 | C52: 40000 | D52: 1 | E52: 6245 | F52: 2018 | G52: 40000
A53: 104921 | B53: 2018 | C53: 3998 | D53: 6 | E53: 11707 | F53: 2018 | G53: 38992 | H53: 6
A54: 104921 | B54: 2019 | C54: 14092 | D54: 13 | E54: 11708 | F54: 2018 | G54: 38992 | H54: 13
A55: 104921 | B55: 2020 | C55: 15092 | D55: 14 | E55: 11709 | F55: 2018 | G55: 38992 | H55: 14
A56: 104921 | B56: 2021 | C56: 38992 | D56: 13 | E56: 11710 | F56: 2018 | G56: 38992 | H56: 13
A57: 100608 | B57: 2018 | C57: 35000 | D57: 1 | E57: 1735 | F57: 2018 | G57: 35000
A58: 101989 | B58: 2018 | C58: 40 | D58: 2 | E58: 5417 | F58: 2018 | G58: 33621.93
A59: 101989 | B59: 2019 | C59: 15000 | D59: 1 | E59: 5418 | F59: 2018 | G59: 33621.93
A60: 101989 | B60: 2021 | C60: 33621.93 | D60: 1 | E60: 5419 | F60: 2018 | G60: 33621.93
A61: 101081 | B61: 2018 | C61: 500 | D61: 1 | E61: 2989 | F61: 2018 | G61: 30000
A62: 101081 | B62: 2019 | C62: 500 | D62: 1 | E62: 2990 | F62: 2018 | G62: 30000
A63: 101081 | B63: 2020 | C63: 500 | D63: 1 | E63: 2991 | F63: 2018 | G63: 30000
A64: 101081 | B64: 2021 | C64: 30000 | D64: 1 | E64: 2992 | F64: 2018 | G64: 30000
A65: 100857 | B65: 2018 | C65: 5600 | D65: 3 | E65: 2391 | F65: 2018 | G65: 29223
A66: 100857 | B66: 2019 | C66: 3050 | D66: 2 | E66: 2392 | F66: 2018 | G66: 29223
A67: 100857 | B67: 2020 | C67: 3500 | D67: 1 | E67: 2393 | F67: 2018 | G67: 29223
A68: 100857 | B68: 2021 | C68: 29223 | D68: 6 | E68: 2394 | F68: 2018 | G68: 29223 | H68: 6
A69: 103773 | B69: 2018 | C69: 25000 | D69: 3 | E69: 9841 | F69: 2018 | G69: 27500
A70: 103773 | B70: 2019 | C70: 15000 | D70: 2 | E70: 9842 | F70: 2018 | G70: 27500
A71: 103773 | B71: 2020 | C71: 22500 | D71: 3 | E71: 9843 | F71: 2018 | G71: 27500
A72: 103773 | B72: 2021 | C72: 27500 | D72: 3 | E72: 9844 | F72: 2018 | G72: 27500
A73: 105421 | B73: 2019 | C73: 25300 | D73: 4 | E73: 12440 | F73: 2019 | G73: 25300
A74: 105421 | B74: 2020 | C74: 900 | D74: 3 | E74: 12441 | F74: 2019 | G74: 25300
A75: 105421 | B75: 2021 | C75: 700 | D75: 2 | E75: 12442 | F75: 2019 | G75: 25300
A76: 100183 | B76: 2018 | C76: 5000 | D76: 1 | E76: 545 | F76: 2018 | G76: 25000
A77: 100183 | B77: 2019 | C77: 25000 | D77: 1 | E77: 546 | F77: 2018 | G77: 25000
A78: 102202 | B78: 2018 | C78: 2000 | D78: 2 | E78: 5921 | F78: 2018 | G78: 25000
A79: 102202 | B79: 2019 | C79: 2550 | D79: 2 | E79: 5922 | F79: 2018 | G79: 25000
A80: 102202 | B80: 2020 | C80: 5100 | D80: 2 | E80: 5923 | F80: 2018 | G80: 25000
A81: 102202 | B81: 2021 | C81: 25000 | D81: 1 | E81: 5924 | F81: 2018 | G81: 25000
A82: 102861 | B82: 2018 | C82: 5000 | D82: 2 | E82: 7661 | F82: 2018 | G82: 25000
A83: 102861 | B83: 2019 | C83: 7000 | D83: 2 | E83: 7662 | F83: 2018 | G83: 25000
A84: 102861 | B84: 2021 | C84: 25000 | D84: 1 | E84: 7663 | F84: 2018 | G84: 25000
A85: 104112 | B85: 2018 | C85: 25000 | D85: 2 | E85: 10509 | F85: 2018 | G85: 25000
A86: 102586 | B86: 2018 | C86: 5817 | D86: 35 | E86: 6918 | F86: 2018 | G86: 23468 | H86: 35
A87: 102586 | B87: 2019 | C87: 3118 | D87: 23 | E87: 6919 | F87: 2018 | G87: 23468 | H87: 23
A88: 102586 | B88: 2020 | C88: 3668 | D88: 21 | E88: 6920 | F88: 2018 | G88: 23468 | H88: 21
A89: 102586 | B89: 2021 | C89: 23468 | D89: 21 | E89: 6921 | F89: 2018 | G89: 23468 | H89: 21
A90: 106061 | B90: 2019 | C90: 20000 | D90: 1 | E90: 13301 | F90: 2019 | G90: 22500
A91: 106061 | B91: 2020 | C91: 4000 | D91: 1 | E91: 13302 | F91: 2019 | G91: 22500
A92: 106061 | B92: 2021 | C92: 22500 | D92: 1 | E92: 13303 | F92: 2019 | G92: 22500
A93: 100530 | B93: 2018 | C93: 18433 | D93: 9 | E93: 1526 | F93: 2018 | G93: 22495 | H93: 9
A94: 100530 | B94: 2019 | C94: 10140 | D94: 8 | E94: 1527 | F94: 2018 | G94: 22495 | H94: 8
A95: 100530 | B95: 2020 | C95: 20860 | D95: 8 | E95: 1528 | F95: 2018 | G95: 22495 | H95: 8
A96: 100530 | B96: 2021 | C96: 22495 | D96: 10 | E96: 1529 | F96: 2018 | G96: 22495 | H96: 10
A97: 100046 | B97: 2018 | C97: 2300 | D97: 8 | E97: 128 | F97: 2018 | G97: 21300 | H97: 8
A98: 100046 | B98: 2019 | C98: 2100 | D98: 6 | E98: 129 | F98: 2018 | G98: 21300 | H98: 6
A99: 100046 | B99: 2020 | C99: 3085 | D99: 9 | E99: 130 | F99: 2018 | G99: 21300 | H99: 9
A100: 100046 | B100: 2021 | C100: 21300 | D100: 4 | E100: 131 | F100: 2018 | G100: 21300
A101: 100836 | B101: 2018 | C101: 11153 | D101: 6 | E101: 2332 | F101: 2018 | G101: 21242.5 | H101: 6
A102: 100836 | B102: 2019 | C102: 18699 | D102: 6 | E102: 2333 | F102: 2018 | G102: 21242.5 | H102: 6
A103: 100836 | B103: 2020 | C103: 11243 | D103: 14 | E103: 2334 | F103: 2018 | G103: 21242.5 | H103: 14
A104: 100836 | B104: 2021 | C104: 21242.5 | D104: 18 | E104: 2335 | F104: 2018 | G104: 21242.5 | H104: 18
A105: 100555 | B105: 2018 | C105: 20000 | D105: 1 | E105: 1600 | F105: 2018 | G105: 20000
A106: 100555 | B106: 2019 | C106: 20000 | D106: 1 | E106: 1601 | F106: 2018 | G106: 20000
A107: 100555 | B107: 2020 | C107: 20000 | D107: 1 | E107: 1602 | F107: 2018 | G107: 20000
A108: 101257 | B108: 2021 | C108: 20000 | D108: 1 | E108: 3480 | F108: 2021 | G108: 20000
A109: 101632 | B109: 2018 | C109: 500 | D109: 1 | E109: 4488 | F109: 2018 | G109: 20000
A110: 101632 | B110: 2020 | C110: 5000 | D110: 1 | E110: 4489 | F110: 2018 | G110: 20000
A111: 101632 | B111: 2021 | C111: 20000 | D111: 3 | E111: 4490 | F111: 2018 | G111: 20000
A112: 100180 | B112: 2018 | C112: 9384 | D112: 13 | E112: 534 | F112: 2018 | G112: 19084 | H112: 13
A113: 100180 | B113: 2019 | C113: 13084 | D113: 13 | E113: 535 | F113: 2018 | G113: 19084 | H113: 13
A114: 100180 | B114: 2020 | C114: 13084 | D114: 13 | E114: 536 | F114: 2018 | G114: 19084 | H114: 13
A115: 100180 | B115: 2021 | C115: 19084 | D115: 14 | E115: 537 | F115: 2018 | G115: 19084 | H115: 14
A116: 102789 | B116: 2018 | C116: 4700 | D116: 21 | E116: 7461 | F116: 2018 | G116: 18300 | H116: 21
A117: 102789 | B117: 2019 | C117: 8454 | D117: 19 | E117: 7462 | F117: 2018 | G117: 18300 | H117: 19
A118: 102789 | B118: 2020 | C118: 14020 | D118: 24 | E118: 7463 | F118: 2018 | G118: 18300 | H118: 24
A119: 102789 | B119: 2021 | C119: 18300 | D119: 24 | E119: 7464 | F119: 2018 | G119: 18300 | H119: 24
A120: 100558 | B120: 2018 | C120: 9703 | D120: 6 | E120: 1608 | F120: 2018 | G120: 17650 | H120: 6
A121: 100558 | B121: 2019 | C121: 11398 | D121: 10 | E121: 1609 | F121: 2018 | G121: 17650 | H121: 10
A122: 100558 | B122: 2020 | C122: 14200 | D122: 6 | E122: 1610 | F122: 2018 | G122: 17650 | H122: 6
A123: 100558 | B123: 2021 | C123: 17650 | D123: 6 | E123: 1611 | F123: 2018 | G123: 17650 | H123: 6
A124: 104719 | B124: 2018 | C124: 16000 | D124: 1 | E124: 11419 | F124: 2018 | G124: 16000
A125: 101389 | B125: 2018 | C125: 1200 | D125: 12 | E125: 3822 | F125: 2018 | G125: 15900 | H125: 12
A126: 101389 | B126: 2019 | C126: 1200 | D126: 12 | E126: 3823 | F126: 2018 | G126: 15900 | H126: 12
A127: 101389 | B127: 2020 | C127: 1100 | D127: 11 | E127: 3824 | F127: 2018 | G127: 15900 | H127: 11
A128: 101389 | B128: 2021 | C128: 15900 | D128: 11 | E128: 3825 | F128: 2018 | G128: 15900 | H128: 11
A129: 108570 | B129: 2021 | C129: 15450 | D129: 1 | E129: 16317 | F129: 2021 | G129: 15450
A130: 100181 | B130: 2018 | C130: 10100 | D130: 3 | E130: 538 | F130: 2018 | G130: 15000
A131: 100181 | B131: 2019 | C131: 10200 | D131: 2 | E131: 539 | F131: 2018 | G131: 15000
A132: 100181 | B132: 2020 | C132: 15000 | D132: 2 | E132: 540 | F132: 2018 | G132: 15000
A133: 100181 | B133: 2021 | C133: 7750 | D133: 2 | E133: 541 | F133: 2018 | G133: 15000
A134: 104198 | B134: 2018 | C134: 15000 | D134: 1 | E134: 10629 | F134: 2018 | G134: 15000
A135: 105010 | B135: 2018 | C135: 15000 | D135: 2 | E135: 11825 | F135: 2018 | G135: 15000
A136: 103218 | B136: 2018 | C136: 300 | D136: 12 | E136: 8529 | F136: 2018 | G136: 14209 | H136: 12
A137: 103218 | B137: 2019 | C137: 14209 | D137: 16 | E137: 8530 | F137: 2018 | G137: 14209 | H137: 16
A138: 103218 | B138: 2020 | C138: 6902 | D138: 14 | E138: 8531 | F138: 2018 | G138: 14209 | H138: 14
A139: 103218 | B139: 2021 | C139: 8645 | D139: 14 | E139: 8532 | F139: 2018 | G139: 14209 | H139: 14
A140: 101527 | B140: 2018 | C140: 1000 | D140: 1 | E140: 4199 | F140: 2018 | G140: 14100
A141: 101527 | B141: 2019 | C141: 2600 | D141: 4 | E141: 4200 | F141: 2018 | G141: 14100
A142: 101527 | B142: 2020 | C142: 2500 | D142: 3 | E142: 4201 | F142: 2018 | G142: 14100
A143: 101527 | B143: 2021 | C143: 14100 | D143: 4 | E143: 4202 | F143: 2018 | G143: 14100
A144: 102022 | B144: 2018 | C144: 2645 | D144: 15 | E144: 5502 | F144: 2018 | G144: 13350 | H144: 15
A145: 102022 | B145: 2019 | C145: 2350 | D145: 13 | E145: 5503 | F145: 2018 | G145: 13350 | H145: 13
A146: 102022 | B146: 2020 | C146: 3600 | D146: 14 | E146: 5504 | F146: 2018 | G146: 13350 | H146: 14
A147: 102022 | B147: 2021 | C147: 13350 | D147: 15 | E147: 5505 | F147: 2018 | G147: 13350 | H147: 15
A148: 100108 | B148: 2018 | C148: 11000 | D148: 13 | E148: 311 | F148: 2018 | G148: 13000 | H148: 13
A149: 100108 | B149: 2019 | C149: 13000 | D149: 15 | E149: 312 | F149: 2018 | G149: 13000 | H149: 15
A150: 100108 | B150: 2020 | C150: 2500 | D150: 4 | E150: 313 | F150: 2018 | G150: 13000
A151: 100108 | B151: 2021 | C151: 2000 | D151: 2 | E151: 314 | F151: 2018 | G151: 13000
A152: 101733 | B152: 2018 | C152: 12598 | D152: 3 | E152: 4745 | F152: 2018 | G152: 12598
A153: 101733 | B153: 2019 | C153: 500 | D153: 1 | E153: 4746 | F153: 2018 | G153: 12598
A154: 101733 | B154: 2020 | C154: 4500 | D154: 2 | E154: 4747 | F154: 2018 | G154: 12598
A155: 101733 | B155: 2021 | C155: 7550 | D155: 5 | E155: 4748 | F155: 2018 | G155: 12598
A156: 100506 | B156: 2018 | C156: 600 | D156: 2 | E156: 1459 | F156: 2018 | G156: 12500
A157: 100506 | B157: 2019 | C157: 1000 | D157: 1 | E157: 1460 | F157: 2018 | G157: 12500
A158: 100506 | B158: 2021 | C158: 12500 | D158: 2 | E158: 1461 | F158: 2018 | G158: 12500
A159: 103369 | B159: 2018 | C159: 1068 | D159: 24 | E159: 8893 | F159: 2018 | G159: 12268 | H159: 24
A160: 103369 | B160: 2019 | C160: 1068 | D160: 24 | E160: 8894 | F160: 2018 | G160: 12268 | H160: 24
A161: 103369 | B161: 2020 | C161: 5068 | D161: 36 | E161: 8895 | F161: 2018 | G161: 12268 | H161: 36
A162: 103369 | B162: 2021 | C162: 12268 | D162: 37 | E162: 8896 | F162: 2018 | G162: 12268 | H162: 37
A163: 107411 | B163: 2020 | C163: 11000 | D163: 1 | E163: 15057 | F163: 2020 | G163: 11000
A164: 101685 | B164: 2018 | C164: 5834 | D164: 15 | E164: 4625 | F164: 2018 | G164: 10768 | H164: 15
A165: 101685 | B165: 2019 | C165: 2284 | D165: 16 | E165: 4626 | F165: 2018 | G165: 10768 | H165: 16
A166: 101685 | B166: 2020 | C166: 5704 | D166: 21 | E166: 4627 | F166: 2018 | G166: 10768 | H166: 21
A167: 101685 | B167: 2021 | C167: 10768 | D167: 25 | E167: 4628 | F167: 2018 | G167: 10768 | H167: 25
A168: 100188 | B168: 2018 | C168: 4102 | D168: 1 | E168: 558 | F168: 2018 | G168: 10600
A169: 100188 | B169: 2019 | C169: 5449 | D169: 2 | E169: 559 | F169: 2018 | G169: 10600
A170: 100188 | B170: 2020 | C170: 5500 | D170: 2 | E170: 560 | F170: 2018 | G170: 10600
A171: 100188 | B171: 2021 | C171: 10600 | D171: 2 | E171: 561 | F171: 2018 | G171: 10600
A172: 107554 | B172: 2021 | C172: 10316.71 | D172: 1 | E172: 15233 | F172: 2021 | G172: 10316.71
A173: 103163 | B173: 2018 | C173: 10000 | D173: 1 | E173: 8375 | F173: 2018 | G173: 10100
A174: 103163 | B174: 2019 | C174: 10000 | D174: 1 | E174: 8376 | F174: 2018 | G174: 10100
A175: 103163 | B175: 2020 | C175: 10100 | D175: 2 | E175: 8377 | F175: 2018 | G175: 10100
A176: 103163 | B176: 2021 | C176: 10000 | D176: 1 | E176: 8378 | F176: 2018 | G176: 10100
A177: 106802 | B177: 2020 | C177: 95 | D177: 1 | E177: 14332 | F177: 2020 | G177: 10100
A178: 106802 | B178: 2021 | C178: 10100 | D178: 2 | E178: 14333 | F178: 2020 | G178: 10100
A179: 100165 | B179: 2019 | C179: 100 | D179: 1 | E179: 489 | F179: 2019 | G179: 10000
A180: 100165 | B180: 2020 | C180: 200 | D180: 1 | E180: 490 | F180: 2019 | G180: 10000
A181: 100165 | B181: 2021 | C181: 10000 | D181: 1 | E181: 491 | F181: 2019 | G181: 10000
A182: 100586 | B182: 2018 | C182: 3000 | D182: 3 | E182: 1683 | F182: 2018 | G182: 10000
A183: 100586 | B183: 2019 | C183: 2000 | D183: 2 | E183: 1684 | F183: 2018 | G183: 10000
A184: 100586 | B184: 2020 | C184: 3000 | D184: 2 | E184: 1685 | F184: 2018 | G184: 10000
A185: 100586 | B185: 2021 | C185: 10000 | D185: 1 | E185: 1686 | F185: 2018 | G185: 10000
A186: 102381 | B186: 2018 | C186: 10000 | D186: 1 | E186: 6382 | F186: 2018 | G186: 10000
A187: 102381 | B187: 2019 | C187: 10000 | D187: 1 | E187: 6383 | F187: 2018 | G187: 10000
A188: 102385 | B188: 2018 | C188: 5050 | D188: 2 | E188: 6392 | F188: 2018 | G188: 10000
A189: 102385 | B189: 2019 | C189: 5000 | D189: 1 | E189: 6393 | F189: 2018 | G189: 10000
A190: 102385 | B190: 2020 | C190: 10000 | D190: 1 | E190: 6394 | F190: 2018 | G190: 10000
A191: 102385 | B191: 2021 | C191: 10000 | D191: 1 | E191: 6395 | F191: 2018 | G191: 10000
A192: 102542 | B192: 2018 | C192: 250 | D192: 1 | E192: 6803 | F192: 2018 | G192: 10000
A193: 102542 | B193: 2019 | C193: 300 | D193: 1 | E193: 6804 | F193: 2018 | G193: 10000
A194: 102542 | B194: 2020 | C194: 500 | D194: 1 | E194: 6805 | F194: 2018 | G194: 10000
A195: 102542 | B195: 2021 | C195: 10000 | D195: 1 | E195: 6806 | F195: 2018 | G195: 10000
A196: 104487 | B196: 2018 | C196: 10000 | D196: 2 | E196: 11053 | F196: 2018 | G196: 10000
A197: 106434 | B197: 2019 | C197: 10000 | D197: 1 | E197: 13812 | F197: 2019 | G197: 10000
A198: 106434 | B198: 2020 | C198: 4000 | D198: 2 | E198: 13813 | F198: 2019 | G198: 10000
A199: 106434 | B199: 2021 | C199: 2000 | D199: 1 | E199: 13814 | F199: 2019 | G199: 10000
A200: 100456 | B200: 2018 | C200: 3720 | D200: 25 | E200: 1318 | F200: 2018 | G200: 8220 | H200: 25
A201: 100456 | B201: 2019 | C201: 4220 | D201: 26 | E201: 1319 | F201: 2018 | G201: 8220 | H201: 26
... 4299 more rows

Sheet FEP100to249
A1: FEP100to249 | C1: Fundraising Effectiveness Survey - 2012 | G1: =TODAY() -> 2023-09-14 | I1: Sort Largest Year (col. G) - DESC | N1: =TODAY() -> 2023-09-14 | O1: 10:55:13
A2: =StepByStep!$A$3 -> 0 | O2: 10:55:50
A3: Growth-in-Giving is measured for Year 2: | H3: From --> | I3: =K15 -> 5009 | J3: <---- ="K" & row | O3: =O2-O1 -> 00:00:37
D4: Year 2 | E4: =FEPdata!E4 -> 2021 | H4: To --> | I4: =L15 -> 9493 | J4: <---- ="L" & row | O4: FEPdata
A5: $100 to $249 | B5: B 100-249 | E5: =StepByStep!$G$7 -> 12 | F5: <-- Year-end month
A6: Gain(Loss) Data - Software Extract for Year 2 and Year 1 data | K6: Col K | L6: Col L
J7: Row | K7: From | L7: To | M7: Count
B8: Number of | C8: Amount of | D8: Number of | E8: Amount of | H8: 5,000 up | I8: 25,000 & up | J8: 8 | K8: 31 | L8: 85 | M8: =L8-K8+1 -> 55
A9: Gain(Loss) | B9: =D9-1 -> 2020 | C9: =E9-1 -> 2020 | D9: =$E4 -> 2021 | E9: =$E4 -> 2021 | I9: 10,000-24,999 | J9: 9 | K9: =L8+1 -> 86 | L9: 199 | M9: =L9-L8 -> 114
A10: Category | B10: Donors | C10: Gifts ($) | D10: Donors | E10: Gifts ($) | I10: 5,000-9,999 | J10: 10 | K10: 200 | L10: 323 | M10: 124
H11: 1,000-4,999 | I11: 2,500-4,999 | J11: 11 | K11: 324 | L11: 540 | M11: 217
A12: New | B12: n/a | C12: n/a | D12: 309 | E12: 39698.19 | I12: 1,000-2,499 | J12: 12 | K12: 541 | L12: 1477 | M12: 937
A13: Recaptured | B13: n/a | C13: n/a | D13: 144 | E13: 15677 | H13: 250-999 | I13: 500-999 | J13: 13 | K13: 1478 | L13: 2866 | M13: 1389
A14: Upgraded | B14: 288 | C14: 23610 | D14: 288 | E14: 41820.2 | I14: 250-499 | J14: 14 | K14: 2867 | L14: 5008 | M14: 2142
A15: Same | B15: 231 | C15: 30680 | D15: 231 | E15: 30680 | H15: 100-249 | I15: 100-249 | J15: 15 | K15: 5009 | L15: 9493 | M15: 4485
A16: Downgraded | B16: 226 | C16: 32252 | D16: 226 | E16: 17162.62 | H16: Under 100 | I16: 50-99 | J16: 16 | K16: 9494 | L16: 12540 | M16: 3047
A17: Lapsed new | B17: 231 | C17: 30364 | D17: n/a | E17: n/a | I17: 25-49 | J17: 17 | K17: 12541 | L17: 15012 | M17: 2472
A18: Lapsed repeat | B18: 169 | C18: 16854 | D18: n/a | E18: n/a | F18: GiG# | G18: GiG$ | I18: 10-24 | J18: 18 | K18: 15013 | L18: 16452 | M18: 1440
A19: Total | B19: =SUM(B12:B18) -> 1145 | C19: =SUM(C12:C18) -> 133760 | D19: =SUM(D12:D18) -> 1198 | E19: =SUM(E12:E18) -> 145038.01 | F19: =(D19-B19)/B19 -> 0.04628820961 | G19: =(E19-C19)/C19 -> 0.08431526615 | I19: Under 10 | J19: 19 | K19: 16453 | L19: 16650 | M19: 198
A20: 36 hilighted data fields are retrieved from gift transaction data below | M20: =SUM(M8:M19) -> 16620
B21: Number | C21: Gift$
A22: New in year 1 | B22: 353 | C22: 43519 | D22: <-- i.e., last year's new donors and gift$
A23: Database EOY1 | B23: 1837 | D23: <-- i.e., Total number of donors on file at end of Year1 | K23: 2146 | L23: <-- i.e., TOTAL number of donors on file
A24: One time donors | B24: 680 | C24: 87638 | D24: <-- i.e., Number of one-time donors and gifts | K24: 3582 | L24: <-- Total # of gifts in Year2 (vs #donors)
A25: Recaptured lapsed 1 year | D25: 114 | E25: 12690 | F25: <-- Portion of Recaptured | K25: 279 | L25: 120955.57 | M25: <-- Total # & $ for monthly donors in database
A26: Monthly donors in Year2 | D26: 195 | E26: 33767.57 | F26: <-- i.e., Year2 donors making 6 to 24 gifts. | K26: 20 | L26: 3007 | M26: <-- Portion NEW monthly donors in Year2
B28: [Asc] | D28: Gifts | F28: First | G28: Largest | H28: Monthly | I28: Gain/Loss | L28: Years of | M28: One time | N28: Recap 1
A29: Acct | B29: Year | C29: AmtYr | D29: Per year | E29: Seq# | F29: Year | G29: Year | H29: Giving | I29: Category | L29: Giving | M29: Donor | N29: Donor
A30: A | B30: B | C30: C | D30: D | E30: E | F30: F | G30: G | H30: H | I30: I | L30: L | M30: M | N30: N
A31: 105908 | B31: 2019 | C31: 75609 | D31: 5 | E31: 13099 | F31: 2019 | G31: 1130936.65
A32: 105908 | B32: 2020 | C32: 177497 | D32: 8 | E32: 13100 | F32: 2019 | G32: 1130936.65 | H32: 8
A33: 105908 | B33: 2021 | C33: 1130936.65 | D33: 10 | E33: 13101 | F33: 2019 | G33: 1130936.65 | H33: 10
A34: 101943 | B34: 2018 | C34: 350 | D34: 2 | E34: 5302 | F34: 2018 | G34: 160882
A35: 101943 | B35: 2019 | C35: 200 | D35: 2 | E35: 5303 | F35: 2018 | G35: 160882
A36: 101943 | B36: 2020 | C36: 160882 | D36: 5 | E36: 5304 | F36: 2018 | G36: 160882
A37: 100658 | B37: 2018 | C37: 8049 | D37: 3 | E37: 1862 | F37: 2018 | G37: 124011.4
A38: 100658 | B38: 2019 | C38: 11382 | D38: 2 | E38: 1863 | F38: 2018 | G38: 124011.4
A39: 100658 | B39: 2020 | C39: 20166 | D39: 2 | E39: 1864 | F39: 2018 | G39: 124011.4
A40: 100658 | B40: 2021 | C40: 124011.4 | D40: 5 | E40: 1865 | F40: 2018 | G40: 124011.4
A41: 101199 | B41: 2018 | C41: 89648 | D41: 20 | E41: 3317 | F41: 2018 | G41: 91814 | H41: 20
A42: 101199 | B42: 2019 | C42: 91814 | D42: 1 | E42: 3318 | F42: 2018 | G42: 91814
A43: 107204 | B43: 2020 | C43: 71700 | D43: 1 | E43: 14807 | F43: 2020 | G43: 71700
A44: 100021 | B44: 2018 | C44: 26249 | D44: 86 | E44: 58 | F44: 2018 | G44: 50501 | H44: 86
A45: 100021 | B45: 2019 | C45: 50501 | D45: 116 | E45: 59 | F45: 2018 | G45: 50501 | H45: 116
A46: 100021 | B46: 2020 | C46: 15689 | D46: 60 | E46: 60 | F46: 2018 | G46: 50501 | H46: 60
A47: 100021 | B47: 2021 | C47: 14995.05 | D47: 64 | E47: 61 | F47: 2018 | G47: 50501 | H47: 64
A48: 100997 | B48: 2019 | C48: 50000 | D48: 1 | E48: 2753 | F48: 2019 | G48: 50000
A49: 101216 | B49: 2021 | C49: 49682.25 | D49: 1 | E49: 3361 | F49: 2021 | G49: 49682.25
A50: 104021 | B50: 2018 | C50: 45902 | D50: 1 | E50: 10375 | F50: 2018 | G50: 45902
A51: 102324 | B51: 2018 | C51: 500 | D51: 1 | E51: 6244 | F51: 2018 | G51: 40000
A52: 102324 | B52: 2019 | C52: 40000 | D52: 1 | E52: 6245 | F52: 2018 | G52: 40000
A53: 104921 | B53: 2018 | C53: 3998 | D53: 6 | E53: 11707 | F53: 2018 | G53: 38992 | H53: 6
A54: 104921 | B54: 2019 | C54: 14092 | D54: 13 | E54: 11708 | F54: 2018 | G54: 38992 | H54: 13
A55: 104921 | B55: 2020 | C55: 15092 | D55: 14 | E55: 11709 | F55: 2018 | G55: 38992 | H55: 14
A56: 104921 | B56: 2021 | C56: 38992 | D56: 13 | E56: 11710 | F56: 2018 | G56: 38992 | H56: 13
A57: 100608 | B57: 2018 | C57: 35000 | D57: 1 | E57: 1735 | F57: 2018 | G57: 35000
A58: 101989 | B58: 2018 | C58: 40 | D58: 2 | E58: 5417 | F58: 2018 | G58: 33621.93
A59: 101989 | B59: 2019 | C59: 15000 | D59: 1 | E59: 5418 | F59: 2018 | G59: 33621.93
A60: 101989 | B60: 2021 | C60: 33621.93 | D60: 1 | E60: 5419 | F60: 2018 | G60: 33621.93
A61: 101081 | B61: 2018 | C61: 500 | D61: 1 | E61: 2989 | F61: 2018 | G61: 30000
A62: 101081 | B62: 2019 | C62: 500 | D62: 1 | E62: 2990 | F62: 2018 | G62: 30000
A63: 101081 | B63: 2020 | C63: 500 | D63: 1 | E63: 2991 | F63: 2018 | G63: 30000
A64: 101081 | B64: 2021 | C64: 30000 | D64: 1 | E64: 2992 | F64: 2018 | G64: 30000
A65: 100857 | B65: 2018 | C65: 5600 | D65: 3 | E65: 2391 | F65: 2018 | G65: 29223
A66: 100857 | B66: 2019 | C66: 3050 | D66: 2 | E66: 2392 | F66: 2018 | G66: 29223
A67: 100857 | B67: 2020 | C67: 3500 | D67: 1 | E67: 2393 | F67: 2018 | G67: 29223
A68: 100857 | B68: 2021 | C68: 29223 | D68: 6 | E68: 2394 | F68: 2018 | G68: 29223 | H68: 6
A69: 103773 | B69: 2018 | C69: 25000 | D69: 3 | E69: 9841 | F69: 2018 | G69: 27500
A70: 103773 | B70: 2019 | C70: 15000 | D70: 2 | E70: 9842 | F70: 2018 | G70: 27500
A71: 103773 | B71: 2020 | C71: 22500 | D71: 3 | E71: 9843 | F71: 2018 | G71: 27500
A72: 103773 | B72: 2021 | C72: 27500 | D72: 3 | E72: 9844 | F72: 2018 | G72: 27500
A73: 105421 | B73: 2019 | C73: 25300 | D73: 4 | E73: 12440 | F73: 2019 | G73: 25300
A74: 105421 | B74: 2020 | C74: 900 | D74: 3 | E74: 12441 | F74: 2019 | G74: 25300
A75: 105421 | B75: 2021 | C75: 700 | D75: 2 | E75: 12442 | F75: 2019 | G75: 25300
A76: 100183 | B76: 2018 | C76: 5000 | D76: 1 | E76: 545 | F76: 2018 | G76: 25000
A77: 100183 | B77: 2019 | C77: 25000 | D77: 1 | E77: 546 | F77: 2018 | G77: 25000
A78: 102202 | B78: 2018 | C78: 2000 | D78: 2 | E78: 5921 | F78: 2018 | G78: 25000
A79: 102202 | B79: 2019 | C79: 2550 | D79: 2 | E79: 5922 | F79: 2018 | G79: 25000
A80: 102202 | B80: 2020 | C80: 5100 | D80: 2 | E80: 5923 | F80: 2018 | G80: 25000
A81: 102202 | B81: 2021 | C81: 25000 | D81: 1 | E81: 5924 | F81: 2018 | G81: 25000
A82: 102861 | B82: 2018 | C82: 5000 | D82: 2 | E82: 7661 | F82: 2018 | G82: 25000
A83: 102861 | B83: 2019 | C83: 7000 | D83: 2 | E83: 7662 | F83: 2018 | G83: 25000
A84: 102861 | B84: 2021 | C84: 25000 | D84: 1 | E84: 7663 | F84: 2018 | G84: 25000
A85: 104112 | B85: 2018 | C85: 25000 | D85: 2 | E85: 10509 | F85: 2018 | G85: 25000
A86: 102586 | B86: 2018 | C86: 5817 | D86: 35 | E86: 6918 | F86: 2018 | G86: 23468 | H86: 35
A87: 102586 | B87: 2019 | C87: 3118 | D87: 23 | E87: 6919 | F87: 2018 | G87: 23468 | H87: 23
A88: 102586 | B88: 2020 | C88: 3668 | D88: 21 | E88: 6920 | F88: 2018 | G88: 23468 | H88: 21
A89: 102586 | B89: 2021 | C89: 23468 | D89: 21 | E89: 6921 | F89: 2018 | G89: 23468 | H89: 21
A90: 106061 | B90: 2019 | C90: 20000 | D90: 1 | E90: 13301 | F90: 2019 | G90: 22500
A91: 106061 | B91: 2020 | C91: 4000 | D91: 1 | E91: 13302 | F91: 2019 | G91: 22500
A92: 106061 | B92: 2021 | C92: 22500 | D92: 1 | E92: 13303 | F92: 2019 | G92: 22500
A93: 100530 | B93: 2018 | C93: 18433 | D93: 9 | E93: 1526 | F93: 2018 | G93: 22495 | H93: 9
A94: 100530 | B94: 2019 | C94: 10140 | D94: 8 | E94: 1527 | F94: 2018 | G94: 22495 | H94: 8
A95: 100530 | B95: 2020 | C95: 20860 | D95: 8 | E95: 1528 | F95: 2018 | G95: 22495 | H95: 8
A96: 100530 | B96: 2021 | C96: 22495 | D96: 10 | E96: 1529 | F96: 2018 | G96: 22495 | H96: 10
A97: 100046 | B97: 2018 | C97: 2300 | D97: 8 | E97: 128 | F97: 2018 | G97: 21300 | H97: 8
A98: 100046 | B98: 2019 | C98: 2100 | D98: 6 | E98: 129 | F98: 2018 | G98: 21300 | H98: 6
A99: 100046 | B99: 2020 | C99: 3085 | D99: 9 | E99: 130 | F99: 2018 | G99: 21300 | H99: 9
A100: 100046 | B100: 2021 | C100: 21300 | D100: 4 | E100: 131 | F100: 2018 | G100: 21300
A101: 100836 | B101: 2018 | C101: 11153 | D101: 6 | E101: 2332 | F101: 2018 | G101: 21242.5 | H101: 6
A102: 100836 | B102: 2019 | C102: 18699 | D102: 6 | E102: 2333 | F102: 2018 | G102: 21242.5 | H102: 6
A103: 100836 | B103: 2020 | C103: 11243 | D103: 14 | E103: 2334 | F103: 2018 | G103: 21242.5 | H103: 14
A104: 100836 | B104: 2021 | C104: 21242.5 | D104: 18 | E104: 2335 | F104: 2018 | G104: 21242.5 | H104: 18
A105: 100555 | B105: 2018 | C105: 20000 | D105: 1 | E105: 1600 | F105: 2018 | G105: 20000
A106: 100555 | B106: 2019 | C106: 20000 | D106: 1 | E106: 1601 | F106: 2018 | G106: 20000
A107: 100555 | B107: 2020 | C107: 20000 | D107: 1 | E107: 1602 | F107: 2018 | G107: 20000
A108: 101257 | B108: 2021 | C108: 20000 | D108: 1 | E108: 3480 | F108: 2021 | G108: 20000
A109: 101632 | B109: 2018 | C109: 500 | D109: 1 | E109: 4488 | F109: 2018 | G109: 20000
A110: 101632 | B110: 2020 | C110: 5000 | D110: 1 | E110: 4489 | F110: 2018 | G110: 20000
A111: 101632 | B111: 2021 | C111: 20000 | D111: 3 | E111: 4490 | F111: 2018 | G111: 20000
A112: 100180 | B112: 2018 | C112: 9384 | D112: 13 | E112: 534 | F112: 2018 | G112: 19084 | H112: 13
A113: 100180 | B113: 2019 | C113: 13084 | D113: 13 | E113: 535 | F113: 2018 | G113: 19084 | H113: 13
A114: 100180 | B114: 2020 | C114: 13084 | D114: 13 | E114: 536 | F114: 2018 | G114: 19084 | H114: 13
A115: 100180 | B115: 2021 | C115: 19084 | D115: 14 | E115: 537 | F115: 2018 | G115: 19084 | H115: 14
A116: 102789 | B116: 2018 | C116: 4700 | D116: 21 | E116: 7461 | F116: 2018 | G116: 18300 | H116: 21
A117: 102789 | B117: 2019 | C117: 8454 | D117: 19 | E117: 7462 | F117: 2018 | G117: 18300 | H117: 19
A118: 102789 | B118: 2020 | C118: 14020 | D118: 24 | E118: 7463 | F118: 2018 | G118: 18300 | H118: 24
A119: 102789 | B119: 2021 | C119: 18300 | D119: 24 | E119: 7464 | F119: 2018 | G119: 18300 | H119: 24
A120: 100558 | B120: 2018 | C120: 9703 | D120: 6 | E120: 1608 | F120: 2018 | G120: 17650 | H120: 6
A121: 100558 | B121: 2019 | C121: 11398 | D121: 10 | E121: 1609 | F121: 2018 | G121: 17650 | H121: 10
A122: 100558 | B122: 2020 | C122: 14200 | D122: 6 | E122: 1610 | F122: 2018 | G122: 17650 | H122: 6
A123: 100558 | B123: 2021 | C123: 17650 | D123: 6 | E123: 1611 | F123: 2018 | G123: 17650 | H123: 6
A124: 104719 | B124: 2018 | C124: 16000 | D124: 1 | E124: 11419 | F124: 2018 | G124: 16000
A125: 101389 | B125: 2018 | C125: 1200 | D125: 12 | E125: 3822 | F125: 2018 | G125: 15900 | H125: 12
A126: 101389 | B126: 2019 | C126: 1200 | D126: 12 | E126: 3823 | F126: 2018 | G126: 15900 | H126: 12
A127: 101389 | B127: 2020 | C127: 1100 | D127: 11 | E127: 3824 | F127: 2018 | G127: 15900 | H127: 11
A128: 101389 | B128: 2021 | C128: 15900 | D128: 11 | E128: 3825 | F128: 2018 | G128: 15900 | H128: 11
A129: 108570 | B129: 2021 | C129: 15450 | D129: 1 | E129: 16317 | F129: 2021 | G129: 15450
A130: 100181 | B130: 2018 | C130: 10100 | D130: 3 | E130: 538 | F130: 2018 | G130: 15000
A131: 100181 | B131: 2019 | C131: 10200 | D131: 2 | E131: 539 | F131: 2018 | G131: 15000
A132: 100181 | B132: 2020 | C132: 15000 | D132: 2 | E132: 540 | F132: 2018 | G132: 15000
A133: 100181 | B133: 2021 | C133: 7750 | D133: 2 | E133: 541 | F133: 2018 | G133: 15000
A134: 104198 | B134: 2018 | C134: 15000 | D134: 1 | E134: 10629 | F134: 2018 | G134: 15000
A135: 105010 | B135: 2018 | C135: 15000 | D135: 2 | E135: 11825 | F135: 2018 | G135: 15000
A136: 103218 | B136: 2018 | C136: 300 | D136: 12 | E136: 8529 | F136: 2018 | G136: 14209 | H136: 12
A137: 103218 | B137: 2019 | C137: 14209 | D137: 16 | E137: 8530 | F137: 2018 | G137: 14209 | H137: 16
A138: 103218 | B138: 2020 | C138: 6902 | D138: 14 | E138: 8531 | F138: 2018 | G138: 14209 | H138: 14
A139: 103218 | B139: 2021 | C139: 8645 | D139: 14 | E139: 8532 | F139: 2018 | G139: 14209 | H139: 14
A140: 101527 | B140: 2018 | C140: 1000 | D140: 1 | E140: 4199 | F140: 2018 | G140: 14100
A141: 101527 | B141: 2019 | C141: 2600 | D141: 4 | E141: 4200 | F141: 2018 | G141: 14100
A142: 101527 | B142: 2020 | C142: 2500 | D142: 3 | E142: 4201 | F142: 2018 | G142: 14100
A143: 101527 | B143: 2021 | C143: 14100 | D143: 4 | E143: 4202 | F143: 2018 | G143: 14100
A144: 102022 | B144: 2018 | C144: 2645 | D144: 15 | E144: 5502 | F144: 2018 | G144: 13350 | H144: 15
A145: 102022 | B145: 2019 | C145: 2350 | D145: 13 | E145: 5503 | F145: 2018 | G145: 13350 | H145: 13
A146: 102022 | B146: 2020 | C146: 3600 | D146: 14 | E146: 5504 | F146: 2018 | G146: 13350 | H146: 14
A147: 102022 | B147: 2021 | C147: 13350 | D147: 15 | E147: 5505 | F147: 2018 | G147: 13350 | H147: 15
A148: 100108 | B148: 2018 | C148: 11000 | D148: 13 | E148: 311 | F148: 2018 | G148: 13000 | H148: 13
A149: 100108 | B149: 2019 | C149: 13000 | D149: 15 | E149: 312 | F149: 2018 | G149: 13000 | H149: 15
A150: 100108 | B150: 2020 | C150: 2500 | D150: 4 | E150: 313 | F150: 2018 | G150: 13000
A151: 100108 | B151: 2021 | C151: 2000 | D151: 2 | E151: 314 | F151: 2018 | G151: 13000
A152: 101733 | B152: 2018 | C152: 12598 | D152: 3 | E152: 4745 | F152: 2018 | G152: 12598
A153: 101733 | B153: 2019 | C153: 500 | D153: 1 | E153: 4746 | F153: 2018 | G153: 12598
A154: 101733 | B154: 2020 | C154: 4500 | D154: 2 | E154: 4747 | F154: 2018 | G154: 12598
A155: 101733 | B155: 2021 | C155: 7550 | D155: 5 | E155: 4748 | F155: 2018 | G155: 12598
A156: 100506 | B156: 2018 | C156: 600 | D156: 2 | E156: 1459 | F156: 2018 | G156: 12500
A157: 100506 | B157: 2019 | C157: 1000 | D157: 1 | E157: 1460 | F157: 2018 | G157: 12500
A158: 100506 | B158: 2021 | C158: 12500 | D158: 2 | E158: 1461 | F158: 2018 | G158: 12500
A159: 103369 | B159: 2018 | C159: 1068 | D159: 24 | E159: 8893 | F159: 2018 | G159: 12268 | H159: 24
A160: 103369 | B160: 2019 | C160: 1068 | D160: 24 | E160: 8894 | F160: 2018 | G160: 12268 | H160: 24
A161: 103369 | B161: 2020 | C161: 5068 | D161: 36 | E161: 8895 | F161: 2018 | G161: 12268 | H161: 36
A162: 103369 | B162: 2021 | C162: 12268 | D162: 37 | E162: 8896 | F162: 2018 | G162: 12268 | H162: 37
A163: 107411 | B163: 2020 | C163: 11000 | D163: 1 | E163: 15057 | F163: 2020 | G163: 11000
A164: 101685 | B164: 2018 | C164: 5834 | D164: 15 | E164: 4625 | F164: 2018 | G164: 10768 | H164: 15
A165: 101685 | B165: 2019 | C165: 2284 | D165: 16 | E165: 4626 | F165: 2018 | G165: 10768 | H165: 16
A166: 101685 | B166: 2020 | C166: 5704 | D166: 21 | E166: 4627 | F166: 2018 | G166: 10768 | H166: 21
A167: 101685 | B167: 2021 | C167: 10768 | D167: 25 | E167: 4628 | F167: 2018 | G167: 10768 | H167: 25
A168: 100188 | B168: 2018 | C168: 4102 | D168: 1 | E168: 558 | F168: 2018 | G168: 10600
A169: 100188 | B169: 2019 | C169: 5449 | D169: 2 | E169: 559 | F169: 2018 | G169: 10600
A170: 100188 | B170: 2020 | C170: 5500 | D170: 2 | E170: 560 | F170: 2018 | G170: 10600
A171: 100188 | B171: 2021 | C171: 10600 | D171: 2 | E171: 561 | F171: 2018 | G171: 10600
A172: 107554 | B172: 2021 | C172: 10316.71 | D172: 1 | E172: 15233 | F172: 2021 | G172: 10316.71
A173: 103163 | B173: 2018 | C173: 10000 | D173: 1 | E173: 8375 | F173: 2018 | G173: 10100
A174: 103163 | B174: 2019 | C174: 10000 | D174: 1 | E174: 8376 | F174: 2018 | G174: 10100
A175: 103163 | B175: 2020 | C175: 10100 | D175: 2 | E175: 8377 | F175: 2018 | G175: 10100
A176: 103163 | B176: 2021 | C176: 10000 | D176: 1 | E176: 8378 | F176: 2018 | G176: 10100
A177: 106802 | B177: 2020 | C177: 95 | D177: 1 | E177: 14332 | F177: 2020 | G177: 10100
A178: 106802 | B178: 2021 | C178: 10100 | D178: 2 | E178: 14333 | F178: 2020 | G178: 10100
A179: 100165 | B179: 2019 | C179: 100 | D179: 1 | E179: 489 | F179: 2019 | G179: 10000
A180: 100165 | B180: 2020 | C180: 200 | D180: 1 | E180: 490 | F180: 2019 | G180: 10000
A181: 100165 | B181: 2021 | C181: 10000 | D181: 1 | E181: 491 | F181: 2019 | G181: 10000
A182: 100586 | B182: 2018 | C182: 3000 | D182: 3 | E182: 1683 | F182: 2018 | G182: 10000
A183: 100586 | B183: 2019 | C183: 2000 | D183: 2 | E183: 1684 | F183: 2018 | G183: 10000
A184: 100586 | B184: 2020 | C184: 3000 | D184: 2 | E184: 1685 | F184: 2018 | G184: 10000
A185: 100586 | B185: 2021 | C185: 10000 | D185: 1 | E185: 1686 | F185: 2018 | G185: 10000
A186: 102381 | B186: 2018 | C186: 10000 | D186: 1 | E186: 6382 | F186: 2018 | G186: 10000
A187: 102381 | B187: 2019 | C187: 10000 | D187: 1 | E187: 6383 | F187: 2018 | G187: 10000
A188: 102385 | B188: 2018 | C188: 5050 | D188: 2 | E188: 6392 | F188: 2018 | G188: 10000
A189: 102385 | B189: 2019 | C189: 5000 | D189: 1 | E189: 6393 | F189: 2018 | G189: 10000
A190: 102385 | B190: 2020 | C190: 10000 | D190: 1 | E190: 6394 | F190: 2018 | G190: 10000
A191: 102385 | B191: 2021 | C191: 10000 | D191: 1 | E191: 6395 | F191: 2018 | G191: 10000
A192: 102542 | B192: 2018 | C192: 250 | D192: 1 | E192: 6803 | F192: 2018 | G192: 10000
A193: 102542 | B193: 2019 | C193: 300 | D193: 1 | E193: 6804 | F193: 2018 | G193: 10000
A194: 102542 | B194: 2020 | C194: 500 | D194: 1 | E194: 6805 | F194: 2018 | G194: 10000
A195: 102542 | B195: 2021 | C195: 10000 | D195: 1 | E195: 6806 | F195: 2018 | G195: 10000
A196: 104487 | B196: 2018 | C196: 10000 | D196: 2 | E196: 11053 | F196: 2018 | G196: 10000
A197: 106434 | B197: 2019 | C197: 10000 | D197: 1 | E197: 13812 | F197: 2019 | G197: 10000
A198: 106434 | B198: 2020 | C198: 4000 | D198: 2 | E198: 13813 | F198: 2019 | G198: 10000
A199: 106434 | B199: 2021 | C199: 2000 | D199: 1 | E199: 13814 | F199: 2019 | G199: 10000
A200: 100456 | B200: 2018 | C200: 3720 | D200: 25 | E200: 1318 | F200: 2018 | G200: 8220 | H200: 25
A201: 100456 | B201: 2019 | C201: 4220 | D201: 26 | E201: 1319 | F201: 2018 | G201: 8220 | H201: 26
... 4299 more rows

Sheet FEP250to999
A1: FEP250to999 | C1: Fundraising Effectiveness Survey - 2012 | G1: =TODAY() -> 2023-09-14 | I1: Sort Largest Year (col. G) - DESC | N1: =TODAY() -> 2023-09-14 | O1: 10:54:44
A2: =StepByStep!$A$3 -> 0 | O2: 10:55:13
A3: Growth-in-Giving is measured for Year 2: | H3: From --> | I3: =K13 -> 1478 | J3: <---- ="K" & row | O3: =O2-O1 -> 00:00:29
D4: Year 2 | E4: =FEPdata!E4 -> 2021 | H4: To --> | I4: =L14 -> 5008 | J4: <---- ="L" & row | O4: FEPdata
A5: $250 to $999 | B5: C 250-999 | E5: =StepByStep!$G$7 -> 12 | F5: <-- Year-end month
A6: Gain(Loss) Data - Software Extract for Year 2 and Year 1 data | K6: Col K | L6: Col L
J7: Row | K7: From | L7: To | M7: Count
B8: Number of | C8: Amount of | D8: Number of | E8: Amount of | H8: 5,000 up | I8: 25,000 & up | J8: 8 | K8: 31 | L8: 85 | M8: =L8-K8+1 -> 55
A9: Gain(Loss) | B9: =D9-1 -> 2020 | C9: =E9-1 -> 2020 | D9: =$E4 -> 2021 | E9: =$E4 -> 2021 | I9: 10,000-24,999 | J9: 9 | K9: =L8+1 -> 86 | L9: 199 | M9: =L9-L8 -> 114
A10: Category | B10: Donors | C10: Gifts ($) | D10: Donors | E10: Gifts ($) | I10: 5,000-9,999 | J10: 10 | K10: 200 | L10: 323 | M10: 124
H11: 1,000-4,999 | I11: 2,500-4,999 | J11: 11 | K11: 324 | L11: 540 | M11: 217
A12: New | B12: n/a | C12: n/a | D12: 91 | E12: 35168.47 | I12: 1,000-2,499 | J12: 12 | K12: 541 | L12: 1477 | M12: 937
A13: Recaptured | B13: n/a | C13: n/a | D13: 62 | E13: 16690 | H13: 250-999 | I13: 500-999 | J13: 13 | K13: 1478 | L13: 2866 | M13: 1389
A14: Upgraded | B14: 310 | C14: 81549 | D14: 310 | E14: 134511.91 | I14: 250-499 | J14: 14 | K14: 2867 | L14: 5008 | M14: 2142
A15: Same | B15: 205 | C15: 80544 | D15: 205 | E15: 80544 | H15: 100-249 | I15: 100-249 | J15: 15 | K15: 5009 | L15: 9493 | M15: 4485
A16: Downgraded | B16: 262 | C16: 112206 | D16: 262 | E16: 71179.68 | H16: Under 100 | I16: 50-99 | J16: 16 | K16: 9494 | L16: 12540 | M16: 3047
A17: Lapsed new | B17: 39 | C17: 14621 | D17: n/a | E17: n/a | I17: 25-49 | J17: 17 | K17: 12541 | L17: 15012 | M17: 2472
A18: Lapsed repeat | B18: 80 | C18: 19450 | D18: n/a | E18: n/a | F18: GiG# | G18: GiG$ | I18: 10-24 | J18: 18 | K18: 15013 | L18: 16452 | M18: 1440
A19: Total | B19: =SUM(B12:B18) -> 896 | C19: =SUM(C12:C18) -> 308370 | D19: =SUM(D12:D18) -> 930 | E19: =SUM(E12:E18) -> 338094.06 | F19: =(D19-B19)/B19 -> 0.03794642857 | G19: =(E19-C19)/C19 -> 0.09639089406 | I19: Under 10 | J19: 19 | K19: 16453 | L19: 16650 | M19: 198
A20: 36 hilighted data fields are retrieved from gift transaction data below | M20: =SUM(M8:M19) -> 16620
B21: Number | C21: Gift$
A22: New in year 1 | B22: 119 | C22: 37008 | D22: <-- i.e., last year's new donors and gift$
A23: Database EOY1 | B23: 1115 | D23: <-- i.e., Total number of donors on file at end of Year1 | K23: 1206 | L23: <-- i.e., TOTAL number of donors on file
A24: One time donors | B24: 135 | C24: 51668 | D24: <-- i.e., Number of one-time donors and gifts | K24: 6708 | L24: <-- Total # of gifts in Year2 (vs #donors)
A25: Recaptured lapsed 1 year | D25: 47 | E25: 12740 | F25: <-- Portion of Recaptured | K25: 550 | L25: 679665.4 | M25: <-- Total # & $ for monthly donors in database
A26: Monthly donors in Year2 | D26: 431 | E26: 185883.4 | F26: <-- i.e., Year2 donors making 6 to 24 gifts. | K26: 12 | L26: 4624 | M26: <-- Portion NEW monthly donors in Year2
B28: [Asc] | D28: Gifts | F28: First | G28: Largest | H28: Monthly | I28: Gain/Loss | L28: Years of | M28: One time | N28: Recap 1
A29: Acct | B29: Year | C29: AmtYr | D29: Per year | E29: Seq# | F29: Year | G29: Year | H29: Giving | I29: Category | L29: Giving | M29: Donor | N29: Donor
A30: A | B30: B | C30: C | D30: D | E30: E | F30: F | G30: G | H30: H | I30: I | L30: L | M30: M | N30: N
A31: 105908 | B31: 2019 | C31: 75609 | D31: 5 | E31: 13099 | F31: 2019 | G31: 1130936.65
A32: 105908 | B32: 2020 | C32: 177497 | D32: 8 | E32: 13100 | F32: 2019 | G32: 1130936.65 | H32: 8
A33: 105908 | B33: 2021 | C33: 1130936.65 | D33: 10 | E33: 13101 | F33: 2019 | G33: 1130936.65 | H33: 10
A34: 101943 | B34: 2018 | C34: 350 | D34: 2 | E34: 5302 | F34: 2018 | G34: 160882
A35: 101943 | B35: 2019 | C35: 200 | D35: 2 | E35: 5303 | F35: 2018 | G35: 160882
A36: 101943 | B36: 2020 | C36: 160882 | D36: 5 | E36: 5304 | F36: 2018 | G36: 160882
A37: 100658 | B37: 2018 | C37: 8049 | D37: 3 | E37: 1862 | F37: 2018 | G37: 124011.4
A38: 100658 | B38: 2019 | C38: 11382 | D38: 2 | E38: 1863 | F38: 2018 | G38: 124011.4
A39: 100658 | B39: 2020 | C39: 20166 | D39: 2 | E39: 1864 | F39: 2018 | G39: 124011.4
A40: 100658 | B40: 2021 | C40: 124011.4 | D40: 5 | E40: 1865 | F40: 2018 | G40: 124011.4
A41: 101199 | B41: 2018 | C41: 89648 | D41: 20 | E41: 3317 | F41: 2018 | G41: 91814 | H41: 20
A42: 101199 | B42: 2019 | C42: 91814 | D42: 1 | E42: 3318 | F42: 2018 | G42: 91814
A43: 107204 | B43: 2020 | C43: 71700 | D43: 1 | E43: 14807 | F43: 2020 | G43: 71700
A44: 100021 | B44: 2018 | C44: 26249 | D44: 86 | E44: 58 | F44: 2018 | G44: 50501 | H44: 86
A45: 100021 | B45: 2019 | C45: 50501 | D45: 116 | E45: 59 | F45: 2018 | G45: 50501 | H45: 116
A46: 100021 | B46: 2020 | C46: 15689 | D46: 60 | E46: 60 | F46: 2018 | G46: 50501 | H46: 60
A47: 100021 | B47: 2021 | C47: 14995.05 | D47: 64 | E47: 61 | F47: 2018 | G47: 50501 | H47: 64
A48: 100997 | B48: 2019 | C48: 50000 | D48: 1 | E48: 2753 | F48: 2019 | G48: 50000
A49: 101216 | B49: 2021 | C49: 49682.25 | D49: 1 | E49: 3361 | F49: 2021 | G49: 49682.25
A50: 104021 | B50: 2018 | C50: 45902 | D50: 1 | E50: 10375 | F50: 2018 | G50: 45902
A51: 102324 | B51: 2018 | C51: 500 | D51: 1 | E51: 6244 | F51: 2018 | G51: 40000
A52: 102324 | B52: 2019 | C52: 40000 | D52: 1 | E52: 6245 | F52: 2018 | G52: 40000
A53: 104921 | B53: 2018 | C53: 3998 | D53: 6 | E53: 11707 | F53: 2018 | G53: 38992 | H53: 6
A54: 104921 | B54: 2019 | C54: 14092 | D54: 13 | E54: 11708 | F54: 2018 | G54: 38992 | H54: 13
A55: 104921 | B55: 2020 | C55: 15092 | D55: 14 | E55: 11709 | F55: 2018 | G55: 38992 | H55: 14
A56: 104921 | B56: 2021 | C56: 38992 | D56: 13 | E56: 11710 | F56: 2018 | G56: 38992 | H56: 13
A57: 100608 | B57: 2018 | C57: 35000 | D57: 1 | E57: 1735 | F57: 2018 | G57: 35000
A58: 101989 | B58: 2018 | C58: 40 | D58: 2 | E58: 5417 | F58: 2018 | G58: 33621.93
A59: 101989 | B59: 2019 | C59: 15000 | D59: 1 | E59: 5418 | F59: 2018 | G59: 33621.93
A60: 101989 | B60: 2021 | C60: 33621.93 | D60: 1 | E60: 5419 | F60: 2018 | G60: 33621.93
A61: 101081 | B61: 2018 | C61: 500 | D61: 1 | E61: 2989 | F61: 2018 | G61: 30000
A62: 101081 | B62: 2019 | C62: 500 | D62: 1 | E62: 2990 | F62: 2018 | G62: 30000
A63: 101081 | B63: 2020 | C63: 500 | D63: 1 | E63: 2991 | F63: 2018 | G63: 30000
A64: 101081 | B64: 2021 | C64: 30000 | D64: 1 | E64: 2992 | F64: 2018 | G64: 30000
A65: 100857 | B65: 2018 | C65: 5600 | D65: 3 | E65: 2391 | F65: 2018 | G65: 29223
A66: 100857 | B66: 2019 | C66: 3050 | D66: 2 | E66: 2392 | F66: 2018 | G66: 29223
A67: 100857 | B67: 2020 | C67: 3500 | D67: 1 | E67: 2393 | F67: 2018 | G67: 29223
A68: 100857 | B68: 2021 | C68: 29223 | D68: 6 | E68: 2394 | F68: 2018 | G68: 29223 | H68: 6
A69: 103773 | B69: 2018 | C69: 25000 | D69: 3 | E69: 9841 | F69: 2018 | G69: 27500
A70: 103773 | B70: 2019 | C70: 15000 | D70: 2 | E70: 9842 | F70: 2018 | G70: 27500
A71: 103773 | B71: 2020 | C71: 22500 | D71: 3 | E71: 9843 | F71: 2018 | G71: 27500
A72: 103773 | B72: 2021 | C72: 27500 | D72: 3 | E72: 9844 | F72: 2018 | G72: 27500
A73: 105421 | B73: 2019 | C73: 25300 | D73: 4 | E73: 12440 | F73: 2019 | G73: 25300
A74: 105421 | B74: 2020 | C74: 900 | D74: 3 | E74: 12441 | F74: 2019 | G74: 25300
A75: 105421 | B75: 2021 | C75: 700 | D75: 2 | E75: 12442 | F75: 2019 | G75: 25300
A76: 100183 | B76: 2018 | C76: 5000 | D76: 1 | E76: 545 | F76: 2018 | G76: 25000
A77: 100183 | B77: 2019 | C77: 25000 | D77: 1 | E77: 546 | F77: 2018 | G77: 25000
A78: 102202 | B78: 2018 | C78: 2000 | D78: 2 | E78: 5921 | F78: 2018 | G78: 25000
A79: 102202 | B79: 2019 | C79: 2550 | D79: 2 | E79: 5922 | F79: 2018 | G79: 25000
A80: 102202 | B80: 2020 | C80: 5100 | D80: 2 | E80: 5923 | F80: 2018 | G80: 25000
A81: 102202 | B81: 2021 | C81: 25000 | D81: 1 | E81: 5924 | F81: 2018 | G81: 25000
A82: 102861 | B82: 2018 | C82: 5000 | D82: 2 | E82: 7661 | F82: 2018 | G82: 25000
A83: 102861 | B83: 2019 | C83: 7000 | D83: 2 | E83: 7662 | F83: 2018 | G83: 25000
A84: 102861 | B84: 2021 | C84: 25000 | D84: 1 | E84: 7663 | F84: 2018 | G84: 25000
A85: 104112 | B85: 2018 | C85: 25000 | D85: 2 | E85: 10509 | F85: 2018 | G85: 25000
A86: 102586 | B86: 2018 | C86: 5817 | D86: 35 | E86: 6918 | F86: 2018 | G86: 23468 | H86: 35
A87: 102586 | B87: 2019 | C87: 3118 | D87: 23 | E87: 6919 | F87: 2018 | G87: 23468 | H87: 23
A88: 102586 | B88: 2020 | C88: 3668 | D88: 21 | E88: 6920 | F88: 2018 | G88: 23468 | H88: 21
A89: 102586 | B89: 2021 | C89: 23468 | D89: 21 | E89: 6921 | F89: 2018 | G89: 23468 | H89: 21
A90: 106061 | B90: 2019 | C90: 20000 | D90: 1 | E90: 13301 | F90: 2019 | G90: 22500
A91: 106061 | B91: 2020 | C91: 4000 | D91: 1 | E91: 13302 | F91: 2019 | G91: 22500
A92: 106061 | B92: 2021 | C92: 22500 | D92: 1 | E92: 13303 | F92: 2019 | G92: 22500
A93: 100530 | B93: 2018 | C93: 18433 | D93: 9 | E93: 1526 | F93: 2018 | G93: 22495 | H93: 9
A94: 100530 | B94: 2019 | C94: 10140 | D94: 8 | E94: 1527 | F94: 2018 | G94: 22495 | H94: 8
A95: 100530 | B95: 2020 | C95: 20860 | D95: 8 | E95: 1528 | F95: 2018 | G95: 22495 | H95: 8
A96: 100530 | B96: 2021 | C96: 22495 | D96: 10 | E96: 1529 | F96: 2018 | G96: 22495 | H96: 10
A97: 100046 | B97: 2018 | C97: 2300 | D97: 8 | E97: 128 | F97: 2018 | G97: 21300 | H97: 8
A98: 100046 | B98: 2019 | C98: 2100 | D98: 6 | E98: 129 | F98: 2018 | G98: 21300 | H98: 6
A99: 100046 | B99: 2020 | C99: 3085 | D99: 9 | E99: 130 | F99: 2018 | G99: 21300 | H99: 9
A100: 100046 | B100: 2021 | C100: 21300 | D100: 4 | E100: 131 | F100: 2018 | G100: 21300
A101: 100836 | B101: 2018 | C101: 11153 | D101: 6 | E101: 2332 | F101: 2018 | G101: 21242.5 | H101: 6
A102: 100836 | B102: 2019 | C102: 18699 | D102: 6 | E102: 2333 | F102: 2018 | G102: 21242.5 | H102: 6
A103: 100836 | B103: 2020 | C103: 11243 | D103: 14 | E103: 2334 | F103: 2018 | G103: 21242.5 | H103: 14
A104: 100836 | B104: 2021 | C104: 21242.5 | D104: 18 | E104: 2335 | F104: 2018 | G104: 21242.5 | H104: 18
A105: 100555 | B105: 2018 | C105: 20000 | D105: 1 | E105: 1600 | F105: 2018 | G105: 20000
A106: 100555 | B106: 2019 | C106: 20000 | D106: 1 | E106: 1601 | F106: 2018 | G106: 20000
A107: 100555 | B107: 2020 | C107: 20000 | D107: 1 | E107: 1602 | F107: 2018 | G107: 20000
A108: 101257 | B108: 2021 | C108: 20000 | D108: 1 | E108: 3480 | F108: 2021 | G108: 20000
A109: 101632 | B109: 2018 | C109: 500 | D109: 1 | E109: 4488 | F109: 2018 | G109: 20000
A110: 101632 | B110: 2020 | C110: 5000 | D110: 1 | E110: 4489 | F110: 2018 | G110: 20000
A111: 101632 | B111: 2021 | C111: 20000 | D111: 3 | E111: 4490 | F111: 2018 | G111: 20000
A112: 100180 | B112: 2018 | C112: 9384 | D112: 13 | E112: 534 | F112: 2018 | G112: 19084 | H112: 13
A113: 100180 | B113: 2019 | C113: 13084 | D113: 13 | E113: 535 | F113: 2018 | G113: 19084 | H113: 13
A114: 100180 | B114: 2020 | C114: 13084 | D114: 13 | E114: 536 | F114: 2018 | G114: 19084 | H114: 13
A115: 100180 | B115: 2021 | C115: 19084 | D115: 14 | E115: 537 | F115: 2018 | G115: 19084 | H115: 14
A116: 102789 | B116: 2018 | C116: 4700 | D116: 21 | E116: 7461 | F116: 2018 | G116: 18300 | H116: 21
A117: 102789 | B117: 2019 | C117: 8454 | D117: 19 | E117: 7462 | F117: 2018 | G117: 18300 | H117: 19
A118: 102789 | B118: 2020 | C118: 14020 | D118: 24 | E118: 7463 | F118: 2018 | G118: 18300 | H118: 24
A119: 102789 | B119: 2021 | C119: 18300 | D119: 24 | E119: 7464 | F119: 2018 | G119: 18300 | H119: 24
A120: 100558 | B120: 2018 | C120: 9703 | D120: 6 | E120: 1608 | F120: 2018 | G120: 17650 | H120: 6
A121: 100558 | B121: 2019 | C121: 11398 | D121: 10 | E121: 1609 | F121: 2018 | G121: 17650 | H121: 10
A122: 100558 | B122: 2020 | C122: 14200 | D122: 6 | E122: 1610 | F122: 2018 | G122: 17650 | H122: 6
A123: 100558 | B123: 2021 | C123: 17650 | D123: 6 | E123: 1611 | F123: 2018 | G123: 17650 | H123: 6
A124: 104719 | B124: 2018 | C124: 16000 | D124: 1 | E124: 11419 | F124: 2018 | G124: 16000
A125: 101389 | B125: 2018 | C125: 1200 | D125: 12 | E125: 3822 | F125: 2018 | G125: 15900 | H125: 12
A126: 101389 | B126: 2019 | C126: 1200 | D126: 12 | E126: 3823 | F126: 2018 | G126: 15900 | H126: 12
A127: 101389 | B127: 2020 | C127: 1100 | D127: 11 | E127: 3824 | F127: 2018 | G127: 15900 | H127: 11
A128: 101389 | B128: 2021 | C128: 15900 | D128: 11 | E128: 3825 | F128: 2018 | G128: 15900 | H128: 11
A129: 108570 | B129: 2021 | C129: 15450 | D129: 1 | E129: 16317 | F129: 2021 | G129: 15450
A130: 100181 | B130: 2018 | C130: 10100 | D130: 3 | E130: 538 | F130: 2018 | G130: 15000
A131: 100181 | B131: 2019 | C131: 10200 | D131: 2 | E131: 539 | F131: 2018 | G131: 15000
A132: 100181 | B132: 2020 | C132: 15000 | D132: 2 | E132: 540 | F132: 2018 | G132: 15000
A133: 100181 | B133: 2021 | C133: 7750 | D133: 2 | E133: 541 | F133: 2018 | G133: 15000
A134: 104198 | B134: 2018 | C134: 15000 | D134: 1 | E134: 10629 | F134: 2018 | G134: 15000
A135: 105010 | B135: 2018 | C135: 15000 | D135: 2 | E135: 11825 | F135: 2018 | G135: 15000
A136: 103218 | B136: 2018 | C136: 300 | D136: 12 | E136: 8529 | F136: 2018 | G136: 14209 | H136: 12
A137: 103218 | B137: 2019 | C137: 14209 | D137: 16 | E137: 8530 | F137: 2018 | G137: 14209 | H137: 16
A138: 103218 | B138: 2020 | C138: 6902 | D138: 14 | E138: 8531 | F138: 2018 | G138: 14209 | H138: 14
A139: 103218 | B139: 2021 | C139: 8645 | D139: 14 | E139: 8532 | F139: 2018 | G139: 14209 | H139: 14
A140: 101527 | B140: 2018 | C140: 1000 | D140: 1 | E140: 4199 | F140: 2018 | G140: 14100
A141: 101527 | B141: 2019 | C141: 2600 | D141: 4 | E141: 4200 | F141: 2018 | G141: 14100
A142: 101527 | B142: 2020 | C142: 2500 | D142: 3 | E142: 4201 | F142: 2018 | G142: 14100
A143: 101527 | B143: 2021 | C143: 14100 | D143: 4 | E143: 4202 | F143: 2018 | G143: 14100
A144: 102022 | B144: 2018 | C144: 2645 | D144: 15 | E144: 5502 | F144: 2018 | G144: 13350 | H144: 15
A145: 102022 | B145: 2019 | C145: 2350 | D145: 13 | E145: 5503 | F145: 2018 | G145: 13350 | H145: 13
A146: 102022 | B146: 2020 | C146: 3600 | D146: 14 | E146: 5504 | F146: 2018 | G146: 13350 | H146: 14
A147: 102022 | B147: 2021 | C147: 13350 | D147: 15 | E147: 5505 | F147: 2018 | G147: 13350 | H147: 15
A148: 100108 | B148: 2018 | C148: 11000 | D148: 13 | E148: 311 | F148: 2018 | G148: 13000 | H148: 13
A149: 100108 | B149: 2019 | C149: 13000 | D149: 15 | E149: 312 | F149: 2018 | G149: 13000 | H149: 15
A150: 100108 | B150: 2020 | C150: 2500 | D150: 4 | E150: 313 | F150: 2018 | G150: 13000
A151: 100108 | B151: 2021 | C151: 2000 | D151: 2 | E151: 314 | F151: 2018 | G151: 13000
A152: 101733 | B152: 2018 | C152: 12598 | D152: 3 | E152: 4745 | F152: 2018 | G152: 12598
A153: 101733 | B153: 2019 | C153: 500 | D153: 1 | E153: 4746 | F153: 2018 | G153: 12598
A154: 101733 | B154: 2020 | C154: 4500 | D154: 2 | E154: 4747 | F154: 2018 | G154: 12598
A155: 101733 | B155: 2021 | C155: 7550 | D155: 5 | E155: 4748 | F155: 2018 | G155: 12598
A156: 100506 | B156: 2018 | C156: 600 | D156: 2 | E156: 1459 | F156: 2018 | G156: 12500
A157: 100506 | B157: 2019 | C157: 1000 | D157: 1 | E157: 1460 | F157: 2018 | G157: 12500
A158: 100506 | B158: 2021 | C158: 12500 | D158: 2 | E158: 1461 | F158: 2018 | G158: 12500
A159: 103369 | B159: 2018 | C159: 1068 | D159: 24 | E159: 8893 | F159: 2018 | G159: 12268 | H159: 24
A160: 103369 | B160: 2019 | C160: 1068 | D160: 24 | E160: 8894 | F160: 2018 | G160: 12268 | H160: 24
A161: 103369 | B161: 2020 | C161: 5068 | D161: 36 | E161: 8895 | F161: 2018 | G161: 12268 | H161: 36
A162: 103369 | B162: 2021 | C162: 12268 | D162: 37 | E162: 8896 | F162: 2018 | G162: 12268 | H162: 37
A163: 107411 | B163: 2020 | C163: 11000 | D163: 1 | E163: 15057 | F163: 2020 | G163: 11000
A164: 101685 | B164: 2018 | C164: 5834 | D164: 15 | E164: 4625 | F164: 2018 | G164: 10768 | H164: 15
A165: 101685 | B165: 2019 | C165: 2284 | D165: 16 | E165: 4626 | F165: 2018 | G165: 10768 | H165: 16
A166: 101685 | B166: 2020 | C166: 5704 | D166: 21 | E166: 4627 | F166: 2018 | G166: 10768 | H166: 21
A167: 101685 | B167: 2021 | C167: 10768 | D167: 25 | E167: 4628 | F167: 2018 | G167: 10768 | H167: 25
A168: 100188 | B168: 2018 | C168: 4102 | D168: 1 | E168: 558 | F168: 2018 | G168: 10600
A169: 100188 | B169: 2019 | C169: 5449 | D169: 2 | E169: 559 | F169: 2018 | G169: 10600
A170: 100188 | B170: 2020 | C170: 5500 | D170: 2 | E170: 560 | F170: 2018 | G170: 10600
A171: 100188 | B171: 2021 | C171: 10600 | D171: 2 | E171: 561 | F171: 2018 | G171: 10600
A172: 107554 | B172: 2021 | C172: 10316.71 | D172: 1 | E172: 15233 | F172: 2021 | G172: 10316.71
A173: 103163 | B173: 2018 | C173: 10000 | D173: 1 | E173: 8375 | F173: 2018 | G173: 10100
A174: 103163 | B174: 2019 | C174: 10000 | D174: 1 | E174: 8376 | F174: 2018 | G174: 10100
A175: 103163 | B175: 2020 | C175: 10100 | D175: 2 | E175: 8377 | F175: 2018 | G175: 10100
A176: 103163 | B176: 2021 | C176: 10000 | D176: 1 | E176: 8378 | F176: 2018 | G176: 10100
A177: 106802 | B177: 2020 | C177: 95 | D177: 1 | E177: 14332 | F177: 2020 | G177: 10100
A178: 106802 | B178: 2021 | C178: 10100 | D178: 2 | E178: 14333 | F178: 2020 | G178: 10100
A179: 100165 | B179: 2019 | C179: 100 | D179: 1 | E179: 489 | F179: 2019 | G179: 10000
A180: 100165 | B180: 2020 | C180: 200 | D180: 1 | E180: 490 | F180: 2019 | G180: 10000
A181: 100165 | B181: 2021 | C181: 10000 | D181: 1 | E181: 491 | F181: 2019 | G181: 10000
A182: 100586 | B182: 2018 | C182: 3000 | D182: 3 | E182: 1683 | F182: 2018 | G182: 10000
A183: 100586 | B183: 2019 | C183: 2000 | D183: 2 | E183: 1684 | F183: 2018 | G183: 10000
A184: 100586 | B184: 2020 | C184: 3000 | D184: 2 | E184: 1685 | F184: 2018 | G184: 10000
A185: 100586 | B185: 2021 | C185: 10000 | D185: 1 | E185: 1686 | F185: 2018 | G185: 10000
A186: 102381 | B186: 2018 | C186: 10000 | D186: 1 | E186: 6382 | F186: 2018 | G186: 10000
A187: 102381 | B187: 2019 | C187: 10000 | D187: 1 | E187: 6383 | F187: 2018 | G187: 10000
A188: 102385 | B188: 2018 | C188: 5050 | D188: 2 | E188: 6392 | F188: 2018 | G188: 10000
A189: 102385 | B189: 2019 | C189: 5000 | D189: 1 | E189: 6393 | F189: 2018 | G189: 10000
A190: 102385 | B190: 2020 | C190: 10000 | D190: 1 | E190: 6394 | F190: 2018 | G190: 10000
A191: 102385 | B191: 2021 | C191: 10000 | D191: 1 | E191: 6395 | F191: 2018 | G191: 10000
A192: 102542 | B192: 2018 | C192: 250 | D192: 1 | E192: 6803 | F192: 2018 | G192: 10000
A193: 102542 | B193: 2019 | C193: 300 | D193: 1 | E193: 6804 | F193: 2018 | G193: 10000
A194: 102542 | B194: 2020 | C194: 500 | D194: 1 | E194: 6805 | F194: 2018 | G194: 10000
A195: 102542 | B195: 2021 | C195: 10000 | D195: 1 | E195: 6806 | F195: 2018 | G195: 10000
A196: 104487 | B196: 2018 | C196: 10000 | D196: 2 | E196: 11053 | F196: 2018 | G196: 10000
A197: 106434 | B197: 2019 | C197: 10000 | D197: 1 | E197: 13812 | F197: 2019 | G197: 10000
A198: 106434 | B198: 2020 | C198: 4000 | D198: 2 | E198: 13813 | F198: 2019 | G198: 10000
A199: 106434 | B199: 2021 | C199: 2000 | D199: 1 | E199: 13814 | F199: 2019 | G199: 10000
A200: 100456 | B200: 2018 | C200: 3720 | D200: 25 | E200: 1318 | F200: 2018 | G200: 8220 | H200: 25
A201: 100456 | B201: 2019 | C201: 4220 | D201: 26 | E201: 1319 | F201: 2018 | G201: 8220 | H201: 26
... 4299 more rows

Sheet FEP1000to4999
A1: FEP1000to4999 | C1: Fundraising Effectiveness Survey - 2012 | G1: =TODAY() -> 2023-09-14 | I1: Sort Largest Year (col. G) - DESC | N1: =TODAY() -> 2023-09-14 | O1: 10:54:35
A2: =StepByStep!$A$3 -> 0 | O2: 10:54:44
A3: Growth-in-Giving is measured for Year 2: | H3: From --> | I3: =K11 -> 324 | J3: <---- ="K" & row | O3: =O2-O1 -> 00:00:09
D4: Year 2 | E4: =FEPdata!E4 -> 2021 | H4: To --> | I4: =L12 -> 1477 | J4: <---- ="L" & row | O4: FEPdata
A5: $1,000 to $4,999 | B5: D 1,000-4,999 | E5: =StepByStep!$G$7 -> 12 | F5: <-- Year-end month
A6: Gain(Loss) Data - Software Extract for Year 2 and Year 1 data | K6: Col K | L6: Col L
J7: Row | K7: From | L7: To | M7: Count
B8: Number of | C8: Amount of | D8: Number of | E8: Amount of | H8: 5,000 up | I8: 25,000 & up | J8: 8 | K8: 31 | L8: 85 | M8: =L8-K8+1 -> 55
A9: Gain(Loss) | B9: =D9-1 -> 2020 | C9: =E9-1 -> 2020 | D9: =$E4 -> 2021 | E9: =$E4 -> 2021 | I9: 10,000-24,999 | J9: 9 | K9: =L8+1 -> 86 | L9: 199 | M9: =L9-L8 -> 114
A10: Category | B10: Donors | C10: Gifts ($) | D10: Donors | E10: Gifts ($) | I10: 5,000-9,999 | J10: 10 | K10: 200 | L10: 323 | M10: 124
H11: 1,000-4,999 | I11: 2,500-4,999 | J11: 11 | K11: 324 | L11: 540 | M11: 217
A12: New | B12: n/a | C12: n/a | D12: 15 | E12: 25712 | I12: 1,000-2,499 | J12: 12 | K12: 541 | L12: 1477 | M12: 937
A13: Recaptured | B13: n/a | C13: n/a | D13: 16 | E13: 30434.06 | H13: 250-999 | I13: 500-999 | J13: 13 | K13: 1478 | L13: 2866 | M13: 1389
A14: Upgraded | B14: 128 | C14: 125887 | D14: 128 | E14: 213578.46 | I14: 250-499 | J14: 14 | K14: 2867 | L14: 5008 | M14: 2142
A15: Same | B15: 45 | C15: 64530 | D15: 45 | E15: 64530 | H15: 100-249 | I15: 100-249 | J15: 15 | K15: 5009 | L15: 9493 | M15: 4485
A16: Downgraded | B16: 93 | C16: 158995 | D16: 93 | E16: 100137.16 | H16: Under 100 | I16: 50-99 | J16: 16 | K16: 9494 | L16: 12540 | M16: 3047
A17: Lapsed new | B17: 14 | C17: 18541 | D17: n/a | E17: n/a | I17: 25-49 | J17: 17 | K17: 12541 | L17: 15012 | M17: 2472
A18: Lapsed repeat | B18: 16 | C18: 13770 | D18: n/a | E18: n/a | F18: GiG# | G18: GiG$ | I18: 10-24 | J18: 18 | K18: 15013 | L18: 16452 | M18: 1440
A19: Total | B19: =SUM(B12:B18) -> 296 | C19: =SUM(C12:C18) -> 381723 | D19: =SUM(D12:D18) -> 297 | E19: =SUM(E12:E18) -> 434391.68 | F19: =(D19-B19)/B19 -> 0.003378378378 | G19: =(E19-C19)/C19 -> 0.1379761764 | I19: Under 10 | J19: 19 | K19: 16453 | L19: 16650 | M19: 198
A20: 36 hilighted data fields are retrieved from gift transaction data below | M20: =SUM(M8:M19) -> 16620
B21: Number | C21: Gift$
A22: New in year 1 | B22: 37 | C22: 45874 | D22: <-- i.e., last year's new donors and gift$
A23: Database EOY1 | B23: 346 | D23: <-- i.e., Total number of donors on file at end of Year1 | K23: 361 | L23: <-- i.e., TOTAL number of donors on file
A24: One time donors | B24: 33 | C24: 51548 | D24: <-- i.e., Number of one-time donors and gifts | K24: 2665 | L24: <-- Total # of gifts in Year2 (vs #donors)
A25: Recaptured lapsed 1 year | D25: 13 | E25: 26884.06 | F25: <-- Portion of Recaptured | K25: 170 | L25: 737347.16 | M25: <-- Total # & $ for monthly donors in database
A26: Monthly donors in Year2 | D26: 143 | E26: 204184.16 | F26: <-- i.e., Year2 donors making 6 to 24 gifts. | K26: 3 | L26: 4007 | M26: <-- Portion NEW monthly donors in Year2
B28: [Asc] | D28: Gifts | F28: First | G28: Largest | H28: Monthly | I28: Gain/Loss | L28: Years of | M28: One time | N28: Recap 1
A29: Acct | B29: Year | C29: AmtYr | D29: Per year | E29: Seq# | F29: Year | G29: Year | H29: Giving | I29: Category | L29: Giving | M29: Donor | N29: Donor
A30: A | B30: B | C30: C | D30: D | E30: E | F30: F | G30: G | H30: H | I30: I | L30: L | M30: M | N30: N
A31: 105908 | B31: 2019 | C31: 75609 | D31: 5 | E31: 13099 | F31: 2019 | G31: 1130936.65
A32: 105908 | B32: 2020 | C32: 177497 | D32: 8 | E32: 13100 | F32: 2019 | G32: 1130936.65 | H32: 8
A33: 105908 | B33: 2021 | C33: 1130936.65 | D33: 10 | E33: 13101 | F33: 2019 | G33: 1130936.65 | H33: 10
A34: 101943 | B34: 2018 | C34: 350 | D34: 2 | E34: 5302 | F34: 2018 | G34: 160882
A35: 101943 | B35: 2019 | C35: 200 | D35: 2 | E35: 5303 | F35: 2018 | G35: 160882
A36: 101943 | B36: 2020 | C36: 160882 | D36: 5 | E36: 5304 | F36: 2018 | G36: 160882
A37: 100658 | B37: 2018 | C37: 8049 | D37: 3 | E37: 1862 | F37: 2018 | G37: 124011.4
A38: 100658 | B38: 2019 | C38: 11382 | D38: 2 | E38: 1863 | F38: 2018 | G38: 124011.4
A39: 100658 | B39: 2020 | C39: 20166 | D39: 2 | E39: 1864 | F39: 2018 | G39: 124011.4
A40: 100658 | B40: 2021 | C40: 124011.4 | D40: 5 | E40: 1865 | F40: 2018 | G40: 124011.4
A41: 101199 | B41: 2018 | C41: 89648 | D41: 20 | E41: 3317 | F41: 2018 | G41: 91814 | H41: 20
A42: 101199 | B42: 2019 | C42: 91814 | D42: 1 | E42: 3318 | F42: 2018 | G42: 91814
A43: 107204 | B43: 2020 | C43: 71700 | D43: 1 | E43: 14807 | F43: 2020 | G43: 71700
A44: 100021 | B44: 2018 | C44: 26249 | D44: 86 | E44: 58 | F44: 2018 | G44: 50501 | H44: 86
A45: 100021 | B45: 2019 | C45: 50501 | D45: 116 | E45: 59 | F45: 2018 | G45: 50501 | H45: 116
A46: 100021 | B46: 2020 | C46: 15689 | D46: 60 | E46: 60 | F46: 2018 | G46: 50501 | H46: 60
A47: 100021 | B47: 2021 | C47: 14995.05 | D47: 64 | E47: 61 | F47: 2018 | G47: 50501 | H47: 64
A48: 100997 | B48: 2019 | C48: 50000 | D48: 1 | E48: 2753 | F48: 2019 | G48: 50000
A49: 101216 | B49: 2021 | C49: 49682.25 | D49: 1 | E49: 3361 | F49: 2021 | G49: 49682.25
A50: 104021 | B50: 2018 | C50: 45902 | D50: 1 | E50: 10375 | F50: 2018 | G50: 45902
A51: 102324 | B51: 2018 | C51: 500 | D51: 1 | E51: 6244 | F51: 2018 | G51: 40000
A52: 102324 | B52: 2019 | C52: 40000 | D52: 1 | E52: 6245 | F52: 2018 | G52: 40000
A53: 104921 | B53: 2018 | C53: 3998 | D53: 6 | E53: 11707 | F53: 2018 | G53: 38992 | H53: 6
A54: 104921 | B54: 2019 | C54: 14092 | D54: 13 | E54: 11708 | F54: 2018 | G54: 38992 | H54: 13
A55: 104921 | B55: 2020 | C55: 15092 | D55: 14 | E55: 11709 | F55: 2018 | G55: 38992 | H55: 14
A56: 104921 | B56: 2021 | C56: 38992 | D56: 13 | E56: 11710 | F56: 2018 | G56: 38992 | H56: 13
A57: 100608 | B57: 2018 | C57: 35000 | D57: 1 | E57: 1735 | F57: 2018 | G57: 35000
A58: 101989 | B58: 2018 | C58: 40 | D58: 2 | E58: 5417 | F58: 2018 | G58: 33621.93
A59: 101989 | B59: 2019 | C59: 15000 | D59: 1 | E59: 5418 | F59: 2018 | G59: 33621.93
A60: 101989 | B60: 2021 | C60: 33621.93 | D60: 1 | E60: 5419 | F60: 2018 | G60: 33621.93
A61: 101081 | B61: 2018 | C61: 500 | D61: 1 | E61: 2989 | F61: 2018 | G61: 30000
A62: 101081 | B62: 2019 | C62: 500 | D62: 1 | E62: 2990 | F62: 2018 | G62: 30000
A63: 101081 | B63: 2020 | C63: 500 | D63: 1 | E63: 2991 | F63: 2018 | G63: 30000
A64: 101081 | B64: 2021 | C64: 30000 | D64: 1 | E64: 2992 | F64: 2018 | G64: 30000
A65: 100857 | B65: 2018 | C65: 5600 | D65: 3 | E65: 2391 | F65: 2018 | G65: 29223
A66: 100857 | B66: 2019 | C66: 3050 | D66: 2 | E66: 2392 | F66: 2018 | G66: 29223
A67: 100857 | B67: 2020 | C67: 3500 | D67: 1 | E67: 2393 | F67: 2018 | G67: 29223
A68: 100857 | B68: 2021 | C68: 29223 | D68: 6 | E68: 2394 | F68: 2018 | G68: 29223 | H68: 6
A69: 103773 | B69: 2018 | C69: 25000 | D69: 3 | E69: 9841 | F69: 2018 | G69: 27500
A70: 103773 | B70: 2019 | C70: 15000 | D70: 2 | E70: 9842 | F70: 2018 | G70: 27500
A71: 103773 | B71: 2020 | C71: 22500 | D71: 3 | E71: 9843 | F71: 2018 | G71: 27500
A72: 103773 | B72: 2021 | C72: 27500 | D72: 3 | E72: 9844 | F72: 2018 | G72: 27500
A73: 105421 | B73: 2019 | C73: 25300 | D73: 4 | E73: 12440 | F73: 2019 | G73: 25300
A74: 105421 | B74: 2020 | C74: 900 | D74: 3 | E74: 12441 | F74: 2019 | G74: 25300
A75: 105421 | B75: 2021 | C75: 700 | D75: 2 | E75: 12442 | F75: 2019 | G75: 25300
A76: 100183 | B76: 2018 | C76: 5000 | D76: 1 | E76: 545 | F76: 2018 | G76: 25000
A77: 100183 | B77: 2019 | C77: 25000 | D77: 1 | E77: 546 | F77: 2018 | G77: 25000
A78: 102202 | B78: 2018 | C78: 2000 | D78: 2 | E78: 5921 | F78: 2018 | G78: 25000
A79: 102202 | B79: 2019 | C79: 2550 | D79: 2 | E79: 5922 | F79: 2018 | G79: 25000
A80: 102202 | B80: 2020 | C80: 5100 | D80: 2 | E80: 5923 | F80: 2018 | G80: 25000
A81: 102202 | B81: 2021 | C81: 25000 | D81: 1 | E81: 5924 | F81: 2018 | G81: 25000
A82: 102861 | B82: 2018 | C82: 5000 | D82: 2 | E82: 7661 | F82: 2018 | G82: 25000
A83: 102861 | B83: 2019 | C83: 7000 | D83: 2 | E83: 7662 | F83: 2018 | G83: 25000
A84: 102861 | B84: 2021 | C84: 25000 | D84: 1 | E84: 7663 | F84: 2018 | G84: 25000
A85: 104112 | B85: 2018 | C85: 25000 | D85: 2 | E85: 10509 | F85: 2018 | G85: 25000
A86: 102586 | B86: 2018 | C86: 5817 | D86: 35 | E86: 6918 | F86: 2018 | G86: 23468 | H86: 35
A87: 102586 | B87: 2019 | C87: 3118 | D87: 23 | E87: 6919 | F87: 2018 | G87: 23468 | H87: 23
A88: 102586 | B88: 2020 | C88: 3668 | D88: 21 | E88: 6920 | F88: 2018 | G88: 23468 | H88: 21
A89: 102586 | B89: 2021 | C89: 23468 | D89: 21 | E89: 6921 | F89: 2018 | G89: 23468 | H89: 21
A90: 106061 | B90: 2019 | C90: 20000 | D90: 1 | E90: 13301 | F90: 2019 | G90: 22500
A91: 106061 | B91: 2020 | C91: 4000 | D91: 1 | E91: 13302 | F91: 2019 | G91: 22500
A92: 106061 | B92: 2021 | C92: 22500 | D92: 1 | E92: 13303 | F92: 2019 | G92: 22500
A93: 100530 | B93: 2018 | C93: 18433 | D93: 9 | E93: 1526 | F93: 2018 | G93: 22495 | H93: 9
A94: 100530 | B94: 2019 | C94: 10140 | D94: 8 | E94: 1527 | F94: 2018 | G94: 22495 | H94: 8
A95: 100530 | B95: 2020 | C95: 20860 | D95: 8 | E95: 1528 | F95: 2018 | G95: 22495 | H95: 8
A96: 100530 | B96: 2021 | C96: 22495 | D96: 10 | E96: 1529 | F96: 2018 | G96: 22495 | H96: 10
A97: 100046 | B97: 2018 | C97: 2300 | D97: 8 | E97: 128 | F97: 2018 | G97: 21300 | H97: 8
A98: 100046 | B98: 2019 | C98: 2100 | D98: 6 | E98: 129 | F98: 2018 | G98: 21300 | H98: 6
A99: 100046 | B99: 2020 | C99: 3085 | D99: 9 | E99: 130 | F99: 2018 | G99: 21300 | H99: 9
A100: 100046 | B100: 2021 | C100: 21300 | D100: 4 | E100: 131 | F100: 2018 | G100: 21300
A101: 100836 | B101: 2018 | C101: 11153 | D101: 6 | E101: 2332 | F101: 2018 | G101: 21242.5 | H101: 6
A102: 100836 | B102: 2019 | C102: 18699 | D102: 6 | E102: 2333 | F102: 2018 | G102: 21242.5 | H102: 6
A103: 100836 | B103: 2020 | C103: 11243 | D103: 14 | E103: 2334 | F103: 2018 | G103: 21242.5 | H103: 14
A104: 100836 | B104: 2021 | C104: 21242.5 | D104: 18 | E104: 2335 | F104: 2018 | G104: 21242.5 | H104: 18
A105: 100555 | B105: 2018 | C105: 20000 | D105: 1 | E105: 1600 | F105: 2018 | G105: 20000
A106: 100555 | B106: 2019 | C106: 20000 | D106: 1 | E106: 1601 | F106: 2018 | G106: 20000
A107: 100555 | B107: 2020 | C107: 20000 | D107: 1 | E107: 1602 | F107: 2018 | G107: 20000
A108: 101257 | B108: 2021 | C108: 20000 | D108: 1 | E108: 3480 | F108: 2021 | G108: 20000
A109: 101632 | B109: 2018 | C109: 500 | D109: 1 | E109: 4488 | F109: 2018 | G109: 20000
A110: 101632 | B110: 2020 | C110: 5000 | D110: 1 | E110: 4489 | F110: 2018 | G110: 20000
A111: 101632 | B111: 2021 | C111: 20000 | D111: 3 | E111: 4490 | F111: 2018 | G111: 20000
A112: 100180 | B112: 2018 | C112: 9384 | D112: 13 | E112: 534 | F112: 2018 | G112: 19084 | H112: 13
A113: 100180 | B113: 2019 | C113: 13084 | D113: 13 | E113: 535 | F113: 2018 | G113: 19084 | H113: 13
A114: 100180 | B114: 2020 | C114: 13084 | D114: 13 | E114: 536 | F114: 2018 | G114: 19084 | H114: 13
A115: 100180 | B115: 2021 | C115: 19084 | D115: 14 | E115: 537 | F115: 2018 | G115: 19084 | H115: 14
A116: 102789 | B116: 2018 | C116: 4700 | D116: 21 | E116: 7461 | F116: 2018 | G116: 18300 | H116: 21
A117: 102789 | B117: 2019 | C117: 8454 | D117: 19 | E117: 7462 | F117: 2018 | G117: 18300 | H117: 19
A118: 102789 | B118: 2020 | C118: 14020 | D118: 24 | E118: 7463 | F118: 2018 | G118: 18300 | H118: 24
A119: 102789 | B119: 2021 | C119: 18300 | D119: 24 | E119: 7464 | F119: 2018 | G119: 18300 | H119: 24
A120: 100558 | B120: 2018 | C120: 9703 | D120: 6 | E120: 1608 | F120: 2018 | G120: 17650 | H120: 6
A121: 100558 | B121: 2019 | C121: 11398 | D121: 10 | E121: 1609 | F121: 2018 | G121: 17650 | H121: 10
A122: 100558 | B122: 2020 | C122: 14200 | D122: 6 | E122: 1610 | F122: 2018 | G122: 17650 | H122: 6
A123: 100558 | B123: 2021 | C123: 17650 | D123: 6 | E123: 1611 | F123: 2018 | G123: 17650 | H123: 6
A124: 104719 | B124: 2018 | C124: 16000 | D124: 1 | E124: 11419 | F124: 2018 | G124: 16000
A125: 101389 | B125: 2018 | C125: 1200 | D125: 12 | E125: 3822 | F125: 2018 | G125: 15900 | H125: 12
A126: 101389 | B126: 2019 | C126: 1200 | D126: 12 | E126: 3823 | F126: 2018 | G126: 15900 | H126: 12
A127: 101389 | B127: 2020 | C127: 1100 | D127: 11 | E127: 3824 | F127: 2018 | G127: 15900 | H127: 11
A128: 101389 | B128: 2021 | C128: 15900 | D128: 11 | E128: 3825 | F128: 2018 | G128: 15900 | H128: 11
A129: 108570 | B129: 2021 | C129: 15450 | D129: 1 | E129: 16317 | F129: 2021 | G129: 15450
A130: 100181 | B130: 2018 | C130: 10100 | D130: 3 | E130: 538 | F130: 2018 | G130: 15000
A131: 100181 | B131: 2019 | C131: 10200 | D131: 2 | E131: 539 | F131: 2018 | G131: 15000
A132: 100181 | B132: 2020 | C132: 15000 | D132: 2 | E132: 540 | F132: 2018 | G132: 15000
A133: 100181 | B133: 2021 | C133: 7750 | D133: 2 | E133: 541 | F133: 2018 | G133: 15000
A134: 104198 | B134: 2018 | C134: 15000 | D134: 1 | E134: 10629 | F134: 2018 | G134: 15000
A135: 105010 | B135: 2018 | C135: 15000 | D135: 2 | E135: 11825 | F135: 2018 | G135: 15000
A136: 103218 | B136: 2018 | C136: 300 | D136: 12 | E136: 8529 | F136: 2018 | G136: 14209 | H136: 12
A137: 103218 | B137: 2019 | C137: 14209 | D137: 16 | E137: 8530 | F137: 2018 | G137: 14209 | H137: 16
A138: 103218 | B138: 2020 | C138: 6902 | D138: 14 | E138: 8531 | F138: 2018 | G138: 14209 | H138: 14
A139: 103218 | B139: 2021 | C139: 8645 | D139: 14 | E139: 8532 | F139: 2018 | G139: 14209 | H139: 14
A140: 101527 | B140: 2018 | C140: 1000 | D140: 1 | E140: 4199 | F140: 2018 | G140: 14100
A141: 101527 | B141: 2019 | C141: 2600 | D141: 4 | E141: 4200 | F141: 2018 | G141: 14100
A142: 101527 | B142: 2020 | C142: 2500 | D142: 3 | E142: 4201 | F142: 2018 | G142: 14100
A143: 101527 | B143: 2021 | C143: 14100 | D143: 4 | E143: 4202 | F143: 2018 | G143: 14100
A144: 102022 | B144: 2018 | C144: 2645 | D144: 15 | E144: 5502 | F144: 2018 | G144: 13350 | H144: 15
A145: 102022 | B145: 2019 | C145: 2350 | D145: 13 | E145: 5503 | F145: 2018 | G145: 13350 | H145: 13
A146: 102022 | B146: 2020 | C146: 3600 | D146: 14 | E146: 5504 | F146: 2018 | G146: 13350 | H146: 14
A147: 102022 | B147: 2021 | C147: 13350 | D147: 15 | E147: 5505 | F147: 2018 | G147: 13350 | H147: 15
A148: 100108 | B148: 2018 | C148: 11000 | D148: 13 | E148: 311 | F148: 2018 | G148: 13000 | H148: 13
A149: 100108 | B149: 2019 | C149: 13000 | D149: 15 | E149: 312 | F149: 2018 | G149: 13000 | H149: 15
A150: 100108 | B150: 2020 | C150: 2500 | D150: 4 | E150: 313 | F150: 2018 | G150: 13000
A151: 100108 | B151: 2021 | C151: 2000 | D151: 2 | E151: 314 | F151: 2018 | G151: 13000
A152: 101733 | B152: 2018 | C152: 12598 | D152: 3 | E152: 4745 | F152: 2018 | G152: 12598
A153: 101733 | B153: 2019 | C153: 500 | D153: 1 | E153: 4746 | F153: 2018 | G153: 12598
A154: 101733 | B154: 2020 | C154: 4500 | D154: 2 | E154: 4747 | F154: 2018 | G154: 12598
A155: 101733 | B155: 2021 | C155: 7550 | D155: 5 | E155: 4748 | F155: 2018 | G155: 12598
A156: 100506 | B156: 2018 | C156: 600 | D156: 2 | E156: 1459 | F156: 2018 | G156: 12500
A157: 100506 | B157: 2019 | C157: 1000 | D157: 1 | E157: 1460 | F157: 2018 | G157: 12500
A158: 100506 | B158: 2021 | C158: 12500 | D158: 2 | E158: 1461 | F158: 2018 | G158: 12500
A159: 103369 | B159: 2018 | C159: 1068 | D159: 24 | E159: 8893 | F159: 2018 | G159: 12268 | H159: 24
A160: 103369 | B160: 2019 | C160: 1068 | D160: 24 | E160: 8894 | F160: 2018 | G160: 12268 | H160: 24
A161: 103369 | B161: 2020 | C161: 5068 | D161: 36 | E161: 8895 | F161: 2018 | G161: 12268 | H161: 36
A162: 103369 | B162: 2021 | C162: 12268 | D162: 37 | E162: 8896 | F162: 2018 | G162: 12268 | H162: 37
A163: 107411 | B163: 2020 | C163: 11000 | D163: 1 | E163: 15057 | F163: 2020 | G163: 11000
A164: 101685 | B164: 2018 | C164: 5834 | D164: 15 | E164: 4625 | F164: 2018 | G164: 10768 | H164: 15
A165: 101685 | B165: 2019 | C165: 2284 | D165: 16 | E165: 4626 | F165: 2018 | G165: 10768 | H165: 16
A166: 101685 | B166: 2020 | C166: 5704 | D166: 21 | E166: 4627 | F166: 2018 | G166: 10768 | H166: 21
A167: 101685 | B167: 2021 | C167: 10768 | D167: 25 | E167: 4628 | F167: 2018 | G167: 10768 | H167: 25
A168: 100188 | B168: 2018 | C168: 4102 | D168: 1 | E168: 558 | F168: 2018 | G168: 10600
A169: 100188 | B169: 2019 | C169: 5449 | D169: 2 | E169: 559 | F169: 2018 | G169: 10600
A170: 100188 | B170: 2020 | C170: 5500 | D170: 2 | E170: 560 | F170: 2018 | G170: 10600
A171: 100188 | B171: 2021 | C171: 10600 | D171: 2 | E171: 561 | F171: 2018 | G171: 10600
A172: 107554 | B172: 2021 | C172: 10316.71 | D172: 1 | E172: 15233 | F172: 2021 | G172: 10316.71
A173: 103163 | B173: 2018 | C173: 10000 | D173: 1 | E173: 8375 | F173: 2018 | G173: 10100
A174: 103163 | B174: 2019 | C174: 10000 | D174: 1 | E174: 8376 | F174: 2018 | G174: 10100
A175: 103163 | B175: 2020 | C175: 10100 | D175: 2 | E175: 8377 | F175: 2018 | G175: 10100
A176: 103163 | B176: 2021 | C176: 10000 | D176: 1 | E176: 8378 | F176: 2018 | G176: 10100
A177: 106802 | B177: 2020 | C177: 95 | D177: 1 | E177: 14332 | F177: 2020 | G177: 10100
A178: 106802 | B178: 2021 | C178: 10100 | D178: 2 | E178: 14333 | F178: 2020 | G178: 10100
A179: 100165 | B179: 2019 | C179: 100 | D179: 1 | E179: 489 | F179: 2019 | G179: 10000
A180: 100165 | B180: 2020 | C180: 200 | D180: 1 | E180: 490 | F180: 2019 | G180: 10000
A181: 100165 | B181: 2021 | C181: 10000 | D181: 1 | E181: 491 | F181: 2019 | G181: 10000
A182: 100586 | B182: 2018 | C182: 3000 | D182: 3 | E182: 1683 | F182: 2018 | G182: 10000
A183: 100586 | B183: 2019 | C183: 2000 | D183: 2 | E183: 1684 | F183: 2018 | G183: 10000
A184: 100586 | B184: 2020 | C184: 3000 | D184: 2 | E184: 1685 | F184: 2018 | G184: 10000
A185: 100586 | B185: 2021 | C185: 10000 | D185: 1 | E185: 1686 | F185: 2018 | G185: 10000
A186: 102381 | B186: 2018 | C186: 10000 | D186: 1 | E186: 6382 | F186: 2018 | G186: 10000
A187: 102381 | B187: 2019 | C187: 10000 | D187: 1 | E187: 6383 | F187: 2018 | G187: 10000
A188: 102385 | B188: 2018 | C188: 5050 | D188: 2 | E188: 6392 | F188: 2018 | G188: 10000
A189: 102385 | B189: 2019 | C189: 5000 | D189: 1 | E189: 6393 | F189: 2018 | G189: 10000
A190: 102385 | B190: 2020 | C190: 10000 | D190: 1 | E190: 6394 | F190: 2018 | G190: 10000
A191: 102385 | B191: 2021 | C191: 10000 | D191: 1 | E191: 6395 | F191: 2018 | G191: 10000
A192: 102542 | B192: 2018 | C192: 250 | D192: 1 | E192: 6803 | F192: 2018 | G192: 10000
A193: 102542 | B193: 2019 | C193: 300 | D193: 1 | E193: 6804 | F193: 2018 | G193: 10000
A194: 102542 | B194: 2020 | C194: 500 | D194: 1 | E194: 6805 | F194: 2018 | G194: 10000
A195: 102542 | B195: 2021 | C195: 10000 | D195: 1 | E195: 6806 | F195: 2018 | G195: 10000
A196: 104487 | B196: 2018 | C196: 10000 | D196: 2 | E196: 11053 | F196: 2018 | G196: 10000
A197: 106434 | B197: 2019 | C197: 10000 | D197: 1 | E197: 13812 | F197: 2019 | G197: 10000
A198: 106434 | B198: 2020 | C198: 4000 | D198: 2 | E198: 13813 | F198: 2019 | G198: 10000
A199: 106434 | B199: 2021 | C199: 2000 | D199: 1 | E199: 13814 | F199: 2019 | G199: 10000
A200: 100456 | B200: 2018 | C200: 3720 | D200: 25 | E200: 1318 | F200: 2018 | G200: 8220 | H200: 25
A201: 100456 | B201: 2019 | C201: 4220 | D201: 26 | E201: 1319 | F201: 2018 | G201: 8220 | H201: 26
... 4299 more rows

Sheet FEP5000Up
A1: FEP5000Up | C1: Fundraising Effectiveness Survey - 2012 | G1: =TODAY() -> 2023-09-14 | I1: Sort Largest Year (col. G) - DESC | N1: =TODAY() -> 2023-09-14 | O1: 10:54:33
A2: =StepByStep!$A$3 -> 0 | O2: 10:54:35
A3: Growth-in-Giving is measured for Year 2: | H3: From --> | I3: =K8 -> 31 | J3: <---- ="K" & row | O3: =O2-O1 -> 00:00:02
D4: Year 2 | E4: =FEPdata!E4 -> 2021 | H4: To --> | I4: =L10 -> 323 | J4: <---- ="L" & row | O4: FEPdata
A5: $5,000 and up | B5: E 5,000 up | E5: =StepByStep!$G$7 -> 12 | F5: <-- Year-end month
A6: Gain(Loss) Data - Software Extract for Year 2 and Year 1 data | K6: Col K | L6: Col L
J7: Row | K7: From | L7: To | M7: Count
B8: Number of | C8: Amount of | D8: Number of | E8: Amount of | H8: 5,000 up | I8: 25,000 & up | J8: 8 | K8: 31 | L8: 85 | M8: =L8-K8+1 -> 55
A9: Gain(Loss) | B9: =D9-1 -> 2020 | C9: =E9-1 -> 2020 | D9: =$E4 -> 2021 | E9: =$E4 -> 2021 | I9: 10,000-24,999 | J9: 9 | K9: =L8+1 -> 86 | L9: 199 | M9: =L9-L8 -> 114
A10: Category | B10: Donors | C10: Gifts ($) | D10: Donors | E10: Gifts ($) | I10: 5,000-9,999 | J10: 10 | K10: 200 | L10: 323 | M10: 124
H11: 1,000-4,999 | I11: 2,500-4,999 | J11: 11 | K11: 324 | L11: 540 | M11: 217
A12: New | B12: n/a | C12: n/a | D12: 5 | E12: 100448.96 | I12: 1,000-2,499 | J12: 12 | K12: 541 | L12: 1477 | M12: 937
A13: Recaptured | B13: n/a | C13: n/a | D13: 7 | E13: 94371.93 | H13: 250-999 | I13: 500-999 | J13: 13 | K13: 1478 | L13: 2866 | M13: 1389
A14: Upgraded | B14: 41 | C14: 402217 | D14: 41 | E14: 1805359.55 | I14: 250-499 | J14: 14 | K14: 2867 | L14: 5008 | M14: 2142
A15: Same | B15: 2 | C15: 15968 | D15: 2 | E15: 15968 | H15: 100-249 | I15: 100-249 | J15: 15 | K15: 5009 | L15: 9493 | M15: 4485
A16: Downgraded | B16: 18 | C16: 114813 | D16: 18 | E16: 78350.05 | H16: Under 100 | I16: 50-99 | J16: 16 | K16: 9494 | L16: 12540 | M16: 3047
A17: Lapsed new | B17: 4 | C17: 92700 | D17: n/a | E17: n/a | I17: 25-49 | J17: 17 | K17: 12541 | L17: 15012 | M17: 2472
A18: Lapsed repeat | B18: 5 | C18: 192132 | D18: n/a | E18: n/a | F18: GiG# | G18: GiG$ | I18: 10-24 | J18: 18 | K18: 15013 | L18: 16452 | M18: 1440
A19: Total | B19: =SUM(B12:B18) -> 70 | C19: =SUM(C12:C18) -> 817830 | D19: =SUM(D12:D18) -> 73 | E19: =SUM(E12:E18) -> 2094498.49 | F19: =(D19-B19)/B19 -> 0.04285714286 | G19: =(E19-C19)/C19 -> 1.561043848 | I19: Under 10 | J19: 19 | K19: 16453 | L19: 16650 | M19: 198
A20: 36 hilighted data fields are retrieved from gift transaction data below | M20: =SUM(M8:M19) -> 16620
B21: Number | C21: Gift$
A22: New in year 1 | B22: 5 | C22: 92795 | D22: <-- i.e., last year's new donors and gift$
A23: Database EOY1 | B23: 94 | D23: <-- i.e., Total number of donors on file at end of Year1 | K23: 99 | L23: <-- i.e., TOTAL number of donors on file
A24: One time donors | B24: 16 | C24: 324619 | D24: <-- i.e., Number of one-time donors and gifts | K24: 596 | L24: <-- Total # of gifts in Year2 (vs #donors)
A25: Recaptured lapsed 1 year | D25: 6 | E25: 89371.93 | F25: <-- Portion of Recaptured | K25: 35 | L25: 2302002.2 | M25: <-- Total # & $ for monthly donors in database
A26: Monthly donors in Year2 | D26: 29 | E26: 1470516.2 | F26: <-- i.e., Year2 donors making 6 to 24 gifts. | K26: 0 | L26: 0 | M26: <-- Portion NEW monthly donors in Year2
B28: [Asc] | D28: Gifts | F28: First | G28: Largest | H28: Monthly | I28: Gain/Loss | L28: Years of | M28: One time | N28: Recap 1
A29: Acct | B29: Year | C29: AmtYr | D29: Per year | E29: Seq# | F29: Year | G29: Year | H29: Giving | I29: Category | K29: Dupes | L29: Giving | M29: Donor | N29: Donor
A30: A | B30: B | C30: C | D30: D | E30: E | F30: F | G30: G | H30: H | I30: I | J30: J | K30: K | L30: L | M30: M | N30: N
A31: 105908 | B31: 2019 | C31: 75609 | D31: 5 | E31: 13099 | F31: 2019 | G31: 1130936.65 | L31: 1
A32: 105908 | B32: 2020 | C32: 177497 | D32: 8 | E32: 13100 | F32: 2019 | G32: 1130936.65 | H32: 8 | I32: Upgraded | L32: 2
A33: 105908 | B33: 2021 | C33: 1130936.65 | D33: 10 | E33: 13101 | F33: 2019 | G33: 1130936.65 | H33: 10 | L33: 3
A34: 101943 | B34: 2018 | C34: 350 | D34: 2 | E34: 5302 | F34: 2018 | G34: 160882 | L34: 1
A35: 101943 | B35: 2019 | C35: 200 | D35: 2 | E35: 5303 | F35: 2018 | G35: 160882 | L35: 2
A36: 101943 | B36: 2020 | C36: 160882 | D36: 5 | E36: 5304 | F36: 2018 | G36: 160882 | I36: Lapsed-repeat | L36: 3
A37: 100658 | B37: 2018 | C37: 8049 | D37: 3 | E37: 1862 | F37: 2018 | G37: 124011.4 | L37: 1
A38: 100658 | B38: 2019 | C38: 11382 | D38: 2 | E38: 1863 | F38: 2018 | G38: 124011.4 | L38: 2
A39: 100658 | B39: 2020 | C39: 20166 | D39: 2 | E39: 1864 | F39: 2018 | G39: 124011.4 | I39: Upgraded | L39: 3
A40: 100658 | B40: 2021 | C40: 124011.4 | D40: 5 | E40: 1865 | F40: 2018 | G40: 124011.4 | L40: 4
A41: 101199 | B41: 2018 | C41: 89648 | D41: 20 | E41: 3317 | F41: 2018 | G41: 91814 | H41: 20 | L41: 1
A42: 101199 | B42: 2019 | C42: 91814 | D42: 1 | E42: 3318 | F42: 2018 | G42: 91814 | L42: 2
A43: 107204 | B43: 2020 | C43: 71700 | D43: 1 | E43: 14807 | F43: 2020 | G43: 71700 | I43: Lapsed-new | L43: 1 | M43: 1
A44: 100021 | B44: 2018 | C44: 26249 | D44: 86 | E44: 58 | F44: 2018 | G44: 50501 | H44: 86 | L44: 1
A45: 100021 | B45: 2019 | C45: 50501 | D45: 116 | E45: 59 | F45: 2018 | G45: 50501 | H45: 116 | L45: 2
A46: 100021 | B46: 2020 | C46: 15689 | D46: 60 | E46: 60 | F46: 2018 | G46: 50501 | H46: 60 | I46: Downgraded | L46: 3
A47: 100021 | B47: 2021 | C47: 14995.05 | D47: 64 | E47: 61 | F47: 2018 | G47: 50501 | H47: 64 | L47: 4
A48: 100997 | B48: 2019 | C48: 50000 | D48: 1 | E48: 2753 | F48: 2019 | G48: 50000 | L48: 1 | M48: 1
A49: 101216 | B49: 2021 | C49: 49682.25 | D49: 1 | E49: 3361 | F49: 2021 | G49: 49682.25 | I49: New | L49: 1 | M49: 1
A50: 104021 | B50: 2018 | C50: 45902 | D50: 1 | E50: 10375 | F50: 2018 | G50: 45902 | L50: 1 | M50: 1
A51: 102324 | B51: 2018 | C51: 500 | D51: 1 | E51: 6244 | F51: 2018 | G51: 40000 | L51: 1
A52: 102324 | B52: 2019 | C52: 40000 | D52: 1 | E52: 6245 | F52: 2018 | G52: 40000 | L52: 2
A53: 104921 | B53: 2018 | C53: 3998 | D53: 6 | E53: 11707 | F53: 2018 | G53: 38992 | H53: 6 | L53: 1
A54: 104921 | B54: 2019 | C54: 14092 | D54: 13 | E54: 11708 | F54: 2018 | G54: 38992 | H54: 13 | L54: 2
A55: 104921 | B55: 2020 | C55: 15092 | D55: 14 | E55: 11709 | F55: 2018 | G55: 38992 | H55: 14 | I55: Upgraded | L55: 3
A56: 104921 | B56: 2021 | C56: 38992 | D56: 13 | E56: 11710 | F56: 2018 | G56: 38992 | H56: 13 | L56: 4
A57: 100608 | B57: 2018 | C57: 35000 | D57: 1 | E57: 1735 | F57: 2018 | G57: 35000 | L57: 1 | M57: 1
A58: 101989 | B58: 2018 | C58: 40 | D58: 2 | E58: 5417 | F58: 2018 | G58: 33621.93 | L58: 1
A59: 101989 | B59: 2019 | C59: 15000 | D59: 1 | E59: 5418 | F59: 2018 | G59: 33621.93 | L59: 2
A60: 101989 | B60: 2021 | C60: 33621.93 | D60: 1 | E60: 5419 | F60: 2018 | G60: 33621.93 | I60: Recap | L60: 3 | N60: Recap1
A61: 101081 | B61: 2018 | C61: 500 | D61: 1 | E61: 2989 | F61: 2018 | G61: 30000 | L61: 1
A62: 101081 | B62: 2019 | C62: 500 | D62: 1 | E62: 2990 | F62: 2018 | G62: 30000 | L62: 2
A63: 101081 | B63: 2020 | C63: 500 | D63: 1 | E63: 2991 | F63: 2018 | G63: 30000 | I63: Upgraded | L63: 3
A64: 101081 | B64: 2021 | C64: 30000 | D64: 1 | E64: 2992 | F64: 2018 | G64: 30000 | L64: 4
A65: 100857 | B65: 2018 | C65: 5600 | D65: 3 | E65: 2391 | F65: 2018 | G65: 29223 | L65: 1
A66: 100857 | B66: 2019 | C66: 3050 | D66: 2 | E66: 2392 | F66: 2018 | G66: 29223 | L66: 2
A67: 100857 | B67: 2020 | C67: 3500 | D67: 1 | E67: 2393 | F67: 2018 | G67: 29223 | I67: Upgraded | L67: 3
A68: 100857 | B68: 2021 | C68: 29223 | D68: 6 | E68: 2394 | F68: 2018 | G68: 29223 | H68: 6 | L68: 4
A69: 103773 | B69: 2018 | C69: 25000 | D69: 3 | E69: 9841 | F69: 2018 | G69: 27500 | L69: 1
A70: 103773 | B70: 2019 | C70: 15000 | D70: 2 | E70: 9842 | F70: 2018 | G70: 27500 | L70: 2
A71: 103773 | B71: 2020 | C71: 22500 | D71: 3 | E71: 9843 | F71: 2018 | G71: 27500 | I71: Upgraded | L71: 3
A72: 103773 | B72: 2021 | C72: 27500 | D72: 3 | E72: 9844 | F72: 2018 | G72: 27500 | L72: 4
A73: 105421 | B73: 2019 | C73: 25300 | D73: 4 | E73: 12440 | F73: 2019 | G73: 25300 | L73: 1
A74: 105421 | B74: 2020 | C74: 900 | D74: 3 | E74: 12441 | F74: 2019 | G74: 25300 | I74: Downgraded | L74: 2
A75: 105421 | B75: 2021 | C75: 700 | D75: 2 | E75: 12442 | F75: 2019 | G75: 25300 | L75: 3
A76: 100183 | B76: 2018 | C76: 5000 | D76: 1 | E76: 545 | F76: 2018 | G76: 25000 | L76: 1
A77: 100183 | B77: 2019 | C77: 25000 | D77: 1 | E77: 546 | F77: 2018 | G77: 25000 | L77: 2
A78: 102202 | B78: 2018 | C78: 2000 | D78: 2 | E78: 5921 | F78: 2018 | G78: 25000 | L78: 1
A79: 102202 | B79: 2019 | C79: 2550 | D79: 2 | E79: 5922 | F79: 2018 | G79: 25000 | L79: 2
A80: 102202 | B80: 2020 | C80: 5100 | D80: 2 | E80: 5923 | F80: 2018 | G80: 25000 | I80: Upgraded | L80: 3
A81: 102202 | B81: 2021 | C81: 25000 | D81: 1 | E81: 5924 | F81: 2018 | G81: 25000 | L81: 4
A82: 102861 | B82: 2018 | C82: 5000 | D82: 2 | E82: 7661 | F82: 2018 | G82: 25000 | L82: 1
A83: 102861 | B83: 2019 | C83: 7000 | D83: 2 | E83: 7662 | F83: 2018 | G83: 25000 | L83: 2
A84: 102861 | B84: 2021 | C84: 25000 | D84: 1 | E84: 7663 | F84: 2018 | G84: 25000 | I84: Recap | L84: 3 | N84: Recap1
A85: 104112 | B85: 2018 | C85: 25000 | D85: 2 | E85: 10509 | F85: 2018 | G85: 25000 | L85: 1 | M85: 1
A86: 102586 | B86: 2018 | C86: 5817 | D86: 35 | E86: 6918 | F86: 2018 | G86: 23468 | H86: 35 | L86: 1
A87: 102586 | B87: 2019 | C87: 3118 | D87: 23 | E87: 6919 | F87: 2018 | G87: 23468 | H87: 23 | L87: 2
A88: 102586 | B88: 2020 | C88: 3668 | D88: 21 | E88: 6920 | F88: 2018 | G88: 23468 | H88: 21 | I88: Upgraded | L88: 3
A89: 102586 | B89: 2021 | C89: 23468 | D89: 21 | E89: 6921 | F89: 2018 | G89: 23468 | H89: 21 | L89: 4
A90: 106061 | B90: 2019 | C90: 20000 | D90: 1 | E90: 13301 | F90: 2019 | G90: 22500 | L90: 1
A91: 106061 | B91: 2020 | C91: 4000 | D91: 1 | E91: 13302 | F91: 2019 | G91: 22500 | I91: Upgraded | L91: 2
A92: 106061 | B92: 2021 | C92: 22500 | D92: 1 | E92: 13303 | F92: 2019 | G92: 22500 | L92: 3
A93: 100530 | B93: 2018 | C93: 18433 | D93: 9 | E93: 1526 | F93: 2018 | G93: 22495 | H93: 9 | L93: 1
A94: 100530 | B94: 2019 | C94: 10140 | D94: 8 | E94: 1527 | F94: 2018 | G94: 22495 | H94: 8 | L94: 2
A95: 100530 | B95: 2020 | C95: 20860 | D95: 8 | E95: 1528 | F95: 2018 | G95: 22495 | H95: 8 | I95: Upgraded | L95: 3
A96: 100530 | B96: 2021 | C96: 22495 | D96: 10 | E96: 1529 | F96: 2018 | G96: 22495 | H96: 10 | L96: 4
A97: 100046 | B97: 2018 | C97: 2300 | D97: 8 | E97: 128 | F97: 2018 | G97: 21300 | H97: 8 | L97: 1
A98: 100046 | B98: 2019 | C98: 2100 | D98: 6 | E98: 129 | F98: 2018 | G98: 21300 | H98: 6 | L98: 2
A99: 100046 | B99: 2020 | C99: 3085 | D99: 9 | E99: 130 | F99: 2018 | G99: 21300 | H99: 9 | I99: Upgraded | L99: 3
A100: 100046 | B100: 2021 | C100: 21300 | D100: 4 | E100: 131 | F100: 2018 | G100: 21300 | L100: 4
A101: 100836 | B101: 2018 | C101: 11153 | D101: 6 | E101: 2332 | F101: 2018 | G101: 21242.5 | H101: 6 | L101: 1
A102: 100836 | B102: 2019 | C102: 18699 | D102: 6 | E102: 2333 | F102: 2018 | G102: 21242.5 | H102: 6 | L102: 2
A103: 100836 | B103: 2020 | C103: 11243 | D103: 14 | E103: 2334 | F103: 2018 | G103: 21242.5 | H103: 14 | I103: Upgraded | L103: 3
A104: 100836 | B104: 2021 | C104: 21242.5 | D104: 18 | E104: 2335 | F104: 2018 | G104: 21242.5 | H104: 18 | L104: 4
A105: 100555 | B105: 2018 | C105: 20000 | D105: 1 | E105: 1600 | F105: 2018 | G105: 20000 | L105: 1
A106: 100555 | B106: 2019 | C106: 20000 | D106: 1 | E106: 1601 | F106: 2018 | G106: 20000 | L106: 2
A107: 100555 | B107: 2020 | C107: 20000 | D107: 1 | E107: 1602 | F107: 2018 | G107: 20000 | I107: Lapsed-repeat | L107: 3
A108: 101257 | B108: 2021 | C108: 20000 | D108: 1 | E108: 3480 | F108: 2021 | G108: 20000 | I108: New | L108: 1 | M108: 1
A109: 101632 | B109: 2018 | C109: 500 | D109: 1 | E109: 4488 | F109: 2018 | G109: 20000 | L109: 1
A110: 101632 | B110: 2020 | C110: 5000 | D110: 1 | E110: 4489 | F110: 2018 | G110: 20000 | I110: Upgraded | L110: 2
A111: 101632 | B111: 2021 | C111: 20000 | D111: 3 | E111: 4490 | F111: 2018 | G111: 20000 | L111: 3
A112: 100180 | B112: 2018 | C112: 9384 | D112: 13 | E112: 534 | F112: 2018 | G112: 19084 | H112: 13 | L112: 1
A113: 100180 | B113: 2019 | C113: 13084 | D113: 13 | E113: 535 | F113: 2018 | G113: 19084 | H113: 13 | L113: 2
A114: 100180 | B114: 2020 | C114: 13084 | D114: 13 | E114: 536 | F114: 2018 | G114: 19084 | H114: 13 | I114: Upgraded | L114: 3
A115: 100180 | B115: 2021 | C115: 19084 | D115: 14 | E115: 537 | F115: 2018 | G115: 19084 | H115: 14 | L115: 4
A116: 102789 | B116: 2018 | C116: 4700 | D116: 21 | E116: 7461 | F116: 2018 | G116: 18300 | H116: 21 | L116: 1
A117: 102789 | B117: 2019 | C117: 8454 | D117: 19 | E117: 7462 | F117: 2018 | G117: 18300 | H117: 19 | L117: 2
A118: 102789 | B118: 2020 | C118: 14020 | D118: 24 | E118: 7463 | F118: 2018 | G118: 18300 | H118: 24 | I118: Upgraded | L118: 3
A119: 102789 | B119: 2021 | C119: 18300 | D119: 24 | E119: 7464 | F119: 2018 | G119: 18300 | H119: 24 | L119: 4
A120: 100558 | B120: 2018 | C120: 9703 | D120: 6 | E120: 1608 | F120: 2018 | G120: 17650 | H120: 6 | L120: 1
A121: 100558 | B121: 2019 | C121: 11398 | D121: 10 | E121: 1609 | F121: 2018 | G121: 17650 | H121: 10 | L121: 2
A122: 100558 | B122: 2020 | C122: 14200 | D122: 6 | E122: 1610 | F122: 2018 | G122: 17650 | H122: 6 | I122: Upgraded | L122: 3
A123: 100558 | B123: 2021 | C123: 17650 | D123: 6 | E123: 1611 | F123: 2018 | G123: 17650 | H123: 6 | L123: 4
A124: 104719 | B124: 2018 | C124: 16000 | D124: 1 | E124: 11419 | F124: 2018 | G124: 16000 | L124: 1 | M124: 1
A125: 101389 | B125: 2018 | C125: 1200 | D125: 12 | E125: 3822 | F125: 2018 | G125: 15900 | H125: 12 | L125: 1
A126: 101389 | B126: 2019 | C126: 1200 | D126: 12 | E126: 3823 | F126: 2018 | G126: 15900 | H126: 12 | L126: 2
A127: 101389 | B127: 2020 | C127: 1100 | D127: 11 | E127: 3824 | F127: 2018 | G127: 15900 | H127: 11 | I127: Upgraded | L127: 3
A128: 101389 | B128: 2021 | C128: 15900 | D128: 11 | E128: 3825 | F128: 2018 | G128: 15900 | H128: 11 | L128: 4
A129: 108570 | B129: 2021 | C129: 15450 | D129: 1 | E129: 16317 | F129: 2021 | G129: 15450 | I129: New | L129: 1 | M129: 1
A130: 100181 | B130: 2018 | C130: 10100 | D130: 3 | E130: 538 | F130: 2018 | G130: 15000 | L130: 1
A131: 100181 | B131: 2019 | C131: 10200 | D131: 2 | E131: 539 | F131: 2018 | G131: 15000 | L131: 2
A132: 100181 | B132: 2020 | C132: 15000 | D132: 2 | E132: 540 | F132: 2018 | G132: 15000 | I132: Downgraded | L132: 3
A133: 100181 | B133: 2021 | C133: 7750 | D133: 2 | E133: 541 | F133: 2018 | G133: 15000 | L133: 4
A134: 104198 | B134: 2018 | C134: 15000 | D134: 1 | E134: 10629 | F134: 2018 | G134: 15000 | L134: 1 | M134: 1
A135: 105010 | B135: 2018 | C135: 15000 | D135: 2 | E135: 11825 | F135: 2018 | G135: 15000 | L135: 1 | M135: 1
A136: 103218 | B136: 2018 | C136: 300 | D136: 12 | E136: 8529 | F136: 2018 | G136: 14209 | H136: 12 | L136: 1
A137: 103218 | B137: 2019 | C137: 14209 | D137: 16 | E137: 8530 | F137: 2018 | G137: 14209 | H137: 16 | L137: 2
A138: 103218 | B138: 2020 | C138: 6902 | D138: 14 | E138: 8531 | F138: 2018 | G138: 14209 | H138: 14 | I138: Upgraded | L138: 3
A139: 103218 | B139: 2021 | C139: 8645 | D139: 14 | E139: 8532 | F139: 2018 | G139: 14209 | H139: 14 | L139: 4
A140: 101527 | B140: 2018 | C140: 1000 | D140: 1 | E140: 4199 | F140: 2018 | G140: 14100 | L140: 1
A141: 101527 | B141: 2019 | C141: 2600 | D141: 4 | E141: 4200 | F141: 2018 | G141: 14100 | L141: 2
A142: 101527 | B142: 2020 | C142: 2500 | D142: 3 | E142: 4201 | F142: 2018 | G142: 14100 | I142: Upgraded | L142: 3
A143: 101527 | B143: 2021 | C143: 14100 | D143: 4 | E143: 4202 | F143: 2018 | G143: 14100 | L143: 4
A144: 102022 | B144: 2018 | C144: 2645 | D144: 15 | E144: 5502 | F144: 2018 | G144: 13350 | H144: 15 | L144: 1
A145: 102022 | B145: 2019 | C145: 2350 | D145: 13 | E145: 5503 | F145: 2018 | G145: 13350 | H145: 13 | L145: 2
A146: 102022 | B146: 2020 | C146: 3600 | D146: 14 | E146: 5504 | F146: 2018 | G146: 13350 | H146: 14 | I146: Upgraded | L146: 3
A147: 102022 | B147: 2021 | C147: 13350 | D147: 15 | E147: 5505 | F147: 2018 | G147: 13350 | H147: 15 | L147: 4
A148: 100108 | B148: 2018 | C148: 11000 | D148: 13 | E148: 311 | F148: 2018 | G148: 13000 | H148: 13 | L148: 1
A149: 100108 | B149: 2019 | C149: 13000 | D149: 15 | E149: 312 | F149: 2018 | G149: 13000 | H149: 15 | L149: 2
A150: 100108 | B150: 2020 | C150: 2500 | D150: 4 | E150: 313 | F150: 2018 | G150: 13000 | I150: Downgraded | L150: 3
A151: 100108 | B151: 2021 | C151: 2000 | D151: 2 | E151: 314 | F151: 2018 | G151: 13000 | L151: 4
A152: 101733 | B152: 2018 | C152: 12598 | D152: 3 | E152: 4745 | F152: 2018 | G152: 12598 | L152: 1
A153: 101733 | B153: 2019 | C153: 500 | D153: 1 | E153: 4746 | F153: 2018 | G153: 12598 | L153: 2
A154: 101733 | B154: 2020 | C154: 4500 | D154: 2 | E154: 4747 | F154: 2018 | G154: 12598 | I154: Upgraded | L154: 3
A155: 101733 | B155: 2021 | C155: 7550 | D155: 5 | E155: 4748 | F155: 2018 | G155: 12598 | L155: 4
A156: 100506 | B156: 2018 | C156: 600 | D156: 2 | E156: 1459 | F156: 2018 | G156: 12500 | L156: 1
A157: 100506 | B157: 2019 | C157: 1000 | D157: 1 | E157: 1460 | F157: 2018 | G157: 12500 | L157: 2
A158: 100506 | B158: 2021 | C158: 12500 | D158: 2 | E158: 1461 | F158: 2018 | G158: 12500 | I158: Recap | L158: 3 | N158: Recap1
A159: 103369 | B159: 2018 | C159: 1068 | D159: 24 | E159: 8893 | F159: 2018 | G159: 12268 | H159: 24 | L159: 1
A160: 103369 | B160: 2019 | C160: 1068 | D160: 24 | E160: 8894 | F160: 2018 | G160: 12268 | H160: 24 | L160: 2
A161: 103369 | B161: 2020 | C161: 5068 | D161: 36 | E161: 8895 | F161: 2018 | G161: 12268 | H161: 36 | I161: Upgraded | L161: 3
A162: 103369 | B162: 2021 | C162: 12268 | D162: 37 | E162: 8896 | F162: 2018 | G162: 12268 | H162: 37 | L162: 4
A163: 107411 | B163: 2020 | C163: 11000 | D163: 1 | E163: 15057 | F163: 2020 | G163: 11000 | I163: Lapsed-new | L163: 1 | M163: 1
A164: 101685 | B164: 2018 | C164: 5834 | D164: 15 | E164: 4625 | F164: 2018 | G164: 10768 | H164: 15 | L164: 1
A165: 101685 | B165: 2019 | C165: 2284 | D165: 16 | E165: 4626 | F165: 2018 | G165: 10768 | H165: 16 | L165: 2
A166: 101685 | B166: 2020 | C166: 5704 | D166: 21 | E166: 4627 | F166: 2018 | G166: 10768 | H166: 21 | I166: Upgraded | L166: 3
A167: 101685 | B167: 2021 | C167: 10768 | D167: 25 | E167: 4628 | F167: 2018 | G167: 10768 | H167: 25 | L167: 4
A168: 100188 | B168: 2018 | C168: 4102 | D168: 1 | E168: 558 | F168: 2018 | G168: 10600 | L168: 1
A169: 100188 | B169: 2019 | C169: 5449 | D169: 2 | E169: 559 | F169: 2018 | G169: 10600 | L169: 2
A170: 100188 | B170: 2020 | C170: 5500 | D170: 2 | E170: 560 | F170: 2018 | G170: 10600 | I170: Upgraded | L170: 3
A171: 100188 | B171: 2021 | C171: 10600 | D171: 2 | E171: 561 | F171: 2018 | G171: 10600 | L171: 4
A172: 107554 | B172: 2021 | C172: 10316.71 | D172: 1 | E172: 15233 | F172: 2021 | G172: 10316.71 | I172: New | L172: 1 | M172: 1
A173: 103163 | B173: 2018 | C173: 10000 | D173: 1 | E173: 8375 | F173: 2018 | G173: 10100 | L173: 1
A174: 103163 | B174: 2019 | C174: 10000 | D174: 1 | E174: 8376 | F174: 2018 | G174: 10100 | L174: 2
A175: 103163 | B175: 2020 | C175: 10100 | D175: 2 | E175: 8377 | F175: 2018 | G175: 10100 | I175: Downgraded | L175: 3
A176: 103163 | B176: 2021 | C176: 10000 | D176: 1 | E176: 8378 | F176: 2018 | G176: 10100 | L176: 4
A177: 106802 | B177: 2020 | C177: 95 | D177: 1 | E177: 14332 | F177: 2020 | G177: 10100 | I177: Upgraded | L177: 1
A178: 106802 | B178: 2021 | C178: 10100 | D178: 2 | E178: 14333 | F178: 2020 | G178: 10100 | L178: 2
A179: 100165 | B179: 2019 | C179: 100 | D179: 1 | E179: 489 | F179: 2019 | G179: 10000 | L179: 1
A180: 100165 | B180: 2020 | C180: 200 | D180: 1 | E180: 490 | F180: 2019 | G180: 10000 | I180: Upgraded | L180: 2
A181: 100165 | B181: 2021 | C181: 10000 | D181: 1 | E181: 491 | F181: 2019 | G181: 10000 | L181: 3
A182: 100586 | B182: 2018 | C182: 3000 | D182: 3 | E182: 1683 | F182: 2018 | G182: 10000 | L182: 1
A183: 100586 | B183: 2019 | C183: 2000 | D183: 2 | E183: 1684 | F183: 2018 | G183: 10000 | L183: 2
A184: 100586 | B184: 2020 | C184: 3000 | D184: 2 | E184: 1685 | F184: 2018 | G184: 10000 | I184: Upgraded | L184: 3
A185: 100586 | B185: 2021 | C185: 10000 | D185: 1 | E185: 1686 | F185: 2018 | G185: 10000 | L185: 4
A186: 102381 | B186: 2018 | C186: 10000 | D186: 1 | E186: 6382 | F186: 2018 | G186: 10000 | L186: 1
A187: 102381 | B187: 2019 | C187: 10000 | D187: 1 | E187: 6383 | F187: 2018 | G187: 10000 | L187: 2
A188: 102385 | B188: 2018 | C188: 5050 | D188: 2 | E188: 6392 | F188: 2018 | G188: 10000 | L188: 1
A189: 102385 | B189: 2019 | C189: 5000 | D189: 1 | E189: 6393 | F189: 2018 | G189: 10000 | L189: 2
A190: 102385 | B190: 2020 | C190: 10000 | D190: 1 | E190: 6394 | F190: 2018 | G190: 10000 | I190: Same | L190: 3
A191: 102385 | B191: 2021 | C191: 10000 | D191: 1 | E191: 6395 | F191: 2018 | G191: 10000 | L191: 4
A192: 102542 | B192: 2018 | C192: 250 | D192: 1 | E192: 6803 | F192: 2018 | G192: 10000 | L192: 1
A193: 102542 | B193: 2019 | C193: 300 | D193: 1 | E193: 6804 | F193: 2018 | G193: 10000 | L193: 2
A194: 102542 | B194: 2020 | C194: 500 | D194: 1 | E194: 6805 | F194: 2018 | G194: 10000 | I194: Upgraded | L194: 3
A195: 102542 | B195: 2021 | C195: 10000 | D195: 1 | E195: 6806 | F195: 2018 | G195: 10000 | L195: 4
A196: 104487 | B196: 2018 | C196: 10000 | D196: 2 | E196: 11053 | F196: 2018 | G196: 10000 | L196: 1 | M196: 1
A197: 106434 | B197: 2019 | C197: 10000 | D197: 1 | E197: 13812 | F197: 2019 | G197: 10000 | L197: 1
A198: 106434 | B198: 2020 | C198: 4000 | D198: 2 | E198: 13813 | F198: 2019 | G198: 10000 | I198: Downgraded | L198: 2
A199: 106434 | B199: 2021 | C199: 2000 | D199: 1 | E199: 13814 | F199: 2019 | G199: 10000 | L199: 3
A200: 100456 | B200: 2018 | C200: 3720 | D200: 25 | E200: 1318 | F200: 2018 | G200: 8220 | H200: 25 | L200: 1
A201: 100456 | B201: 2019 | C201: 4220 | D201: 26 | E201: 1319 | F201: 2018 | G201: 8220 | H201: 26 | L201: 2
... 4299 more rows
